Body_Code,Body_Name,Service_Area,Responsible_Unit,Expense_Type,Expense_Code,Narrative,Date,Transaction_Number,Amount,Supplier_Name
http://statistics.data.gov.uk/id/local-authority/38,Oxfordshire County Council,SCS Other Cost Centres,Control Account Trojan Residential Care,Balance Sheet General,B2040,ABACUS Accounts Payable Control A/c,13/04/2011,3100033912,-1338,OSJ - Cornish House
http://statistics.data.gov.uk/id/local-authority/38,Oxfordshire County Council,Sustainable Development,Waste Management General (staff & other),Rent and Rates,24200,Hire of Facilities,08/04/2011,3100034805,-416.67,PREMIER INN
http://statistics.data.gov.uk/id/local-authority/38,Oxfordshire County Council,SCS Other Cost Centres,Control Account Trojan Residential Care,Balance Sheet General,B2040,ABACUS Accounts Payable Control A/c,13/04/2011,3100034883,-1054.29,Phoenix House (Portland House)
http://statistics.data.gov.uk/id/local-authority/38,Oxfordshire County Council,SCS Other Cost Centres,Control Account Trojan Residential Care,Balance Sheet General,B2040,ABACUS Accounts Payable Control A/c,13/04/2011,3100034886,-889.3,BRAMBLES RESPITE CARE CENTRE
http://statistics.data.gov.uk/id/local-authority/38,Oxfordshire County Council,SCS Pooled Budgets,Community Support Budget - Abingdon,Other Agency and Contracted Services,57401,Direct Payments,26/04/2011,3100034921,-505.6,A4e Management Ltd Week 2
http://statistics.data.gov.uk/id/local-authority/38,Oxfordshire County Council,SCS Other Cost Centres,Control Account Trojan Residential Care,Balance Sheet General,B2040,ABACUS Accounts Payable Control A/c,13/04/2011,3150004237,-685.07,REDACTED PERSONAL DATA
http://statistics.data.gov.uk/id/local-authority/38,Oxfordshire County Council,SCS Other Cost Centres,Control Account Trojan Residential Care,Balance Sheet General,B2040,ABACUS Accounts Payable Control A/c,13/04/2011,3150004238,-17922.32,Doris Watts Residential Home Ltd
http://statistics.data.gov.uk/id/local-authority/38,Oxfordshire County Council,SCS Other Cost Centres,Control Account Trojan Residential Care,Balance Sheet General,B2040,ABACUS Accounts Payable Control A/c,13/04/2011,3150004239,-5463.13,Somerset Care
http://statistics.data.gov.uk/id/local-authority/38,Oxfordshire County Council,SCS Other Cost Centres,Control Account Trojan Residential Care,Balance Sheet General,B2040,ABACUS Accounts Payable Control A/c,13/04/2011,3150004240,-32665.18,Cedar Court Care Home
http://statistics.data.gov.uk/id/local-authority/38,Oxfordshire County Council,SCS Other Cost Centres,Control Account Trojan Residential Care,Balance Sheet General,B2040,ABACUS Accounts Payable Control A/c,13/04/2011,3150004241,-8978.2,Coxwell Hall & Mews Nursing Home
http://statistics.data.gov.uk/id/local-authority/38,Oxfordshire County Council,Highways & Transport,Misc Holding A/c,Private Contractors,56400,Major Contracts,06/04/2011,3150004245,-1422245.58,ATKINS LIMITED
http://statistics.data.gov.uk/id/local-authority/38,Oxfordshire County Council,SCS Other Cost Centres,Control Account Trojan Residential Care,Balance Sheet General,B2040,ABACUS Accounts Payable Control A/c,13/04/2011,3150004246,-1128.95,Pengwern College - MENCAP
http://statistics.data.gov.uk/id/local-authority/38,Oxfordshire County Council,SCS Other Cost Centres,Control Account Trojan Residential Care,Balance Sheet General,B2040,ABACUS Accounts Payable Control A/c,13/04/2011,3150004247,-2678.57,Four Seasons (Headington) Ltd
http://statistics.data.gov.uk/id/local-authority/38,Oxfordshire County Council,Social & Community Services,People with Mental Health Problems,Other Agency and Contracted Services,57352,Monthly,13/04/2011,3150004251,-25449.89,Bromford Carinthia Housing Group
http://statistics.data.gov.uk/id/local-authority/38,Oxfordshire County Council,SCS Other Cost Centres,Control Account Trojan Residential Care,Balance Sheet General,B2040,ABACUS Accounts Payable Control A/c,13/04/2011,3150004252,-28840.5,Huntercombe Hall Ltd
http://statistics.data.gov.uk/id/local-authority/38,Oxfordshire County Council,SCS Other Cost Centres,Control Account Trojan Residential Care,Balance Sheet General,B2040,ABACUS Accounts Payable Control A/c,13/04/2011,3150004253,-11281.43,OSJ - Madley Park House
http://statistics.data.gov.uk/id/local-authority/38,Oxfordshire County Council,SCS Other Cost Centres,Control Account Trojan Residential Care,Balance Sheet General,B2040,ABACUS Accounts Payable Control A/c,13/04/2011,3150004254,-9540,Kirlena House
http://statistics.data.gov.uk/id/local-authority/38,Oxfordshire County Council,SCS Pooled Budgets,OP Pool Continuing Care NH Spot over 65s,Other Agency and Contracted Services,57102,Nursing Home Bed,13/04/2011,3150004255,-750,Chiltern Care Homes Ltd
http://statistics.data.gov.uk/id/local-authority/38,Oxfordshire County Council,SCS Other Cost Centres,Control Account Trojan Residential Care,Balance Sheet General,B2040,ABACUS Accounts Payable Control A/c,13/04/2011,3150004257,-3857.14,Tall Trees
http://statistics.data.gov.uk/id/local-authority/38,Oxfordshire County Council,Scheduled Bodies,Oxfordshire County Council,Contributions Leaving the Fund,PR401,Transfers out,06/04/2011,3300000033,662.67,Wiltshire Pension Fund
http://statistics.data.gov.uk/id/local-authority/38,Oxfordshire County Council,Scheduled Bodies,Oxfordshire County Council,Contributions Leaving the Fund,PR401,Transfers out,06/04/2011,3300000033,9016.08,Wiltshire Pension Fund
http://statistics.data.gov.uk/id/local-authority/38,Oxfordshire County Council,Scheduled Bodies,Oxfordshire County Council,Contributions Leaving the Fund,PR401,Transfers out,06/04/2011,3300000034,1152.2,Univs Superann Scheme Ltd Trust Fun
http://statistics.data.gov.uk/id/local-authority/38,Oxfordshire County Council,Scheduled Bodies,Oxford City Council,Contributions Leaving the Fund,PR401,Transfers out,12/04/2011,3300000036,179914.8,Hertfordshire County Council
http://statistics.data.gov.uk/id/local-authority/38,Oxfordshire County Council,Admitted Bodies,ALM London,Contributions Leaving the Fund,PR401,Transfers out,06/04/2011,3300000049,15739.21,Cabinet Office : Civil Superann
http://statistics.data.gov.uk/id/local-authority/38,Oxfordshire County Council,Scheduled Bodies,Oxfordshire County Council,Contributions Leaving the Fund,PR401,Transfers out,08/04/2011,3300000053,11192.83,Berkshire Pension Fund
http://statistics.data.gov.uk/id/local-authority/38,Oxfordshire County Council,Scheduled Bodies,Oxfordshire County Council,Contributions Leaving the Fund,PR401,Transfers out,08/04/2011,3300000054,1904.76,Berkshire Pension Fund
http://statistics.data.gov.uk/id/local-authority/38,Oxfordshire County Council,Scheduled Bodies,West Oxfordshire District Council,Contributions Leaving the Fund,PR401,Transfers out,08/04/2011,3300000056,7070.26,BUCKINGHAMSHIRE COUNTY COUNCIL
http://statistics.data.gov.uk/id/local-authority/38,Oxfordshire County Council,Scheduled Bodies,Oxfordshire County Council,Contributions Leaving the Fund,PR401,Transfers out,12/04/2011,3300000057,2896.65,Hampshire County Council
http://statistics.data.gov.uk/id/local-authority/38,Oxfordshire County Council,Admitted Bodies,ALM London,Contributions Leaving the Fund,PR401,Transfers out,13/04/2011,3300000068,176256.16,The City of London
http://statistics.data.gov.uk/id/local-authority/38,Oxfordshire County Council,Scheduled Bodies,Oxfordshire County Council,Contributions Leaving the Fund,PR401,Transfers out,15/04/2011,3300000079,94601.89,Berkshire Pension Fund
http://statistics.data.gov.uk/id/local-authority/38,Oxfordshire County Council,Scheduled Bodies,Oxfordshire County Council,Contributions Leaving the Fund,PR401,Transfers out,15/04/2011,3300000084,2793.37,Virgin Money
http://statistics.data.gov.uk/id/local-authority/38,Oxfordshire County Council,Social & Community Services,Financial Accounting,Communications and Computing,45800,IT Hardware,27/04/2011,3300000106,2718,BUCKINGHAMSHIRE COUNTY COUNCIL
http://statistics.data.gov.uk/id/local-authority/38,Oxfordshire County Council,Scheduled Bodies,Oxfordshire County Council,Contributions Leaving the Fund,PR401,Transfers out,27/04/2011,3300000106,11417.07,BUCKINGHAMSHIRE COUNTY COUNCIL
http://statistics.data.gov.uk/id/local-authority/38,Oxfordshire County Council,In-House,Miscellaneous,Pension Fund Balance Sheet,PB802,Payroll payments by cheque (net pay),26/04/2011,3300000120,3613.68,REDACTED PERSONAL DATA
http://statistics.data.gov.uk/id/local-authority/38,Oxfordshire County Council,Scheduled Bodies,Oxfordshire County Council,Contributions Leaving the Fund,PR401,Transfers out,27/04/2011,3300000132,8249.22,Berkshire Pension Fund
http://statistics.data.gov.uk/id/local-authority/38,Oxfordshire County Council,Scheduled Bodies,Oxfordshire County Council,Contributions Leaving the Fund,PR401,Transfers out,01/04/2011,3300983842,3139.92,N Ireland Local Government Officers
http://statistics.data.gov.uk/id/local-authority/38,Oxfordshire County Council,Children's Social Care,Disabilities Team North/City,Contract Hire/Leasing,33101,Home to School Trans,01/04/2011,3301244344,1215,Abingdon Taxis
http://statistics.data.gov.uk/id/local-authority/38,Oxfordshire County Council,SCS Pooled Budgets,LD Team budget (CMPB) South,Contract Hire/Leasing,33300,Transport (General),01/04/2011,3301244349,3021.8,O B Cars
http://statistics.data.gov.uk/id/local-authority/38,Oxfordshire County Council,Education & Early Intervention,Out of County,Public Transport,34102,Pupil Fares Reclaima,01/04/2011,3301244437,1145.6,REDACTED PERSONAL DATA
http://statistics.data.gov.uk/id/local-authority/38,Oxfordshire County Council,Education & Early Intervention,Zone 3 - West,Contract Hire/Leasing,33101,Home to School Trans,01/04/2011,3301244438,3638.35,Aldermore Invoice Finance
http://statistics.data.gov.uk/id/local-authority/38,Oxfordshire County Council,Education & Early Intervention,Zone 3 - West,Contract Hire/Leasing,33101,Home to School Trans,01/04/2011,3301244439,2909.17,Aldermore Invoice Finance
http://statistics.data.gov.uk/id/local-authority/38,Oxfordshire County Council,Education & Early Intervention,Zone 3 - West,Contract Hire/Leasing,33101,Home to School Trans,01/04/2011,3301244440,1288.53,Aldermore Invoice Finance
http://statistics.data.gov.uk/id/local-authority/38,Oxfordshire County Council,Education & Early Intervention,Zone 3 - West,Contract Hire/Leasing,33101,Home to School Trans,01/04/2011,3301244441,1328.13,Aldermore Invoice Finance
http://statistics.data.gov.uk/id/local-authority/38,Oxfordshire County Council,Education & Early Intervention,Zone 3 - West,Contract Hire/Leasing,33101,Home to School Trans,01/04/2011,3301244442,1486.8,Aldermore Invoice Finance
http://statistics.data.gov.uk/id/local-authority/38,Oxfordshire County Council,Education & Early Intervention,Zone 3 - West,Contract Hire/Leasing,33101,Home to School Trans,01/04/2011,3301244443,1357.92,Aldermore Invoice Finance
http://statistics.data.gov.uk/id/local-authority/38,Oxfordshire County Council,Education & Early Intervention,Zone 3 - West,Contract Hire/Leasing,33101,Home to School Trans,01/04/2011,3301244444,1357.92,Aldermore Invoice Finance
http://statistics.data.gov.uk/id/local-authority/38,Oxfordshire County Council,Education & Early Intervention,Zone 3 - West,Contract Hire/Leasing,33101,Home to School Trans,01/04/2011,3301244445,3384.91,Aldermore Invoice Finance
http://statistics.data.gov.uk/id/local-authority/38,Oxfordshire County Council,Education & Early Intervention,Zone 3 - West,Contract Hire/Leasing,33101,Home to School Trans,01/04/2011,3301244446,1357.92,Aldermore Invoice Finance
http://statistics.data.gov.uk/id/local-authority/38,Oxfordshire County Council,Education & Early Intervention,Zone 3 - West,Contract Hire/Leasing,33101,Home to School Trans,01/04/2011,3301244447,1387.71,Aldermore Invoice Finance
http://statistics.data.gov.uk/id/local-authority/38,Oxfordshire County Council,Education & Early Intervention,Zone 3 - West,Contract Hire/Leasing,33101,Home to School Trans,01/04/2011,3301244448,1337.94,Aldermore Invoice Finance
http://statistics.data.gov.uk/id/local-authority/38,Oxfordshire County Council,Education & Early Intervention,Zone 3 - West,Contract Hire/Leasing,33101,Home to School Trans,01/04/2011,3301244449,1734.57,Aldermore Invoice Finance
http://statistics.data.gov.uk/id/local-authority/38,Oxfordshire County Council,Education & Early Intervention,Zone 3 - West,Contract Hire/Leasing,33101,Home to School Trans,01/04/2011,3301244450,1417.23,Aldermore Invoice Finance
http://statistics.data.gov.uk/id/local-authority/38,Oxfordshire County Council,Education & Early Intervention,Special Misc,Contract Hire/Leasing,33103,Transport to Centres,01/04/2011,3301244451,583.4,Aldermore Invoice Finance
http://statistics.data.gov.uk/id/local-authority/38,Oxfordshire County Council,Education & Early Intervention,Zone 3 - West,Contract Hire/Leasing,33101,Home to School Trans,01/04/2011,3301244452,1260,Aldermore Invoice Finance
http://statistics.data.gov.uk/id/local-authority/38,Oxfordshire County Council,Education & Early Intervention,Zone 2 - East,Contract Hire/Leasing,33101,Home to School Trans,01/04/2011,3301244453,1125,Aldermore Invoice Finance
http://statistics.data.gov.uk/id/local-authority/38,Oxfordshire County Council,Education & Early Intervention,Zone 2 - East,Contract Hire/Leasing,33101,Home to School Trans,01/04/2011,3301244454,1125,Aldermore Invoice Finance
http://statistics.data.gov.uk/id/local-authority/38,Oxfordshire County Council,Education & Early Intervention,Zone 2 - East,Contract Hire/Leasing,33101,Home to School Trans,01/04/2011,3301244455,1125,Aldermore Invoice Finance
http://statistics.data.gov.uk/id/local-authority/38,Oxfordshire County Council,Education & Early Intervention,Zone 2 - East,Contract Hire/Leasing,33101,Home to School Trans,01/04/2011,3301244456,1125,Aldermore Invoice Finance
http://statistics.data.gov.uk/id/local-authority/38,Oxfordshire County Council,Education & Early Intervention,Zone 3 - West,Contract Hire/Leasing,33101,Home to School Trans,01/04/2011,3301244457,1918,Aldermore Invoice Finance
http://statistics.data.gov.uk/id/local-authority/38,Oxfordshire County Council,Education & Early Intervention,Zone 3 - West,Contract Hire/Leasing,33101,Home to School Trans,01/04/2011,3301244458,1918,Aldermore Invoice Finance
http://statistics.data.gov.uk/id/local-authority/38,Oxfordshire County Council,Education & Early Intervention,Zone 3 - West,Contract Hire/Leasing,33101,Home to School Trans,01/04/2011,3301244459,1918,Aldermore Invoice Finance
http://statistics.data.gov.uk/id/local-authority/38,Oxfordshire County Council,Education & Early Intervention,Zone 3 - West,Contract Hire/Leasing,33101,Home to School Trans,01/04/2011,3301244460,1918,Aldermore Invoice Finance
http://statistics.data.gov.uk/id/local-authority/38,Oxfordshire County Council,Education & Early Intervention,Zone 3 - West,Contract Hire/Leasing,33101,Home to School Trans,01/04/2011,3301244461,1918,Aldermore Invoice Finance
http://statistics.data.gov.uk/id/local-authority/38,Oxfordshire County Council,Education & Early Intervention,Zone 3 - West,Contract Hire/Leasing,33101,Home to School Trans,01/04/2011,3301244462,1918,Aldermore Invoice Finance
http://statistics.data.gov.uk/id/local-authority/38,Oxfordshire County Council,Education & Early Intervention,Zone 3 - West,Contract Hire/Leasing,33101,Home to School Trans,01/04/2011,3301244463,1918,Aldermore Invoice Finance
http://statistics.data.gov.uk/id/local-authority/38,Oxfordshire County Council,Education & Early Intervention,Zone 3 - West,Contract Hire/Leasing,33101,Home to School Trans,01/04/2011,3301244464,1918,Aldermore Invoice Finance
http://statistics.data.gov.uk/id/local-authority/38,Oxfordshire County Council,Education & Early Intervention,Zone 3 - West,Contract Hire/Leasing,33101,Home to School Trans,01/04/2011,3301244465,1918,Aldermore Invoice Finance
http://statistics.data.gov.uk/id/local-authority/38,Oxfordshire County Council,Education & Early Intervention,Zone 3 - West,Contract Hire/Leasing,33101,Home to School Trans,01/04/2011,3301244466,1918,Aldermore Invoice Finance
http://statistics.data.gov.uk/id/local-authority/38,Oxfordshire County Council,Education & Early Intervention,Zone 3 - West,Contract Hire/Leasing,33101,Home to School Trans,01/04/2011,3301244467,1918,Aldermore Invoice Finance
http://statistics.data.gov.uk/id/local-authority/38,Oxfordshire County Council,Education & Early Intervention,Zone 3 - West,Contract Hire/Leasing,33101,Home to School Trans,01/04/2011,3301244468,1918,Aldermore Invoice Finance
http://statistics.data.gov.uk/id/local-authority/38,Oxfordshire County Council,Education & Early Intervention,Zone 3 - West,Contract Hire/Leasing,33101,Home to School Trans,01/04/2011,3301244469,1918,Aldermore Invoice Finance
http://statistics.data.gov.uk/id/local-authority/38,Oxfordshire County Council,Education & Early Intervention,Zone 3 - West,Contract Hire/Leasing,33101,Home to School Trans,01/04/2011,3301244470,1918,Aldermore Invoice Finance
http://statistics.data.gov.uk/id/local-authority/38,Oxfordshire County Council,Education & Early Intervention,Zone 3 - West,Contract Hire/Leasing,33101,Home to School Trans,01/04/2011,3301244471,1918,Aldermore Invoice Finance
http://statistics.data.gov.uk/id/local-authority/38,Oxfordshire County Council,Education & Early Intervention,Zone 3 - West,Contract Hire/Leasing,33101,Home to School Trans,01/04/2011,3301244472,2100,Aldermore Invoice Finance
http://statistics.data.gov.uk/id/local-authority/38,Oxfordshire County Council,Education & Early Intervention,Zone 3 - West,Contract Hire/Leasing,33101,Home to School Trans,01/04/2011,3301244474,2100,Aldermore Invoice Finance
http://statistics.data.gov.uk/id/local-authority/38,Oxfordshire County Council,Education & Early Intervention,Oxford Sth SEN Trans,Contract Hire/Leasing,33101,Home to School Trans,01/04/2011,3301244475,1909,W L Lynch
http://statistics.data.gov.uk/id/local-authority/38,Oxfordshire County Council,Education & Early Intervention,Oxford Sth SEN Trans,Contract Hire/Leasing,33101,Home to School Trans,01/04/2011,3301244476,2070,W L Lynch
http://statistics.data.gov.uk/id/local-authority/38,Oxfordshire County Council,Education & Early Intervention,Zone 5 - South,Contract Hire/Leasing,33101,Home to School Trans,01/04/2011,3301244477,3798.68,Woottens
http://statistics.data.gov.uk/id/local-authority/38,Oxfordshire County Council,Education & Early Intervention,Zone 5 - South,Contract Hire/Leasing,33101,Home to School Trans,01/04/2011,3301244478,3798.91,Woottens
http://statistics.data.gov.uk/id/local-authority/38,Oxfordshire County Council,Education & Early Intervention,Zone 2 - East,Contract Hire/Leasing,33101,Home to School Trans,01/04/2011,3301244479,3217.7,Woottens
http://statistics.data.gov.uk/id/local-authority/38,Oxfordshire County Council,Education & Early Intervention,Zone 5 - South,Contract Hire/Leasing,33101,Home to School Trans,01/04/2011,3301244480,5015.61,Carousel Buses Limited
http://statistics.data.gov.uk/id/local-authority/38,Oxfordshire County Council,Education & Early Intervention,Zone 5 - South,Contract Hire/Leasing,33101,Home to School Trans,01/04/2011,3301244481,5015.61,Carousel Buses Limited
http://statistics.data.gov.uk/id/local-authority/38,Oxfordshire County Council,Education & Early Intervention,Witney SEN Trans,Contract Hire/Leasing,33101,Home to School Trans,01/04/2011,3301244482,1610,Crescent Cars Ltd
http://statistics.data.gov.uk/id/local-authority/38,Oxfordshire County Council,Education & Early Intervention,Witney SEN Trans,Contract Hire/Leasing,33300,Transport (General),01/04/2011,3301244483,460,Crescent Cars Ltd
http://statistics.data.gov.uk/id/local-authority/38,Oxfordshire County Council,Education & Early Intervention,Oxford Sth SEN Trans,Contract Hire/Leasing,33101,Home to School Trans,01/04/2011,3301244484,3334.77,Crescent Cars Ltd
http://statistics.data.gov.uk/id/local-authority/38,Oxfordshire County Council,Education & Early Intervention,Oxford Sth SEN Trans,Contract Hire/Leasing,33300,Transport (General),01/04/2011,3301244485,755.55,Crescent Cars Ltd
http://statistics.data.gov.uk/id/local-authority/38,Oxfordshire County Council,Education & Early Intervention,Zone 4 - Vale,Contract Hire/Leasing,33101,Home to School Trans,01/04/2011,3301244486,3358.92,Plastow's Coaches
http://statistics.data.gov.uk/id/local-authority/38,Oxfordshire County Council,Education & Early Intervention,Zone 4 - Vale,Contract Hire/Leasing,33101,Home to School Trans,01/04/2011,3301244487,3718.64,Plastow's Coaches
http://statistics.data.gov.uk/id/local-authority/38,Oxfordshire County Council,Education & Early Intervention,Zone 4 - Vale,Contract Hire/Leasing,33101,Home to School Trans,01/04/2011,3301244488,4198.65,Plastow's Coaches
http://statistics.data.gov.uk/id/local-authority/38,Oxfordshire County Council,Education & Early Intervention,Oxford Sth SEN Trans,Contract Hire/Leasing,33101,Home to School Trans,01/04/2011,3301244490,2279.53,Toot's Taxis
http://statistics.data.gov.uk/id/local-authority/38,Oxfordshire County Council,Education & Early Intervention,Abingdon SEN Trans,Contract Hire/Leasing,33101,Home to School Trans,01/04/2011,3301244491,1725,Toot's Taxis
http://statistics.data.gov.uk/id/local-authority/38,Oxfordshire County Council,Education & Early Intervention,Abingdon SEN Trans,Contract Hire/Leasing,33101,Home to School Trans,01/04/2011,3301244492,2208.69,Toot's Taxis
http://statistics.data.gov.uk/id/local-authority/38,Oxfordshire County Council,Education & Early Intervention,Abingdon SEN Trans,Contract Hire/Leasing,33300,Transport (General),01/04/2011,3301244493,697.36,Toot's Taxis
http://statistics.data.gov.uk/id/local-authority/38,Oxfordshire County Council,Education & Early Intervention,Oxford Sth SEN Trans,Contract Hire/Leasing,33101,Home to School Trans,01/04/2011,3301244494,2084.03,Toot's Taxis
http://statistics.data.gov.uk/id/local-authority/38,Oxfordshire County Council,Education & Early Intervention,Oxford Sth SEN Trans,Contract Hire/Leasing,33300,Transport (General),01/04/2011,3301244495,993.14,Toot's Taxis
http://statistics.data.gov.uk/id/local-authority/38,Oxfordshire County Council,Education & Early Intervention,Abingdon SEN Trans,Contract Hire/Leasing,33101,Home to School Trans,01/04/2011,3301244496,1805,Toot's Taxis
http://statistics.data.gov.uk/id/local-authority/38,Oxfordshire County Council,Education & Early Intervention,Abingdon SEN Trans,Contract Hire/Leasing,33300,Transport (General),01/04/2011,3301244497,418.19,Toot's Taxis
http://statistics.data.gov.uk/id/local-authority/38,Oxfordshire County Council,Education & Early Intervention,Oxford Nth SEN Trans,Contract Hire/Leasing,33101,Home to School Trans,01/04/2011,3301244498,2663.17,Toot's Taxis
http://statistics.data.gov.uk/id/local-authority/38,Oxfordshire County Council,Education & Early Intervention,Zone 4 - Vale,Contract Hire/Leasing,33101,Home to School Trans,01/04/2011,3301244499,1308.24,Toot's Taxis
http://statistics.data.gov.uk/id/local-authority/38,Oxfordshire County Council,Education & Early Intervention,Oxford Sth SEN Trans,Contract Hire/Leasing,33101,Home to School Trans,01/04/2011,3301244502,1265,Jackie's Services
http://statistics.data.gov.uk/id/local-authority/38,Oxfordshire County Council,Education & Early Intervention,Out of County,Contract Hire/Leasing,33101,Home to School Trans,01/04/2011,3301244503,1770,AD Taxi
http://statistics.data.gov.uk/id/local-authority/38,Oxfordshire County Council,Education & Early Intervention,Zone 2 - East,Contract Hire/Leasing,33101,Home to School Trans,01/04/2011,3301244504,1206,Worths Motor Services Ltd.
http://statistics.data.gov.uk/id/local-authority/38,Oxfordshire County Council,Education & Early Intervention,Zone 2 - East,Contract Hire/Leasing,33101,Home to School Trans,01/04/2011,3301244505,1206,Worths Motor Services Ltd.
http://statistics.data.gov.uk/id/local-authority/38,Oxfordshire County Council,Education & Early Intervention,Zone 2 - East,Contract Hire/Leasing,33101,Home to School Trans,01/04/2011,3301244506,1296,Worths Motor Services Ltd.
http://statistics.data.gov.uk/id/local-authority/38,Oxfordshire County Council,Education & Early Intervention,Zone 2 - East,Contract Hire/Leasing,33101,Home to School Trans,01/04/2011,3301244507,1862,Worths Motor Services Ltd.
http://statistics.data.gov.uk/id/local-authority/38,Oxfordshire County Council,Education & Early Intervention,Zone 2 - East,Contract Hire/Leasing,33101,Home to School Trans,01/04/2011,3301244508,1932,Worths Motor Services Ltd.
http://statistics.data.gov.uk/id/local-authority/38,Oxfordshire County Council,Education & Early Intervention,Zone 2 - East,Contract Hire/Leasing,33101,Home to School Trans,01/04/2011,3301244509,2072,Worths Motor Services Ltd.
http://statistics.data.gov.uk/id/local-authority/38,Oxfordshire County Council,Education & Early Intervention,Zone 1 - North,Contract Hire/Leasing,33101,Home to School Trans,01/04/2011,3301244510,3938.75,Worths Motor Services Ltd.
http://statistics.data.gov.uk/id/local-authority/38,Oxfordshire County Council,Education & Early Intervention,Zone 1 - North,Contract Hire/Leasing,33101,Home to School Trans,01/04/2011,3301244511,4526.4,Worths Motor Services Ltd.
http://statistics.data.gov.uk/id/local-authority/38,Oxfordshire County Council,Education & Early Intervention,Zone 1 - North,Contract Hire/Leasing,33101,Home to School Trans,01/04/2011,3301244512,3136.51,Worths Motor Services Ltd.
http://statistics.data.gov.uk/id/local-authority/38,Oxfordshire County Council,Education & Early Intervention,Out of County,Public Transport,34102,Pupil Fares Reclaima,01/04/2011,3301244513,694.4,REDACTED PERSONAL DATA
http://statistics.data.gov.uk/id/local-authority/38,Oxfordshire County Council,Education & Early Intervention,Zone 2 - East,Contract Hire/Leasing,33101,Home to School Trans,01/04/2011,3301244516,2185,Heyfordian Travel Ltd
http://statistics.data.gov.uk/id/local-authority/38,Oxfordshire County Council,Education & Early Intervention,Zone 2 - East,Contract Hire/Leasing,33101,Home to School Trans,01/04/2011,3301244517,2530,Heyfordian Travel Ltd
http://statistics.data.gov.uk/id/local-authority/38,Oxfordshire County Council,Education & Early Intervention,Zone 5 - South,Contract Hire/Leasing,33101,Home to School Trans,01/04/2011,3301244518,4559.75,Heyfordian Travel Ltd
http://statistics.data.gov.uk/id/local-authority/38,Oxfordshire County Council,Education & Early Intervention,Zone 5 - South,Contract Hire/Leasing,33101,Home to School Trans,01/04/2011,3301244519,4559.75,Heyfordian Travel Ltd
http://statistics.data.gov.uk/id/local-authority/38,Oxfordshire County Council,Education & Early Intervention,Zone 5 - South,Contract Hire/Leasing,33101,Home to School Trans,01/04/2011,3301244520,4559.75,Heyfordian Travel Ltd
http://statistics.data.gov.uk/id/local-authority/38,Oxfordshire County Council,Education & Early Intervention,Zone 5 - South,Contract Hire/Leasing,33101,Home to School Trans,01/04/2011,3301244521,4559.75,Heyfordian Travel Ltd
http://statistics.data.gov.uk/id/local-authority/38,Oxfordshire County Council,Education & Early Intervention,Zone 5 - South,Contract Hire/Leasing,33101,Home to School Trans,01/04/2011,3301244522,4078.82,Heyfordian Travel Ltd
http://statistics.data.gov.uk/id/local-authority/38,Oxfordshire County Council,Education & Early Intervention,Zone 5 - South,Contract Hire/Leasing,33101,Home to School Trans,01/04/2011,3301244523,4311.12,Heyfordian Travel Ltd
http://statistics.data.gov.uk/id/local-authority/38,Oxfordshire County Council,Education & Early Intervention,Zone 3 - West,Contract Hire/Leasing,33101,Home to School Trans,01/04/2011,3301244524,1883.34,Heyfordian Travel Ltd
http://statistics.data.gov.uk/id/local-authority/38,Oxfordshire County Council,Education & Early Intervention,Zone 3 - West,Contract Hire/Leasing,33101,Home to School Trans,01/04/2011,3301244525,1883.34,Heyfordian Travel Ltd
http://statistics.data.gov.uk/id/local-authority/38,Oxfordshire County Council,Education & Early Intervention,Zone 3 - West,Contract Hire/Leasing,33101,Home to School Trans,01/04/2011,3301244526,941.67,Heyfordian Travel Ltd
http://statistics.data.gov.uk/id/local-authority/38,Oxfordshire County Council,Education & Early Intervention,Zone 3 - West,Contract Hire/Leasing,33101,Home to School Trans,01/04/2011,3301244527,941.67,Heyfordian Travel Ltd
http://statistics.data.gov.uk/id/local-authority/38,Oxfordshire County Council,Education & Early Intervention,Zone 5 - South,Contract Hire/Leasing,33101,Home to School Trans,01/04/2011,3301244528,5572.67,Heyfordian Travel Ltd
http://statistics.data.gov.uk/id/local-authority/38,Oxfordshire County Council,Education & Early Intervention,Zone 2 - East,Contract Hire/Leasing,33101,Home to School Trans,01/04/2011,3301244529,2875,Heyfordian Travel Ltd
http://statistics.data.gov.uk/id/local-authority/38,Oxfordshire County Council,Education & Early Intervention,Zone 5 - South,Contract Hire/Leasing,33101,Home to School Trans,01/04/2011,3301244530,3599.04,Heyfordian Travel Ltd
http://statistics.data.gov.uk/id/local-authority/38,Oxfordshire County Council,Education & Early Intervention,Zone 5 - South,Contract Hire/Leasing,33101,Home to School Trans,01/04/2011,3301244531,4431.18,Heyfordian Travel Ltd
http://statistics.data.gov.uk/id/local-authority/38,Oxfordshire County Council,Education & Early Intervention,Zone 1 - North,Contract Hire/Leasing,33101,Home to School Trans,01/04/2011,3301244532,3022.66,Heyfordian Travel Ltd
http://statistics.data.gov.uk/id/local-authority/38,Oxfordshire County Council,Education & Early Intervention,Zone 1 - North,Contract Hire/Leasing,33101,Home to School Trans,01/04/2011,3301244533,2731.94,Heyfordian Travel Ltd
http://statistics.data.gov.uk/id/local-authority/38,Oxfordshire County Council,Education & Early Intervention,Zone 1 - North,Contract Hire/Leasing,33101,Home to School Trans,01/04/2011,3301244534,2731.94,Heyfordian Travel Ltd
http://statistics.data.gov.uk/id/local-authority/38,Oxfordshire County Council,Education & Early Intervention,Zone 1 - North,Contract Hire/Leasing,33101,Home to School Trans,01/04/2011,3301244535,2731.94,Heyfordian Travel Ltd
http://statistics.data.gov.uk/id/local-authority/38,Oxfordshire County Council,Education & Early Intervention,Zone 1 - North,Contract Hire/Leasing,33101,Home to School Trans,01/04/2011,3301244536,2731.94,Heyfordian Travel Ltd
http://statistics.data.gov.uk/id/local-authority/38,Oxfordshire County Council,Education & Early Intervention,Zone 1 - North,Contract Hire/Leasing,33101,Home to School Trans,01/04/2011,3301244537,2731.94,Heyfordian Travel Ltd
http://statistics.data.gov.uk/id/local-authority/38,Oxfordshire County Council,Education & Early Intervention,Zone 1 - North,Contract Hire/Leasing,33101,Home to School Trans,01/04/2011,3301244538,2964.47,Heyfordian Travel Ltd
http://statistics.data.gov.uk/id/local-authority/38,Oxfordshire County Council,Education & Early Intervention,Zone 1 - North,Contract Hire/Leasing,33101,Home to School Trans,01/04/2011,3301244539,2964.47,Heyfordian Travel Ltd
http://statistics.data.gov.uk/id/local-authority/38,Oxfordshire County Council,Education & Early Intervention,Zone 1 - North,Contract Hire/Leasing,33101,Home to School Trans,01/04/2011,3301244540,2731.94,Heyfordian Travel Ltd
http://statistics.data.gov.uk/id/local-authority/38,Oxfordshire County Council,Education & Early Intervention,Zone 1 - North,Contract Hire/Leasing,33101,Home to School Trans,01/04/2011,3301244541,5347.73,Heyfordian Travel Ltd
http://statistics.data.gov.uk/id/local-authority/38,Oxfordshire County Council,Education & Early Intervention,Zone 1 - North,Contract Hire/Leasing,33101,Home to School Trans,01/04/2011,3301244542,2964.47,Heyfordian Travel Ltd
http://statistics.data.gov.uk/id/local-authority/38,Oxfordshire County Council,Education & Early Intervention,Zone 1 - North,Contract Hire/Leasing,33101,Home to School Trans,01/04/2011,3301244543,2964.47,Heyfordian Travel Ltd
http://statistics.data.gov.uk/id/local-authority/38,Oxfordshire County Council,Education & Early Intervention,Zone 1 - North,Contract Hire/Leasing,33101,Home to School Trans,01/04/2011,3301244544,5463.88,Heyfordian Travel Ltd
http://statistics.data.gov.uk/id/local-authority/38,Oxfordshire County Council,Education & Early Intervention,Zone 1 - North,Contract Hire/Leasing,33101,Home to School Trans,01/04/2011,3301244545,4603.68,Heyfordian Travel Ltd
http://statistics.data.gov.uk/id/local-authority/38,Oxfordshire County Council,Education & Early Intervention,Zone 1 - North,Contract Hire/Leasing,33101,Home to School Trans,01/04/2011,3301244546,4371.15,Heyfordian Travel Ltd
http://statistics.data.gov.uk/id/local-authority/38,Oxfordshire County Council,Education & Early Intervention,Zone 1 - North,Contract Hire/Leasing,33101,Home to School Trans,01/04/2011,3301244547,5463.88,Heyfordian Travel Ltd
http://statistics.data.gov.uk/id/local-authority/38,Oxfordshire County Council,Education & Early Intervention,Zone 1 - North,Contract Hire/Leasing,33101,Home to School Trans,01/04/2011,3301244548,5859.25,Heyfordian Travel Ltd
http://statistics.data.gov.uk/id/local-authority/38,Oxfordshire County Council,Education & Early Intervention,Zone 1 - North,Contract Hire/Leasing,33101,Home to School Trans,01/04/2011,3301244549,4138.62,Heyfordian Travel Ltd
http://statistics.data.gov.uk/id/local-authority/38,Oxfordshire County Council,Education & Early Intervention,Zone 1 - North,Contract Hire/Leasing,33101,Home to School Trans,01/04/2011,3301244550,4881.75,Heyfordian Travel Ltd
http://statistics.data.gov.uk/id/local-authority/38,Oxfordshire County Council,Education & Early Intervention,Zone 2 - East,Contract Hire/Leasing,33101,Home to School Trans,01/04/2011,3301244551,2300,Heyfordian Travel Ltd
http://statistics.data.gov.uk/id/local-authority/38,Oxfordshire County Council,Education & Early Intervention,Zone 4 - Vale,Contract Hire/Leasing,33101,Home to School Trans,01/04/2011,3301244552,4025,Heyfordian Travel Ltd
http://statistics.data.gov.uk/id/local-authority/38,Oxfordshire County Council,Education & Early Intervention,Zone 5 - South,Contract Hire/Leasing,33101,Home to School Trans,01/04/2011,3301244553,4140,Heyfordian Travel Ltd
http://statistics.data.gov.uk/id/local-authority/38,Oxfordshire County Council,Education & Early Intervention,Zone 4 - Vale,Contract Hire/Leasing,33101,Home to School Trans,01/04/2011,3301244555,4078.82,Tappins Coaches
http://statistics.data.gov.uk/id/local-authority/38,Oxfordshire County Council,Education & Early Intervention,Zone 4 - Vale,Contract Hire/Leasing,33101,Home to School Trans,01/04/2011,3301244556,4078.82,Tappins Coaches
http://statistics.data.gov.uk/id/local-authority/38,Oxfordshire County Council,Education & Early Intervention,Zone 4 - Vale,Contract Hire/Leasing,33101,Home to School Trans,01/04/2011,3301244557,4078.82,Tappins Coaches
http://statistics.data.gov.uk/id/local-authority/38,Oxfordshire County Council,Education & Early Intervention,Zone 4 - Vale,Contract Hire/Leasing,33101,Home to School Trans,01/04/2011,3301244558,4078.82,Tappins Coaches
http://statistics.data.gov.uk/id/local-authority/38,Oxfordshire County Council,Education & Early Intervention,Zone 4 - Vale,Contract Hire/Leasing,33101,Home to School Trans,01/04/2011,3301244559,4078.82,Tappins Coaches
http://statistics.data.gov.uk/id/local-authority/38,Oxfordshire County Council,Education & Early Intervention,Zone 4 - Vale,Contract Hire/Leasing,33101,Home to School Trans,01/04/2011,3301244560,4078.82,Tappins Coaches
http://statistics.data.gov.uk/id/local-authority/38,Oxfordshire County Council,Education & Early Intervention,Zone 4 - Vale,Contract Hire/Leasing,33101,Home to School Trans,01/04/2011,3301244561,4078.82,Tappins Coaches
http://statistics.data.gov.uk/id/local-authority/38,Oxfordshire County Council,Education & Early Intervention,Zone 4 - Vale,Contract Hire/Leasing,33101,Home to School Trans,01/04/2011,3301244562,4078.82,Tappins Coaches
http://statistics.data.gov.uk/id/local-authority/38,Oxfordshire County Council,Education & Early Intervention,Zone 4 - Vale,Contract Hire/Leasing,33101,Home to School Trans,01/04/2011,3301244563,4078.82,Tappins Coaches
http://statistics.data.gov.uk/id/local-authority/38,Oxfordshire County Council,Education & Early Intervention,Zone 5 - South,Contract Hire/Leasing,33101,Home to School Trans,01/04/2011,3301244564,4198.65,Tappins Coaches
http://statistics.data.gov.uk/id/local-authority/38,Oxfordshire County Council,Education & Early Intervention,Zone 5 - South,Contract Hire/Leasing,33101,Home to School Trans,01/04/2011,3301244565,4318.71,Tappins Coaches
http://statistics.data.gov.uk/id/local-authority/38,Oxfordshire County Council,Education & Early Intervention,Zone 5 - South,Contract Hire/Leasing,33101,Home to School Trans,01/04/2011,3301244566,4438.54,Tappins Coaches
http://statistics.data.gov.uk/id/local-authority/38,Oxfordshire County Council,Education & Early Intervention,Zone 5 - South,Contract Hire/Leasing,33101,Home to School Trans,01/04/2011,3301244567,4438.54,Tappins Coaches
http://statistics.data.gov.uk/id/local-authority/38,Oxfordshire County Council,Education & Early Intervention,Zone 5 - South,Contract Hire/Leasing,33101,Home to School Trans,01/04/2011,3301244568,4438.54,Tappins Coaches
http://statistics.data.gov.uk/id/local-authority/38,Oxfordshire County Council,Education & Early Intervention,Zone 4 - Vale,Contract Hire/Leasing,33101,Home to School Trans,01/04/2011,3301244569,5065.98,The School Bus Company
http://statistics.data.gov.uk/id/local-authority/38,Oxfordshire County Council,Education & Early Intervention,Zone 4 - Vale,Contract Hire/Leasing,33101,Home to School Trans,01/04/2011,3301244570,5065.98,The School Bus Company
http://statistics.data.gov.uk/id/local-authority/38,Oxfordshire County Council,Education & Early Intervention,Zone 4 - Vale,Contract Hire/Leasing,33101,Home to School Trans,01/04/2011,3301244571,5065.98,The School Bus Company
http://statistics.data.gov.uk/id/local-authority/38,Oxfordshire County Council,Education & Early Intervention,Zone 4 - Vale,Contract Hire/Leasing,33101,Home to School Trans,01/04/2011,3301244572,4470.28,The School Bus Company
http://statistics.data.gov.uk/id/local-authority/38,Oxfordshire County Council,Education & Early Intervention,Zone 4 - Vale,Contract Hire/Leasing,33101,Home to School Trans,01/04/2011,3301244573,4293.18,The School Bus Company
http://statistics.data.gov.uk/id/local-authority/38,Oxfordshire County Council,Education & Early Intervention,Zone 4 - Vale,Contract Hire/Leasing,33101,Home to School Trans,01/04/2011,3301244574,3938.06,The School Bus Company
http://statistics.data.gov.uk/id/local-authority/38,Oxfordshire County Council,Education & Early Intervention,Zone 4 - Vale,Contract Hire/Leasing,33101,Home to School Trans,01/04/2011,3301244575,6417,The School Bus Company
http://statistics.data.gov.uk/id/local-authority/38,Oxfordshire County Council,Education & Early Intervention,Zone 4 - Vale,Contract Hire/Leasing,33101,Home to School Trans,01/04/2011,3301244576,6445.98,The School Bus Company
http://statistics.data.gov.uk/id/local-authority/38,Oxfordshire County Council,Education & Early Intervention,Zone 4 - Vale,Contract Hire/Leasing,33101,Home to School Trans,01/04/2011,3301244577,5157.98,The School Bus Company
http://statistics.data.gov.uk/id/local-authority/38,Oxfordshire County Council,Education & Early Intervention,Zone 5 - South,Contract Hire/Leasing,33101,Home to School Trans,01/04/2011,3301244578,4463.84,The School Bus Company
http://statistics.data.gov.uk/id/local-authority/38,Oxfordshire County Council,Education & Early Intervention,FE Special Trans,Contract Hire/Leasing,33101,Home to School Trans,01/04/2011,3301244579,750,A.B.C. Taxis Oxford
http://statistics.data.gov.uk/id/local-authority/38,Oxfordshire County Council,Education & Early Intervention,Bicester SEN Trans,Contract Hire/Leasing,33101,Home to School Trans,01/04/2011,3301244582,920,A.B.C. Taxis Oxford
http://statistics.data.gov.uk/id/local-authority/38,Oxfordshire County Council,Education & Early Intervention,Bicester SEN Trans,Contract Hire/Leasing,33300,Transport (General),01/04/2011,3301244583,575,A.B.C. Taxis Oxford
http://statistics.data.gov.uk/id/local-authority/38,Oxfordshire County Council,Education & Early Intervention,Meadowbrook Transprt,Contract Hire/Leasing,33101,Home to School Trans,01/04/2011,3301244584,1391,SJB Cars
http://statistics.data.gov.uk/id/local-authority/38,Oxfordshire County Council,Education & Early Intervention,Meadowbrook Transprt,Contract Hire/Leasing,33101,Home to School Trans,01/04/2011,3301244585,1311,SJB Cars
http://statistics.data.gov.uk/id/local-authority/38,Oxfordshire County Council,Education & Early Intervention,Meadowbrook Transprt,Contract Hire/Leasing,33101,Home to School Trans,01/04/2011,3301244586,1066,SJB Cars
http://statistics.data.gov.uk/id/local-authority/38,Oxfordshire County Council,Education & Early Intervention,Oxford Sth SEN Trans,Contract Hire/Leasing,33101,Home to School Trans,01/04/2011,3301244587,1195,SJB Cars
http://statistics.data.gov.uk/id/local-authority/38,Oxfordshire County Council,Education & Early Intervention,Meadowbrook Transprt,Contract Hire/Leasing,33101,Home to School Trans,01/04/2011,3301244588,1170,Peter Nye
http://statistics.data.gov.uk/id/local-authority/38,Oxfordshire County Council,Education & Early Intervention,Zone 1 - North,Contract Hire/Leasing,33101,Home to School Trans,01/04/2011,3301244589,800,Tex Cars Chauffeur Hire
http://statistics.data.gov.uk/id/local-authority/38,Oxfordshire County Council,Education & Early Intervention,Zone 1 - North,Contract Hire/Leasing,33101,Home to School Trans,01/04/2011,3301244590,800,Tex Cars Chauffeur Hire
http://statistics.data.gov.uk/id/local-authority/38,Oxfordshire County Council,Education & Early Intervention,Zone 1 - North,Contract Hire/Leasing,33101,Home to School Trans,01/04/2011,3301244591,800,Tex Cars Chauffeur Hire
http://statistics.data.gov.uk/id/local-authority/38,Oxfordshire County Council,Education & Early Intervention,Out of County,Contract Hire/Leasing,33101,Home to School Trans,01/04/2011,3301244597,5365.53,Warwickshire County Council
http://statistics.data.gov.uk/id/local-authority/38,Oxfordshire County Council,Education & Early Intervention,Oxford Sth SEN Trans,Contract Hire/Leasing,33101,Home to School Trans,01/04/2011,3301244601,750,Monarch Oxford
http://statistics.data.gov.uk/id/local-authority/38,Oxfordshire County Council,Education & Early Intervention,FE Special Trans,Contract Hire/Leasing,33101,Home to School Trans,01/04/2011,3301244603,500,Monarch Oxford
http://statistics.data.gov.uk/id/local-authority/38,Oxfordshire County Council,Education & Early Intervention,Zone 2 - East,Contract Hire/Leasing,33101,Home to School Trans,01/04/2011,3301244606,1725,Whites Coaches Ltd
http://statistics.data.gov.uk/id/local-authority/38,Oxfordshire County Council,Education & Early Intervention,Zone 4 - Vale,Contract Hire/Leasing,33101,Home to School Trans,01/04/2011,3301244607,2018.4,Whites Coaches Ltd
http://statistics.data.gov.uk/id/local-authority/38,Oxfordshire County Council,Education & Early Intervention,Zone 4 - Vale,Contract Hire/Leasing,33101,Home to School Trans,01/04/2011,3301244608,2081.1,Whites Coaches Ltd
http://statistics.data.gov.uk/id/local-authority/38,Oxfordshire County Council,Education & Early Intervention,Zone 2 - East,Contract Hire/Leasing,33101,Home to School Trans,01/04/2011,3301244609,1575,Whites Coaches Ltd
http://statistics.data.gov.uk/id/local-authority/38,Oxfordshire County Council,Education & Early Intervention,Oxford Sth SEN Trans,Contract Hire/Leasing,33101,Home to School Trans,01/04/2011,3301244610,1919.35,J.Dhanjal Transport Ltd
http://statistics.data.gov.uk/id/local-authority/38,Oxfordshire County Council,Education & Early Intervention,Oxford Sth SEN Trans,Contract Hire/Leasing,33300,Transport (General),01/04/2011,3301244611,599.84,J.Dhanjal Transport Ltd
http://statistics.data.gov.uk/id/local-authority/38,Oxfordshire County Council,Education & Early Intervention,Zone 5 - South,Contract Hire/Leasing,33101,Home to School Trans,01/04/2011,3301244612,3790.63,J.Dhanjal Transport Ltd
http://statistics.data.gov.uk/id/local-authority/38,Oxfordshire County Council,Education & Early Intervention,Zone 5 - South,Contract Hire/Leasing,33101,Home to School Trans,01/04/2011,3301244613,4246.49,J.Dhanjal Transport Ltd
http://statistics.data.gov.uk/id/local-authority/38,Oxfordshire County Council,Education & Early Intervention,Zone 3 - West,Contract Hire/Leasing,33101,Home to School Trans,01/04/2011,3301244614,2183.3,J.Dhanjal Transport Ltd
http://statistics.data.gov.uk/id/local-authority/38,Oxfordshire County Council,Education & Early Intervention,Zone 3 - West,Contract Hire/Leasing,33101,Home to School Trans,01/04/2011,3301244615,2205,J.Dhanjal Transport Ltd
http://statistics.data.gov.uk/id/local-authority/38,Oxfordshire County Council,Education & Early Intervention,Zone 4 - Vale,Contract Hire/Leasing,33101,Home to School Trans,01/04/2011,3301244616,4025,J.Dhanjal Transport Ltd
http://statistics.data.gov.uk/id/local-authority/38,Oxfordshire County Council,Education & Early Intervention,Zone 4 - Vale,Contract Hire/Leasing,33101,Home to School Trans,01/04/2011,3301244617,3769.7,J.Dhanjal Transport Ltd
http://statistics.data.gov.uk/id/local-authority/38,Oxfordshire County Council,Education & Early Intervention,Zone 3 - West,Contract Hire/Leasing,33101,Home to School Trans,01/04/2011,3301244618,626.76,Charlie's Taxis Ltd
http://statistics.data.gov.uk/id/local-authority/38,Oxfordshire County Council,Education & Early Intervention,Oxford Sth SEN Trans,Contract Hire/Leasing,33101,Home to School Trans,01/04/2011,3301244621,560,Abingdon Taxis
http://statistics.data.gov.uk/id/local-authority/38,Oxfordshire County Council,Education & Early Intervention,Zone 2 - East,Contract Hire/Leasing,33101,Home to School Trans,01/04/2011,3301244624,3417.11,Grayline Coaches
http://statistics.data.gov.uk/id/local-authority/38,Oxfordshire County Council,Education & Early Intervention,Zone 2 - East,Contract Hire/Leasing,33101,Home to School Trans,01/04/2011,3301244625,3187.11,Grayline Coaches
http://statistics.data.gov.uk/id/local-authority/38,Oxfordshire County Council,Education & Early Intervention,Zone 2 - East,Contract Hire/Leasing,33101,Home to School Trans,01/04/2011,3301244626,2973.21,Grayline Coaches
http://statistics.data.gov.uk/id/local-authority/38,Oxfordshire County Council,Education & Early Intervention,Zone 2 - East,Contract Hire/Leasing,33101,Home to School Trans,01/04/2011,3301244627,3187.11,Grayline Coaches
http://statistics.data.gov.uk/id/local-authority/38,Oxfordshire County Council,Education & Early Intervention,Zone 2 - East,Contract Hire/Leasing,33101,Home to School Trans,01/04/2011,3301244628,2887.65,Grayline Coaches
http://statistics.data.gov.uk/id/local-authority/38,Oxfordshire County Council,Education & Early Intervention,Zone 2 - East,Contract Hire/Leasing,33101,Home to School Trans,01/04/2011,3301244629,3187.11,Grayline Coaches
http://statistics.data.gov.uk/id/local-authority/38,Oxfordshire County Council,Education & Early Intervention,Zone 2 - East,Contract Hire/Leasing,33101,Home to School Trans,01/04/2011,3301244630,2973.21,Grayline Coaches
http://statistics.data.gov.uk/id/local-authority/38,Oxfordshire County Council,Education & Early Intervention,Zone 2 - East,Contract Hire/Leasing,33101,Home to School Trans,01/04/2011,3301244631,3187.11,Grayline Coaches
http://statistics.data.gov.uk/id/local-authority/38,Oxfordshire County Council,Education & Early Intervention,Zone 2 - East,Contract Hire/Leasing,33101,Home to School Trans,01/04/2011,3301244632,3187.11,Grayline Coaches
http://statistics.data.gov.uk/id/local-authority/38,Oxfordshire County Council,Education & Early Intervention,Zone 2 - East,Contract Hire/Leasing,33101,Home to School Trans,01/04/2011,3301244633,2973.21,Grayline Coaches
http://statistics.data.gov.uk/id/local-authority/38,Oxfordshire County Council,Education & Early Intervention,Zone 2 - East,Contract Hire/Leasing,33101,Home to School Trans,01/04/2011,3301244634,3427,Grayline Coaches
http://statistics.data.gov.uk/id/local-authority/38,Oxfordshire County Council,Education & Early Intervention,Zone 1 - North,Contract Hire/Leasing,33101,Home to School Trans,01/04/2011,3301244637,5091.97,Jeffs Coaches Limited
http://statistics.data.gov.uk/id/local-authority/38,Oxfordshire County Council,Education & Early Intervention,Zone 1 - North,Contract Hire/Leasing,33101,Home to School Trans,01/04/2011,3301244638,5557.03,Jeffs Coaches Limited
http://statistics.data.gov.uk/id/local-authority/38,Oxfordshire County Council,Education & Early Intervention,Zone 2 - East,Contract Hire/Leasing,33101,Home to School Trans,01/04/2011,3301244639,797.41,Jeffs Coaches Limited
http://statistics.data.gov.uk/id/local-authority/38,Oxfordshire County Council,Education & Early Intervention,Zone 1 - North,Contract Hire/Leasing,33101,Home to School Trans,01/04/2011,3301244640,5557.03,Jeffs Coaches Limited
http://statistics.data.gov.uk/id/local-authority/38,Oxfordshire County Council,Education & Early Intervention,Zone 1 - North,Contract Hire/Leasing,33101,Home to School Trans,01/04/2011,3301244641,3714.96,Jeffs Coaches Limited
http://statistics.data.gov.uk/id/local-authority/38,Oxfordshire County Council,Education & Early Intervention,Zone 1 - North,Contract Hire/Leasing,33101,Home to School Trans,01/04/2011,3301244642,3714.96,Jeffs Coaches Limited
http://statistics.data.gov.uk/id/local-authority/38,Oxfordshire County Council,Education & Early Intervention,Zone 1 - North,Contract Hire/Leasing,33101,Home to School Trans,01/04/2011,3301244643,4417.61,Jeffs Coaches Limited
http://statistics.data.gov.uk/id/local-authority/38,Oxfordshire County Council,Education & Early Intervention,Zone 2 - East,Contract Hire/Leasing,33101,Home to School Trans,01/04/2011,3301244644,420,Education & Youth Services Ltd
http://statistics.data.gov.uk/id/local-authority/38,Oxfordshire County Council,Education & Early Intervention,Zone 2 - East,Contract Hire/Leasing,33101,Home to School Trans,01/04/2011,3301244645,700,Education & Youth Services Ltd
http://statistics.data.gov.uk/id/local-authority/38,Oxfordshire County Council,Education & Early Intervention,Zone 2 - East,Contract Hire/Leasing,33101,Home to School Trans,01/04/2011,3301244646,700,Education & Youth Services Ltd
http://statistics.data.gov.uk/id/local-authority/38,Oxfordshire County Council,Education & Early Intervention,Zone 3 - West,Contract Hire/Leasing,33101,Home to School Trans,01/04/2011,3301244647,560,Education & Youth Services Ltd
http://statistics.data.gov.uk/id/local-authority/38,Oxfordshire County Council,Education & Early Intervention,Zone 3 - West,Contract Hire/Leasing,33101,Home to School Trans,01/04/2011,3301244648,630,Education & Youth Services Ltd
http://statistics.data.gov.uk/id/local-authority/38,Oxfordshire County Council,Education & Early Intervention,Zone 1 - North,Contract Hire/Leasing,33101,Home to School Trans,01/04/2011,3301244649,980,Education & Youth Services Ltd
http://statistics.data.gov.uk/id/local-authority/38,Oxfordshire County Council,Education & Early Intervention,Zone 2 - East,Contract Hire/Leasing,33101,Home to School Trans,01/04/2011,3301244650,1680,Education & Youth Services Ltd
http://statistics.data.gov.uk/id/local-authority/38,Oxfordshire County Council,Education & Early Intervention,Zone 2 - East,Contract Hire/Leasing,33101,Home to School Trans,01/04/2011,3301244651,1288,Airport Transfers Banbury
http://statistics.data.gov.uk/id/local-authority/38,Oxfordshire County Council,Education & Early Intervention,Zone 2 - East,Contract Hire/Leasing,33101,Home to School Trans,01/04/2011,3301244652,1265,Airport Transfers Banbury
http://statistics.data.gov.uk/id/local-authority/38,Oxfordshire County Council,Education & Early Intervention,Zone 1 - North,Contract Hire/Leasing,33101,Home to School Trans,01/04/2011,3301244653,1139.19,Airport Transfers Banbury
http://statistics.data.gov.uk/id/local-authority/38,Oxfordshire County Council,Education & Early Intervention,Zone 2 - East,Contract Hire/Leasing,33101,Home to School Trans,01/04/2011,3301244656,1638.75,Airport Transfers Banbury
http://statistics.data.gov.uk/id/local-authority/38,Oxfordshire County Council,Education & Early Intervention,Zone 1 - North,Contract Hire/Leasing,33101,Home to School Trans,01/04/2011,3301244657,2299.54,Airport Transfers Banbury
http://statistics.data.gov.uk/id/local-authority/38,Oxfordshire County Council,Education & Early Intervention,Zone 1 - North,Contract Hire/Leasing,33101,Home to School Trans,01/04/2011,3301244658,2062.41,Airport Transfers Banbury
http://statistics.data.gov.uk/id/local-authority/38,Oxfordshire County Council,Education & Early Intervention,Zone 1 - North,Contract Hire/Leasing,33101,Home to School Trans,01/04/2011,3301244659,1601.03,Airport Transfers Banbury
http://statistics.data.gov.uk/id/local-authority/38,Oxfordshire County Council,Education & Early Intervention,Oxford Nth SEN Trans,Contract Hire/Leasing,33101,Home to School Trans,01/04/2011,3301244660,2300,Premier Taxis Abingdon Ltd
http://statistics.data.gov.uk/id/local-authority/38,Oxfordshire County Council,Education & Early Intervention,Oxford Nth SEN Trans,Contract Hire/Leasing,33101,Home to School Trans,01/04/2011,3301244661,2300,Premier Taxis Abingdon Ltd
http://statistics.data.gov.uk/id/local-authority/38,Oxfordshire County Council,Education & Early Intervention,Abingdon SEN Trans,Contract Hire/Leasing,33101,Home to School Trans,01/04/2011,3301244662,1495,Premier Taxis Abingdon Ltd
http://statistics.data.gov.uk/id/local-authority/38,Oxfordshire County Council,Education & Early Intervention,Abingdon SEN Trans,Contract Hire/Leasing,33101,Home to School Trans,01/04/2011,3301244663,1738,Premier Taxis Abingdon Ltd
http://statistics.data.gov.uk/id/local-authority/38,Oxfordshire County Council,Education & Early Intervention,Wantage SEN Trans,Contract Hire/Leasing,33101,Home to School Trans,01/04/2011,3301244666,920,J.S. Hendry
http://statistics.data.gov.uk/id/local-authority/38,Oxfordshire County Council,SCS Pooled Budgets,Community Support Budget - City,Other Agency and Contracted Services,57401,Direct Payments,04/04/2011,3301244928,-789.34,REDACTED PERSONAL DATA
http://statistics.data.gov.uk/id/local-authority/38,Oxfordshire County Council,SCS Pooled Budgets,PD Comm Supp Purchasg Budget - City,Other Agency and Contracted Services,57401,Direct Payments,04/04/2011,3301244928,1540,REDACTED PERSONAL DATA
http://statistics.data.gov.uk/id/local-authority/38,Oxfordshire County Council,Education & Early Intervention,Yenworthy Lodge,Contract Hire/Leasing,33103,Transport to Centres,04/04/2011,3301245924,1100,Tappins Coaches
http://statistics.data.gov.uk/id/local-authority/38,Oxfordshire County Council,Education & Early Intervention,Woodlands Centre,Contract Hire/Leasing,33103,Transport to Centres,04/04/2011,3301245925,1232.8,Tappins Coaches
http://statistics.data.gov.uk/id/local-authority/38,Oxfordshire County Council,Education & Early Intervention,Kilvrough Manor,Contract Hire/Leasing,33103,Transport to Centres,04/04/2011,3301245926,1130,Tappins Coaches
http://statistics.data.gov.uk/id/local-authority/38,Oxfordshire County Council,Education & Early Intervention,Kilvrough Manor,Contract Hire/Leasing,33103,Transport to Centres,04/04/2011,3301245927,1130,Tappins Coaches
http://statistics.data.gov.uk/id/local-authority/38,Oxfordshire County Council,Education & Early Intervention,Woodlands Centre,Contract Hire/Leasing,33103,Transport to Centres,04/04/2011,3301245928,920,Tappins Coaches
http://statistics.data.gov.uk/id/local-authority/38,Oxfordshire County Council,Education & Early Intervention,Yenworthy Lodge,Contract Hire/Leasing,33103,Transport to Centres,04/04/2011,3301245929,1100,Tappins Coaches
http://statistics.data.gov.uk/id/local-authority/38,Oxfordshire County Council,Education & Early Intervention,Woodlands Centre,Contract Hire/Leasing,33103,Transport to Centres,04/04/2011,3301245930,920,Tappins Coaches
http://statistics.data.gov.uk/id/local-authority/38,Oxfordshire County Council,Education & Early Intervention,Yenworthy Lodge,Contract Hire/Leasing,33103,Transport to Centres,04/04/2011,3301245931,1100,Tappins Coaches
http://statistics.data.gov.uk/id/local-authority/38,Oxfordshire County Council,In-House,Miscellaneous,Pension Fund Balance Sheet,PB810,Give As You Earn,04/04/2011,3301246055,634,Charities Aid Foundation
http://statistics.data.gov.uk/id/local-authority/38,Oxfordshire County Council,In-House,Miscellaneous,Pension Fund Balance Sheet,PB806,Court Order Deductions,04/04/2011,3301246061,647.75,CHILD SUPPORT AGENCY
http://statistics.data.gov.uk/id/local-authority/38,Oxfordshire County Council,Education & Early Intervention,Oxford Sth SEN Trans,Contract Hire/Leasing,33101,Home to School Trans,05/04/2011,3301247245,1610,S S Taxi
http://statistics.data.gov.uk/id/local-authority/38,Oxfordshire County Council,Education & Early Intervention,Oxford Sth SEN Trans,Contract Hire/Leasing,33300,Transport (General),05/04/2011,3301247246,690,S S Taxi
http://statistics.data.gov.uk/id/local-authority/38,Oxfordshire County Council,Education & Early Intervention,Oxford Sth SEN Trans,Contract Hire/Leasing,33101,Home to School Trans,05/04/2011,3301247247,2070,S S Taxi
http://statistics.data.gov.uk/id/local-authority/38,Oxfordshire County Council,Education & Early Intervention,Abingdon SEN Trans,Contract Hire/Leasing,33101,Home to School Trans,05/04/2011,3301247250,1380,S S Taxi
http://statistics.data.gov.uk/id/local-authority/38,Oxfordshire County Council,Education & Early Intervention,Abingdon SEN Trans,Contract Hire/Leasing,33300,Transport (General),05/04/2011,3301247251,460,S S Taxi
http://statistics.data.gov.uk/id/local-authority/38,Oxfordshire County Council,Education & Early Intervention,Oxford Sth SEN Trans,Contract Hire/Leasing,33101,Home to School Trans,05/04/2011,3301247252,1150,S S Taxi
http://statistics.data.gov.uk/id/local-authority/38,Oxfordshire County Council,Education & Early Intervention,Oxford Sth SEN Trans,Contract Hire/Leasing,33300,Transport (General),05/04/2011,3301247253,460,S S Taxi
http://statistics.data.gov.uk/id/local-authority/38,Oxfordshire County Council,Education & Early Intervention,Oxford Nth SEN Trans,Contract Hire/Leasing,33101,Home to School Trans,05/04/2011,3301247254,1495,S S Taxi
http://statistics.data.gov.uk/id/local-authority/38,Oxfordshire County Council,Education & Early Intervention,Oxford Sth SEN Trans,Contract Hire/Leasing,33101,Home to School Trans,05/04/2011,3301247255,920,S S Taxi
http://statistics.data.gov.uk/id/local-authority/38,Oxfordshire County Council,Education & Early Intervention,Oxford Sth SEN Trans,Contract Hire/Leasing,33300,Transport (General),05/04/2011,3301247256,460,S S Taxi
http://statistics.data.gov.uk/id/local-authority/38,Oxfordshire County Council,Education & Early Intervention,FE Special Trans,Contract Hire/Leasing,33101,Home to School Trans,05/04/2011,3301247257,1380,S S Taxi
http://statistics.data.gov.uk/id/local-authority/38,Oxfordshire County Council,Education & Early Intervention,Oxford Sth SEN Trans,Contract Hire/Leasing,33101,Home to School Trans,05/04/2011,3301247258,920,S S Taxi
http://statistics.data.gov.uk/id/local-authority/38,Oxfordshire County Council,Education & Early Intervention,Temporary Transport,Contract Hire/Leasing,33101,Home to School Trans,05/04/2011,3301247259,900,S S Taxi
http://statistics.data.gov.uk/id/local-authority/38,Oxfordshire County Council,Education & Early Intervention,Meadowbrook Transprt,Contract Hire/Leasing,33101,Home to School Trans,05/04/2011,3301247260,880,S S Taxi
http://statistics.data.gov.uk/id/local-authority/38,Oxfordshire County Council,Education & Early Intervention,Oxford Nth SEN Trans,Contract Hire/Leasing,33101,Home to School Trans,05/04/2011,3301247261,700,S S Taxi
http://statistics.data.gov.uk/id/local-authority/38,Oxfordshire County Council,Education & Early Intervention,Oxford Nth SEN Trans,Contract Hire/Leasing,33101,Home to School Trans,05/04/2011,3301247265,2300,Abingdon Taxis
http://statistics.data.gov.uk/id/local-authority/38,Oxfordshire County Council,Education & Early Intervention,Oxford Nth SEN Trans,Contract Hire/Leasing,33300,Transport (General),05/04/2011,3301247266,697.59,Abingdon Taxis
http://statistics.data.gov.uk/id/local-authority/38,Oxfordshire County Council,Education & Early Intervention,Zone 4 - Vale,Contract Hire/Leasing,33101,Home to School Trans,05/04/2011,3301247267,690,Abingdon Taxis
http://statistics.data.gov.uk/id/local-authority/38,Oxfordshire County Council,Education & Early Intervention,Zone 4 - Vale,Contract Hire/Leasing,33101,Home to School Trans,05/04/2011,3301247268,420,Abingdon Taxis
http://statistics.data.gov.uk/id/local-authority/38,Oxfordshire County Council,Education & Early Intervention,Zone 4 - Vale,Contract Hire/Leasing,33101,Home to School Trans,05/04/2011,3301247270,2039.41,Abingdon Taxis
http://statistics.data.gov.uk/id/local-authority/38,Oxfordshire County Council,Education & Early Intervention,Oxford Nth SEN Trans,Contract Hire/Leasing,33101,Home to School Trans,05/04/2011,3301247271,1824.13,Abingdon Taxis
http://statistics.data.gov.uk/id/local-authority/38,Oxfordshire County Council,Education & Early Intervention,Oxford Nth SEN Trans,Contract Hire/Leasing,33300,Transport (General),05/04/2011,3301247272,532.91,Abingdon Taxis
http://statistics.data.gov.uk/id/local-authority/38,Oxfordshire County Council,Education & Early Intervention,FE Special Trans,Contract Hire/Leasing,33101,Home to School Trans,05/04/2011,3301247273,2898,Excel Cars
http://statistics.data.gov.uk/id/local-authority/38,Oxfordshire County Council,Education & Early Intervention,FE Special Trans,Contract Hire/Leasing,33300,Transport (General),05/04/2011,3301247274,575,Excel Cars
http://statistics.data.gov.uk/id/local-authority/38,Oxfordshire County Council,Education & Early Intervention,FE Special Trans,Contract Hire/Leasing,33101,Home to School Trans,05/04/2011,3301247275,2744.77,Excel Cars
http://statistics.data.gov.uk/id/local-authority/38,Oxfordshire County Council,Education & Early Intervention,FE Special Trans,Contract Hire/Leasing,33300,Transport (General),05/04/2011,3301247276,575,Excel Cars
http://statistics.data.gov.uk/id/local-authority/38,Oxfordshire County Council,Education & Early Intervention,Oxford Nth SEN Trans,Contract Hire/Leasing,33101,Home to School Trans,05/04/2011,3301247278,3901.26,Excel Cars
http://statistics.data.gov.uk/id/local-authority/38,Oxfordshire County Council,Education & Early Intervention,Oxford Nth SEN Trans,Contract Hire/Leasing,33300,Transport (General),05/04/2011,3301247279,856.29,Excel Cars
http://statistics.data.gov.uk/id/local-authority/38,Oxfordshire County Council,Education & Early Intervention,Witney SEN Trans,Contract Hire/Leasing,33101,Home to School Trans,05/04/2011,3301247280,1610,Excel Cars
http://statistics.data.gov.uk/id/local-authority/38,Oxfordshire County Council,Education & Early Intervention,Witney SEN Trans,Contract Hire/Leasing,33300,Transport (General),05/04/2011,3301247281,517.5,Excel Cars
http://statistics.data.gov.uk/id/local-authority/38,Oxfordshire County Council,Education & Early Intervention,Witney SEN Trans,Contract Hire/Leasing,33101,Home to School Trans,05/04/2011,3301247282,1380,Excel Cars
http://statistics.data.gov.uk/id/local-authority/38,Oxfordshire County Council,Education & Early Intervention,Witney SEN Trans,Contract Hire/Leasing,33300,Transport (General),05/04/2011,3301247283,517.5,Excel Cars
http://statistics.data.gov.uk/id/local-authority/38,Oxfordshire County Council,Education & Early Intervention,Witney SEN Trans,Contract Hire/Leasing,33101,Home to School Trans,05/04/2011,3301247284,1495,Excel Cars
http://statistics.data.gov.uk/id/local-authority/38,Oxfordshire County Council,Education & Early Intervention,Witney SEN Trans,Contract Hire/Leasing,33300,Transport (General),05/04/2011,3301247285,517.5,Excel Cars
http://statistics.data.gov.uk/id/local-authority/38,Oxfordshire County Council,Education & Early Intervention,Witney SEN Trans,Contract Hire/Leasing,33101,Home to School Trans,05/04/2011,3301247286,2162,Excel Cars
http://statistics.data.gov.uk/id/local-authority/38,Oxfordshire County Council,Education & Early Intervention,Witney SEN Trans,Contract Hire/Leasing,33300,Transport (General),05/04/2011,3301247287,517.5,Excel Cars
http://statistics.data.gov.uk/id/local-authority/38,Oxfordshire County Council,Education & Early Intervention,Witney SEN Trans,Contract Hire/Leasing,33101,Home to School Trans,05/04/2011,3301247288,1564,Excel Cars
http://statistics.data.gov.uk/id/local-authority/38,Oxfordshire County Council,Education & Early Intervention,Witney SEN Trans,Contract Hire/Leasing,33300,Transport (General),05/04/2011,3301247289,517.5,Excel Cars
http://statistics.data.gov.uk/id/local-authority/38,Oxfordshire County Council,Education & Early Intervention,Witney SEN Trans,Contract Hire/Leasing,33101,Home to School Trans,05/04/2011,3301247290,1725,Excel Cars
http://statistics.data.gov.uk/id/local-authority/38,Oxfordshire County Council,Education & Early Intervention,Witney SEN Trans,Contract Hire/Leasing,33300,Transport (General),05/04/2011,3301247291,517.5,Excel Cars
http://statistics.data.gov.uk/id/local-authority/38,Oxfordshire County Council,Education & Early Intervention,Witney SEN Trans,Contract Hire/Leasing,33101,Home to School Trans,05/04/2011,3301247292,782,Excel Cars
http://statistics.data.gov.uk/id/local-authority/38,Oxfordshire County Council,Education & Early Intervention,Zone 3 - West,Contract Hire/Leasing,33101,Home to School Trans,05/04/2011,3301247294,480.13,Excel Cars
http://statistics.data.gov.uk/id/local-authority/38,Oxfordshire County Council,Education & Early Intervention,Zone 2 - East,Contract Hire/Leasing,33101,Home to School Trans,05/04/2011,3301247295,1840,Excel Cars
http://statistics.data.gov.uk/id/local-authority/38,Oxfordshire County Council,Education & Early Intervention,Respite Care,Contract Hire/Leasing,33101,Home to School Trans,05/04/2011,3301247296,807,Excel Cars
http://statistics.data.gov.uk/id/local-authority/38,Oxfordshire County Council,Education & Early Intervention,Respite Care,Contract Hire/Leasing,33101,Home to School Trans,05/04/2011,3301247297,1053,Excel Cars
http://statistics.data.gov.uk/id/local-authority/38,Oxfordshire County Council,Education & Early Intervention,Zone 3 - West,Contract Hire/Leasing,33101,Home to School Trans,05/04/2011,3301247298,969.75,Windrush Transport Ltd
http://statistics.data.gov.uk/id/local-authority/38,Oxfordshire County Council,Education & Early Intervention,Zone 4 - Vale,Contract Hire/Leasing,33101,Home to School Trans,05/04/2011,3301247299,2026.53,Windrush Transport Ltd
http://statistics.data.gov.uk/id/local-authority/38,Oxfordshire County Council,Education & Early Intervention,Witney SEN Trans,Contract Hire/Leasing,33101,Home to School Trans,05/04/2011,3301247302,2645,Windrush Transport Ltd
http://statistics.data.gov.uk/id/local-authority/38,Oxfordshire County Council,Education & Early Intervention,Witney SEN Trans,Contract Hire/Leasing,33300,Transport (General),05/04/2011,3301247303,1150,Windrush Transport Ltd
http://statistics.data.gov.uk/id/local-authority/38,Oxfordshire County Council,Education & Early Intervention,Banbury SEN Trans,Contract Hire/Leasing,33101,Home to School Trans,05/04/2011,3301247304,3410,Windrush Transport Ltd
http://statistics.data.gov.uk/id/local-authority/38,Oxfordshire County Council,Education & Early Intervention,Banbury SEN Trans,Contract Hire/Leasing,33300,Transport (General),05/04/2011,3301247305,880,Windrush Transport Ltd
http://statistics.data.gov.uk/id/local-authority/38,Oxfordshire County Council,Education & Early Intervention,Witney SEN Trans,Contract Hire/Leasing,33101,Home to School Trans,05/04/2011,3301247306,2530,Windrush Transport Ltd
http://statistics.data.gov.uk/id/local-authority/38,Oxfordshire County Council,Education & Early Intervention,Witney SEN Trans,Contract Hire/Leasing,33300,Transport (General),05/04/2011,3301247307,805,Windrush Transport Ltd
http://statistics.data.gov.uk/id/local-authority/38,Oxfordshire County Council,Education & Early Intervention,Witney SEN Trans,Contract Hire/Leasing,33101,Home to School Trans,05/04/2011,3301247308,2323,Windrush Transport Ltd
http://statistics.data.gov.uk/id/local-authority/38,Oxfordshire County Council,Education & Early Intervention,Witney SEN Trans,Contract Hire/Leasing,33300,Transport (General),05/04/2011,3301247309,805,Windrush Transport Ltd
http://statistics.data.gov.uk/id/local-authority/38,Oxfordshire County Council,Education & Early Intervention,Witney SEN Trans,Contract Hire/Leasing,33101,Home to School Trans,05/04/2011,3301247310,490,Windrush Transport Ltd
http://statistics.data.gov.uk/id/local-authority/38,Oxfordshire County Council,Education & Early Intervention,Zone 3 - West,Contract Hire/Leasing,33101,Home to School Trans,05/04/2011,3301247311,2589.82,Windrush Transport Ltd
http://statistics.data.gov.uk/id/local-authority/38,Oxfordshire County Council,Education & Early Intervention,Zone 3 - West,Contract Hire/Leasing,33101,Home to School Trans,05/04/2011,3301247312,984.96,Windrush Transport Ltd
http://statistics.data.gov.uk/id/local-authority/38,Oxfordshire County Council,Education & Early Intervention,Zone 3 - West,Contract Hire/Leasing,33101,Home to School Trans,05/04/2011,3301247313,1059.48,Windrush Transport Ltd
http://statistics.data.gov.uk/id/local-authority/38,Oxfordshire County Council,Education & Early Intervention,Zone 5 - South,Contract Hire/Leasing,33101,Home to School Trans,05/04/2011,3301247314,3569.14,Destinations Luxury Travel
http://statistics.data.gov.uk/id/local-authority/38,Oxfordshire County Council,Education & Early Intervention,Oxford Nth SEN Trans,Contract Hire/Leasing,33101,Home to School Trans,05/04/2011,3301247315,1794,C A Pittaway Transport
http://statistics.data.gov.uk/id/local-authority/38,Oxfordshire County Council,Education & Early Intervention,Oxford Nth SEN Trans,Contract Hire/Leasing,33300,Transport (General),05/04/2011,3301247316,460,C A Pittaway Transport
http://statistics.data.gov.uk/id/local-authority/38,Oxfordshire County Council,Education & Early Intervention,Oxford Sth SEN Trans,Contract Hire/Leasing,33101,Home to School Trans,05/04/2011,3301247317,1725,C A Pittaway Transport
http://statistics.data.gov.uk/id/local-authority/38,Oxfordshire County Council,Education & Early Intervention,Oxford Sth SEN Trans,Contract Hire/Leasing,33300,Transport (General),05/04/2011,3301247318,460,C A Pittaway Transport
http://statistics.data.gov.uk/id/local-authority/38,Oxfordshire County Council,Education & Early Intervention,Oxford Sth SEN Trans,Contract Hire/Leasing,33101,Home to School Trans,05/04/2011,3301247319,1380,N Sadiq
http://statistics.data.gov.uk/id/local-authority/38,Oxfordshire County Council,Education & Early Intervention,Oxford Nth SEN Trans,Contract Hire/Leasing,33101,Home to School Trans,05/04/2011,3301247320,2069.31,N Sadiq
http://statistics.data.gov.uk/id/local-authority/38,Oxfordshire County Council,Education & Early Intervention,FE Special Trans,Contract Hire/Leasing,33101,Home to School Trans,05/04/2011,3301247321,722,Crown Cabs
http://statistics.data.gov.uk/id/local-authority/38,Oxfordshire County Council,Education & Early Intervention,Out of County,Contract Hire/Leasing,33101,Home to School Trans,05/04/2011,3301247322,2990,Crown Cabs
http://statistics.data.gov.uk/id/local-authority/38,Oxfordshire County Council,Education & Early Intervention,Out of County,Contract Hire/Leasing,33300,Transport (General),05/04/2011,3301247323,681.5,Crown Cabs
http://statistics.data.gov.uk/id/local-authority/38,Oxfordshire County Council,Education & Early Intervention,Bicester SEN Trans,Contract Hire/Leasing,33101,Home to School Trans,05/04/2011,3301247324,3105,Luxicars Ltd
http://statistics.data.gov.uk/id/local-authority/38,Oxfordshire County Council,Education & Early Intervention,Bicester SEN Trans,Contract Hire/Leasing,33300,Transport (General),05/04/2011,3301247325,506,Luxicars Ltd
http://statistics.data.gov.uk/id/local-authority/38,Oxfordshire County Council,Education & Early Intervention,Bicester SEN Trans,Contract Hire/Leasing,33101,Home to School Trans,05/04/2011,3301247326,2875,Luxicars Ltd
http://statistics.data.gov.uk/id/local-authority/38,Oxfordshire County Council,Education & Early Intervention,Bicester SEN Trans,Contract Hire/Leasing,33300,Transport (General),05/04/2011,3301247327,690,Luxicars Ltd
http://statistics.data.gov.uk/id/local-authority/38,Oxfordshire County Council,Education & Early Intervention,Bicester SEN Trans,Contract Hire/Leasing,33101,Home to School Trans,05/04/2011,3301247328,3105,Luxicars Ltd
http://statistics.data.gov.uk/id/local-authority/38,Oxfordshire County Council,Education & Early Intervention,Bicester SEN Trans,Contract Hire/Leasing,33300,Transport (General),05/04/2011,3301247329,506,Luxicars Ltd
http://statistics.data.gov.uk/id/local-authority/38,Oxfordshire County Council,Education & Early Intervention,Bicester SEN Trans,Contract Hire/Leasing,33101,Home to School Trans,05/04/2011,3301247330,3105,Luxicars Ltd
http://statistics.data.gov.uk/id/local-authority/38,Oxfordshire County Council,Education & Early Intervention,Bicester SEN Trans,Contract Hire/Leasing,33300,Transport (General),05/04/2011,3301247331,506,Luxicars Ltd
http://statistics.data.gov.uk/id/local-authority/38,Oxfordshire County Council,Education & Early Intervention,Abingdon SEN Trans,Contract Hire/Leasing,33101,Home to School Trans,05/04/2011,3301247332,2760,Luxicars Ltd
http://statistics.data.gov.uk/id/local-authority/38,Oxfordshire County Council,Education & Early Intervention,Abingdon SEN Trans,Contract Hire/Leasing,33300,Transport (General),05/04/2011,3301247333,690,Luxicars Ltd
http://statistics.data.gov.uk/id/local-authority/38,Oxfordshire County Council,Education & Early Intervention,Abingdon SEN Trans,Contract Hire/Leasing,33101,Home to School Trans,05/04/2011,3301247334,2990,Luxicars Ltd
http://statistics.data.gov.uk/id/local-authority/38,Oxfordshire County Council,Education & Early Intervention,Abingdon SEN Trans,Contract Hire/Leasing,33300,Transport (General),05/04/2011,3301247335,690,Luxicars Ltd
http://statistics.data.gov.uk/id/local-authority/38,Oxfordshire County Council,Education & Early Intervention,Oxford Nth SEN Trans,Contract Hire/Leasing,33101,Home to School Trans,05/04/2011,3301247336,2879.14,Luxicars Ltd
http://statistics.data.gov.uk/id/local-authority/38,Oxfordshire County Council,Education & Early Intervention,Oxford Nth SEN Trans,Contract Hire/Leasing,33300,Transport (General),05/04/2011,3301247337,599.84,Luxicars Ltd
http://statistics.data.gov.uk/id/local-authority/38,Oxfordshire County Council,Education & Early Intervention,Oxford Sth SEN Trans,Contract Hire/Leasing,33101,Home to School Trans,05/04/2011,3301247338,2639.25,Luxicars Ltd
http://statistics.data.gov.uk/id/local-authority/38,Oxfordshire County Council,Education & Early Intervention,Oxford Sth SEN Trans,Contract Hire/Leasing,33300,Transport (General),05/04/2011,3301247339,719.9,Luxicars Ltd
http://statistics.data.gov.uk/id/local-authority/38,Oxfordshire County Council,Education & Early Intervention,Oxford Nth SEN Trans,Contract Hire/Leasing,33101,Home to School Trans,05/04/2011,3301247340,2759.08,Luxicars Ltd
http://statistics.data.gov.uk/id/local-authority/38,Oxfordshire County Council,Education & Early Intervention,Oxford Nth SEN Trans,Contract Hire/Leasing,33300,Transport (General),05/04/2011,3301247341,534.98,Luxicars Ltd
http://statistics.data.gov.uk/id/local-authority/38,Oxfordshire County Council,Education & Early Intervention,Oxford Nth SEN Trans,Contract Hire/Leasing,33101,Home to School Trans,05/04/2011,3301247342,3220,Luxicars Ltd
http://statistics.data.gov.uk/id/local-authority/38,Oxfordshire County Council,Education & Early Intervention,Oxford Nth SEN Trans,Contract Hire/Leasing,33300,Transport (General),05/04/2011,3301247343,690,Luxicars Ltd
http://statistics.data.gov.uk/id/local-authority/38,Oxfordshire County Council,Education & Early Intervention,Oxford Nth SEN Trans,Contract Hire/Leasing,33101,Home to School Trans,05/04/2011,3301247344,1971.48,Luxicars Ltd
http://statistics.data.gov.uk/id/local-authority/38,Oxfordshire County Council,Education & Early Intervention,Oxford Sth SEN Trans,Contract Hire/Leasing,33101,Home to School Trans,05/04/2011,3301247346,3460.35,Luxicars Ltd
http://statistics.data.gov.uk/id/local-authority/38,Oxfordshire County Council,Education & Early Intervention,Oxford Sth SEN Trans,Contract Hire/Leasing,33300,Transport (General),05/04/2011,3301247347,599.84,Luxicars Ltd
http://statistics.data.gov.uk/id/local-authority/38,Oxfordshire County Council,Education & Early Intervention,Wantage SEN Trans,Contract Hire/Leasing,33101,Home to School Trans,05/04/2011,3301247348,2964.47,Luxicars Ltd
http://statistics.data.gov.uk/id/local-authority/38,Oxfordshire County Council,Education & Early Intervention,Witney SEN Trans,Contract Hire/Leasing,33101,Home to School Trans,05/04/2011,3301247349,1955,Luxicars Ltd
http://statistics.data.gov.uk/id/local-authority/38,Oxfordshire County Council,Education & Early Intervention,Witney SEN Trans,Contract Hire/Leasing,33300,Transport (General),05/04/2011,3301247350,460,Luxicars Ltd
http://statistics.data.gov.uk/id/local-authority/38,Oxfordshire County Council,Education & Early Intervention,Witney SEN Trans,Contract Hire/Leasing,33101,Home to School Trans,05/04/2011,3301247351,2677.2,Luxicars Ltd
http://statistics.data.gov.uk/id/local-authority/38,Oxfordshire County Council,Education & Early Intervention,Witney SEN Trans,Contract Hire/Leasing,33300,Transport (General),05/04/2011,3301247352,505.08,Luxicars Ltd
http://statistics.data.gov.uk/id/local-authority/38,Oxfordshire County Council,SCS Pooled Budgets,LD CMPB - South Transport,Public Transport,34200,Client Journeys,05/04/2011,3301247353,1800,Luxicars Ltd
http://statistics.data.gov.uk/id/local-authority/38,Oxfordshire County Council,Education & Early Intervention,Zone 2 - East,Contract Hire/Leasing,33101,Home to School Trans,05/04/2011,3301247354,1840,Luxicars Ltd
http://statistics.data.gov.uk/id/local-authority/38,Oxfordshire County Council,Education & Early Intervention,Zone 2 - East,Contract Hire/Leasing,33101,Home to School Trans,05/04/2011,3301247355,2300,Luxicars Ltd
http://statistics.data.gov.uk/id/local-authority/38,Oxfordshire County Council,Education & Early Intervention,Mainstream Misc,Contract Hire/Leasing,33101,Home to School Trans,05/04/2011,3301247356,2760,Luxicars Ltd
http://statistics.data.gov.uk/id/local-authority/38,Oxfordshire County Council,Education & Early Intervention,Zone 2 - East,Contract Hire/Leasing,33101,Home to School Trans,05/04/2011,3301247357,1380,Luxicars Ltd
http://statistics.data.gov.uk/id/local-authority/38,Oxfordshire County Council,Education & Early Intervention,Oxford Sth SEN Trans,Contract Hire/Leasing,33101,Home to School Trans,05/04/2011,3301247359,2580.29,D and A Nichols
http://statistics.data.gov.uk/id/local-authority/38,Oxfordshire County Council,Education & Early Intervention,Oxford Sth SEN Trans,Contract Hire/Leasing,33101,Home to School Trans,05/04/2011,3301247360,2092.54,D and A Nichols
http://statistics.data.gov.uk/id/local-authority/38,Oxfordshire County Council,Education & Early Intervention,Oxford Sth SEN Trans,Contract Hire/Leasing,33101,Home to School Trans,05/04/2011,3301247361,1860.01,D and A Nichols
http://statistics.data.gov.uk/id/local-authority/38,Oxfordshire County Council,Education & Early Intervention,Oxford Sth SEN Trans,Contract Hire/Leasing,33300,Transport (General),05/04/2011,3301247362,465.06,D and A Nichols
http://statistics.data.gov.uk/id/local-authority/38,Oxfordshire County Council,Education & Early Intervention,FE Special Trans,Contract Hire/Leasing,33101,Home to School Trans,05/04/2011,3301247363,1410,D and A Nichols
http://statistics.data.gov.uk/id/local-authority/38,Oxfordshire County Council,Education & Early Intervention,FE Special Trans,Contract Hire/Leasing,33101,Home to School Trans,05/04/2011,3301247364,1472,D and A Nichols
http://statistics.data.gov.uk/id/local-authority/38,Oxfordshire County Council,Education & Early Intervention,Abingdon SEN Trans,Contract Hire/Leasing,33101,Home to School Trans,05/04/2011,3301247365,1541,C V O'Sullivan
http://statistics.data.gov.uk/id/local-authority/38,Oxfordshire County Council,Education & Early Intervention,FE Special Trans,Contract Hire/Leasing,33101,Home to School Trans,05/04/2011,3301247367,1520,C V O'Sullivan
http://statistics.data.gov.uk/id/local-authority/38,Oxfordshire County Council,Education & Early Intervention,FE Special Trans,Contract Hire/Leasing,33300,Transport (General),05/04/2011,3301247368,570,C V O'Sullivan
http://statistics.data.gov.uk/id/local-authority/38,Oxfordshire County Council,Education & Early Intervention,Abingdon SEN Trans,Contract Hire/Leasing,33101,Home to School Trans,05/04/2011,3301247369,736,C V O'Sullivan
http://statistics.data.gov.uk/id/local-authority/38,Oxfordshire County Council,Education & Early Intervention,Abingdon SEN Trans,Contract Hire/Leasing,33101,Home to School Trans,05/04/2011,3301247371,1307.9,C V O'Sullivan
http://statistics.data.gov.uk/id/local-authority/38,Oxfordshire County Council,Education & Early Intervention,Abingdon SEN Trans,Contract Hire/Leasing,33101,Home to School Trans,05/04/2011,3301247373,604.44,C V O'Sullivan
http://statistics.data.gov.uk/id/local-authority/38,Oxfordshire County Council,Education & Early Intervention,FE Special Trans,Contract Hire/Leasing,33101,Home to School Trans,05/04/2011,3301247374,1352.4,C V O'Sullivan
http://statistics.data.gov.uk/id/local-authority/38,Oxfordshire County Council,SCS Pooled Budgets,LD CMPB - South Transport,Public Transport,34200,Client Journeys,05/04/2011,3301247375,901.6,C V O'Sullivan
http://statistics.data.gov.uk/id/local-authority/38,Oxfordshire County Council,Education & Early Intervention,Oxford Nth SEN Trans,Contract Hire/Leasing,33101,Home to School Trans,05/04/2011,3301247376,1126.58,C V O'Sullivan
http://statistics.data.gov.uk/id/local-authority/38,Oxfordshire County Council,Education & Early Intervention,FE Special Trans,Contract Hire/Leasing,33101,Home to School Trans,05/04/2011,3301247377,797.85,Compass Cars
http://statistics.data.gov.uk/id/local-authority/38,Oxfordshire County Council,SCS Pooled Budgets,LD CMPB - South Transport,Public Transport,34200,Client Journeys,05/04/2011,3301247378,880.65,Compass Cars
http://statistics.data.gov.uk/id/local-authority/38,Oxfordshire County Council,Education & Early Intervention,Oxford Sth SEN Trans,Contract Hire/Leasing,33101,Home to School Trans,05/04/2011,3301247379,2908.29,Transpiration Limited
http://statistics.data.gov.uk/id/local-authority/38,Oxfordshire County Council,Education & Early Intervention,Oxford Sth SEN Trans,Contract Hire/Leasing,33300,Transport (General),05/04/2011,3301247380,828.03,Transpiration Limited
http://statistics.data.gov.uk/id/local-authority/38,Oxfordshire County Council,Education & Early Intervention,FE Special Trans,Contract Hire/Leasing,33101,Home to School Trans,05/04/2011,3301247381,2025.24,Transpiration Limited
http://statistics.data.gov.uk/id/local-authority/38,Oxfordshire County Council,Education & Early Intervention,FE Special Trans,Contract Hire/Leasing,33300,Transport (General),05/04/2011,3301247382,513.52,Transpiration Limited
http://statistics.data.gov.uk/id/local-authority/38,Oxfordshire County Council,Education & Early Intervention,Oxford Sth SEN Trans,Contract Hire/Leasing,33101,Home to School Trans,05/04/2011,3301247383,3221.15,Transpiration Limited
http://statistics.data.gov.uk/id/local-authority/38,Oxfordshire County Council,Education & Early Intervention,Oxford Sth SEN Trans,Contract Hire/Leasing,33300,Transport (General),05/04/2011,3301247384,880.44,Transpiration Limited
http://statistics.data.gov.uk/id/local-authority/38,Oxfordshire County Council,Education & Early Intervention,Oxford Sth SEN Trans,Contract Hire/Leasing,33101,Home to School Trans,05/04/2011,3301247386,2296.8,Transpiration Limited
http://statistics.data.gov.uk/id/local-authority/38,Oxfordshire County Council,Education & Early Intervention,FE Special Trans,Contract Hire/Leasing,33101,Home to School Trans,05/04/2011,3301247387,2653.74,Transpiration Limited
http://statistics.data.gov.uk/id/local-authority/38,Oxfordshire County Council,Education & Early Intervention,FE Special Trans,Contract Hire/Leasing,33300,Transport (General),05/04/2011,3301247388,897,Transpiration Limited
http://statistics.data.gov.uk/id/local-authority/38,Oxfordshire County Council,SCS Pooled Budgets,LD CMPB - South Transport,Public Transport,34200,Client Journeys,05/04/2011,3301247389,727.26,Transpiration Limited
http://statistics.data.gov.uk/id/local-authority/38,Oxfordshire County Council,Education & Early Intervention,FE Special Trans,Contract Hire/Leasing,33101,Home to School Trans,05/04/2011,3301247390,3116.5,Transpiration Limited
http://statistics.data.gov.uk/id/local-authority/38,Oxfordshire County Council,Education & Early Intervention,FE Special Trans,Contract Hire/Leasing,33300,Transport (General),05/04/2011,3301247391,782,Transpiration Limited
http://statistics.data.gov.uk/id/local-authority/38,Oxfordshire County Council,Education & Early Intervention,S'Common SEN Trans,Contract Hire/Leasing,33101,Home to School Trans,05/04/2011,3301247392,2181.55,Transpiration Limited
http://statistics.data.gov.uk/id/local-authority/38,Oxfordshire County Council,Education & Early Intervention,S'Common SEN Trans,Contract Hire/Leasing,33300,Transport (General),05/04/2011,3301247393,697.13,Transpiration Limited
http://statistics.data.gov.uk/id/local-authority/38,Oxfordshire County Council,Education & Early Intervention,Oxford Sth SEN Trans,Contract Hire/Leasing,33101,Home to School Trans,05/04/2011,3301247396,2607.05,Transpiration Limited
http://statistics.data.gov.uk/id/local-authority/38,Oxfordshire County Council,Education & Early Intervention,Oxford Sth SEN Trans,Contract Hire/Leasing,33300,Transport (General),05/04/2011,3301247397,836.97,Transpiration Limited
http://statistics.data.gov.uk/id/local-authority/38,Oxfordshire County Council,Education & Early Intervention,FE Special Trans,Contract Hire/Leasing,33101,Home to School Trans,05/04/2011,3301247399,2116.35,Transpiration Limited
http://statistics.data.gov.uk/id/local-authority/38,Oxfordshire County Council,Education & Early Intervention,FE Special Trans,Contract Hire/Leasing,33300,Transport (General),05/04/2011,3301247400,681.97,Transpiration Limited
http://statistics.data.gov.uk/id/local-authority/38,Oxfordshire County Council,Education & Early Intervention,S'Common SEN Trans,Contract Hire/Leasing,33101,Home to School Trans,05/04/2011,3301247401,2401.2,Transpiration Limited
http://statistics.data.gov.uk/id/local-authority/38,Oxfordshire County Council,Education & Early Intervention,Out of County,Contract Hire/Leasing,33101,Home to School Trans,05/04/2011,3301247402,570,Southern Taxis (UK) Ltd
http://statistics.data.gov.uk/id/local-authority/38,Oxfordshire County Council,Education & Early Intervention,Zone 1 - North,Contract Hire/Leasing,33101,Home to School Trans,05/04/2011,3301247403,843.64,Ambassador Taxis Ltd
http://statistics.data.gov.uk/id/local-authority/38,Oxfordshire County Council,Education & Early Intervention,Banbury SEN Trans,Contract Hire/Leasing,33101,Home to School Trans,05/04/2011,3301247404,3758.26,Cheney Coaches Limited
http://statistics.data.gov.uk/id/local-authority/38,Oxfordshire County Council,Education & Early Intervention,Banbury SEN Trans,Contract Hire/Leasing,33300,Transport (General),05/04/2011,3301247405,1151.04,Cheney Coaches Limited
http://statistics.data.gov.uk/id/local-authority/38,Oxfordshire County Council,Education & Early Intervention,Banbury SEN Trans,Contract Hire/Leasing,33101,Home to School Trans,05/04/2011,3301247406,3563.12,Cheney Coaches Limited
http://statistics.data.gov.uk/id/local-authority/38,Oxfordshire County Council,Education & Early Intervention,Banbury SEN Trans,Contract Hire/Leasing,33300,Transport (General),05/04/2011,3301247407,879.12,Cheney Coaches Limited
http://statistics.data.gov.uk/id/local-authority/38,Oxfordshire County Council,Education & Early Intervention,Banbury SEN Trans,Contract Hire/Leasing,33101,Home to School Trans,05/04/2011,3301247408,4130.06,Cheney Coaches Limited
http://statistics.data.gov.uk/id/local-authority/38,Oxfordshire County Council,Education & Early Intervention,Banbury SEN Trans,Contract Hire/Leasing,33300,Transport (General),05/04/2011,3301247409,1099.12,Cheney Coaches Limited
http://statistics.data.gov.uk/id/local-authority/38,Oxfordshire County Council,Education & Early Intervention,Banbury SEN Trans,Contract Hire/Leasing,33101,Home to School Trans,05/04/2011,3301247410,3626.26,Cheney Coaches Limited
http://statistics.data.gov.uk/id/local-authority/38,Oxfordshire County Council,Education & Early Intervention,Banbury SEN Trans,Contract Hire/Leasing,33300,Transport (General),05/04/2011,3301247411,879.12,Cheney Coaches Limited
http://statistics.data.gov.uk/id/local-authority/38,Oxfordshire County Council,Education & Early Intervention,Banbury SEN Trans,Contract Hire/Leasing,33101,Home to School Trans,05/04/2011,3301247412,1002.75,Cheney Coaches Limited
http://statistics.data.gov.uk/id/local-authority/38,Oxfordshire County Council,Education & Early Intervention,Banbury SEN Trans,Contract Hire/Leasing,33300,Transport (General),05/04/2011,3301247413,487.47,Cheney Coaches Limited
http://statistics.data.gov.uk/id/local-authority/38,Oxfordshire County Council,Education & Early Intervention,Banbury SEN Trans,Contract Hire/Leasing,33101,Home to School Trans,05/04/2011,3301247414,3563.12,Cheney Coaches Limited
http://statistics.data.gov.uk/id/local-authority/38,Oxfordshire County Council,Education & Early Intervention,Banbury SEN Trans,Contract Hire/Leasing,33300,Transport (General),05/04/2011,3301247415,880,Cheney Coaches Limited
http://statistics.data.gov.uk/id/local-authority/38,Oxfordshire County Council,Education & Early Intervention,Banbury SEN Trans,Contract Hire/Leasing,33101,Home to School Trans,05/04/2011,3301247416,3365.56,Cheney Coaches Limited
http://statistics.data.gov.uk/id/local-authority/38,Oxfordshire County Council,Education & Early Intervention,Banbury SEN Trans,Contract Hire/Leasing,33300,Transport (General),05/04/2011,3301247417,959.64,Cheney Coaches Limited
http://statistics.data.gov.uk/id/local-authority/38,Oxfordshire County Council,Education & Early Intervention,Banbury SEN Trans,Contract Hire/Leasing,33101,Home to School Trans,05/04/2011,3301247419,748,Cheney Coaches Limited
http://statistics.data.gov.uk/id/local-authority/38,Oxfordshire County Council,Education & Early Intervention,Banbury SEN Trans,Contract Hire/Leasing,33101,Home to School Trans,05/04/2011,3301247421,1857.24,Cheney Coaches Limited
http://statistics.data.gov.uk/id/local-authority/38,Oxfordshire County Council,Education & Early Intervention,Respite Care,Contract Hire/Leasing,33101,Home to School Trans,05/04/2011,3301247422,3558.28,Cheney Coaches Limited
http://statistics.data.gov.uk/id/local-authority/38,Oxfordshire County Council,Education & Early Intervention,Zone 5 - South,Contract Hire/Leasing,33101,Home to School Trans,05/04/2011,3301247431,580,Hills Taxis
http://statistics.data.gov.uk/id/local-authority/38,Oxfordshire County Council,Education & Early Intervention,FE Special Trans,Contract Hire/Leasing,33101,Home to School Trans,05/04/2011,3301247432,1215,Hills Taxis
http://statistics.data.gov.uk/id/local-authority/38,Oxfordshire County Council,Education & Early Intervention,FE Special Trans,Contract Hire/Leasing,33101,Home to School Trans,05/04/2011,3301247433,1242,Hills Taxis
http://statistics.data.gov.uk/id/local-authority/38,Oxfordshire County Council,Education & Early Intervention,Oxford Sth SEN Trans,Contract Hire/Leasing,33101,Home to School Trans,05/04/2011,3301247434,1679.23,Hills Taxis
http://statistics.data.gov.uk/id/local-authority/38,Oxfordshire County Council,Education & Early Intervention,Oxford Sth SEN Trans,Contract Hire/Leasing,33300,Transport (General),05/04/2011,3301247435,527.85,Hills Taxis
http://statistics.data.gov.uk/id/local-authority/38,Oxfordshire County Council,Education & Early Intervention,Zone 5 - South,Contract Hire/Leasing,33101,Home to School Trans,05/04/2011,3301247436,1276.96,Hills Taxis
http://statistics.data.gov.uk/id/local-authority/38,Oxfordshire County Council,Education & Early Intervention,FE Special Trans,Contract Hire/Leasing,33101,Home to School Trans,05/04/2011,3301247438,880,Hills Taxis
http://statistics.data.gov.uk/id/local-authority/38,Oxfordshire County Council,Education & Early Intervention,Zone 5 - South,Contract Hire/Leasing,33101,Home to School Trans,05/04/2011,3301247440,1150,Hills Taxis
http://statistics.data.gov.uk/id/local-authority/38,Oxfordshire County Council,Education & Early Intervention,Oxford Sth SEN Trans,Contract Hire/Leasing,33101,Home to School Trans,05/04/2011,3301247441,2013.65,Hills Taxis
http://statistics.data.gov.uk/id/local-authority/38,Oxfordshire County Council,Education & Early Intervention,Oxford Sth SEN Trans,Contract Hire/Leasing,33300,Transport (General),05/04/2011,3301247442,429.87,Hills Taxis
http://statistics.data.gov.uk/id/local-authority/38,Oxfordshire County Council,Education & Early Intervention,Abingdon SEN Trans,Contract Hire/Leasing,33101,Home to School Trans,05/04/2011,3301247443,1012,Hills Taxis
http://statistics.data.gov.uk/id/local-authority/38,Oxfordshire County Council,Education & Early Intervention,Abingdon SEN Trans,Contract Hire/Leasing,33300,Transport (General),05/04/2011,3301247444,575,Hills Taxis
http://statistics.data.gov.uk/id/local-authority/38,Oxfordshire County Council,Education & Early Intervention,Out of County,Contract Hire/Leasing,33101,Home to School Trans,05/04/2011,3301247445,880,Hills Taxis
http://statistics.data.gov.uk/id/local-authority/38,Oxfordshire County Council,Education & Early Intervention,S'Common SEN Trans,Contract Hire/Leasing,33101,Home to School Trans,05/04/2011,3301247447,1426,Hills Taxis
http://statistics.data.gov.uk/id/local-authority/38,Oxfordshire County Council,Education & Early Intervention,S'Common SEN Trans,Contract Hire/Leasing,33300,Transport (General),05/04/2011,3301247448,690,Hills Taxis
http://statistics.data.gov.uk/id/local-authority/38,Oxfordshire County Council,Education & Early Intervention,S'Common SEN Trans,Contract Hire/Leasing,33101,Home to School Trans,05/04/2011,3301247449,700,Hills Taxis
http://statistics.data.gov.uk/id/local-authority/38,Oxfordshire County Council,Education & Early Intervention,S'Common SEN Trans,Contract Hire/Leasing,33300,Transport (General),05/04/2011,3301247450,420,Hills Taxis
http://statistics.data.gov.uk/id/local-authority/38,Oxfordshire County Council,Education & Early Intervention,Zone 5 - South,Contract Hire/Leasing,33101,Home to School Trans,05/04/2011,3301247451,799.02,Hills Taxis
http://statistics.data.gov.uk/id/local-authority/38,Oxfordshire County Council,Education & Early Intervention,Zone 5 - South,Contract Hire/Leasing,33101,Home to School Trans,05/04/2011,3301247452,690,Hills Taxis
http://statistics.data.gov.uk/id/local-authority/38,Oxfordshire County Council,Education & Early Intervention,Out of County,Contract Hire/Leasing,33101,Home to School Trans,05/04/2011,3301247453,1380,Hills Taxis
http://statistics.data.gov.uk/id/local-authority/38,Oxfordshire County Council,Education & Early Intervention,Out of County,Contract Hire/Leasing,33300,Transport (General),05/04/2011,3301247454,690,Hills Taxis
http://statistics.data.gov.uk/id/local-authority/38,Oxfordshire County Council,Education & Early Intervention,S'Common SEN Trans,Contract Hire/Leasing,33101,Home to School Trans,05/04/2011,3301247455,1297.43,Hills Taxis
http://statistics.data.gov.uk/id/local-authority/38,Oxfordshire County Council,Education & Early Intervention,S'Common SEN Trans,Contract Hire/Leasing,33300,Transport (General),05/04/2011,3301247456,644.92,Hills Taxis
http://statistics.data.gov.uk/id/local-authority/38,Oxfordshire County Council,Education & Early Intervention,S'Common SEN Trans,Contract Hire/Leasing,33101,Home to School Trans,05/04/2011,3301247457,1770.31,Hills Taxis
http://statistics.data.gov.uk/id/local-authority/38,Oxfordshire County Council,Education & Early Intervention,S'Common SEN Trans,Contract Hire/Leasing,33101,Home to School Trans,05/04/2011,3301247459,1388.51,Hills Taxis
http://statistics.data.gov.uk/id/local-authority/38,Oxfordshire County Council,Education & Early Intervention,S'Common SEN Trans,Contract Hire/Leasing,33300,Transport (General),05/04/2011,3301247460,423.43,Hills Taxis
http://statistics.data.gov.uk/id/local-authority/38,Oxfordshire County Council,Education & Early Intervention,Zone 1 - North,Contract Hire/Leasing,33101,Home to School Trans,05/04/2011,3301247461,2254,Premier Cars
http://statistics.data.gov.uk/id/local-authority/38,Oxfordshire County Council,Education & Early Intervention,Zone 2 - East,Contract Hire/Leasing,33101,Home to School Trans,05/04/2011,3301247462,966,Premier Cars
http://statistics.data.gov.uk/id/local-authority/38,Oxfordshire County Council,Education & Early Intervention,Zone 2 - East,Contract Hire/Leasing,33101,Home to School Trans,05/04/2011,3301247463,2254,Premier Cars
http://statistics.data.gov.uk/id/local-authority/38,Oxfordshire County Council,Education & Early Intervention,Banbury SEN Trans,Contract Hire/Leasing,33101,Home to School Trans,05/04/2011,3301247464,4400,Pages Taxis
http://statistics.data.gov.uk/id/local-authority/38,Oxfordshire County Council,Education & Early Intervention,Banbury SEN Trans,Contract Hire/Leasing,33300,Transport (General),05/04/2011,3301247465,827.64,Pages Taxis
http://statistics.data.gov.uk/id/local-authority/38,Oxfordshire County Council,Education & Early Intervention,Bicester SEN Trans,Contract Hire/Leasing,33101,Home to School Trans,05/04/2011,3301247466,3474.61,Pages Taxis
http://statistics.data.gov.uk/id/local-authority/38,Oxfordshire County Council,Education & Early Intervention,Bicester SEN Trans,Contract Hire/Leasing,33300,Transport (General),05/04/2011,3301247467,843.41,Pages Taxis
http://statistics.data.gov.uk/id/local-authority/38,Oxfordshire County Council,Education & Early Intervention,Oxford Nth SEN Trans,Contract Hire/Leasing,33101,Home to School Trans,05/04/2011,3301247468,3746.93,Pages Taxis
http://statistics.data.gov.uk/id/local-authority/38,Oxfordshire County Council,Education & Early Intervention,Oxford Nth SEN Trans,Contract Hire/Leasing,33300,Transport (General),05/04/2011,3301247469,930.58,Pages Taxis
http://statistics.data.gov.uk/id/local-authority/38,Oxfordshire County Council,Education & Early Intervention,Meadowbrook Transprt,Contract Hire/Leasing,33101,Home to School Trans,05/04/2011,3301247470,1777,Prestige Cars
http://statistics.data.gov.uk/id/local-authority/38,Oxfordshire County Council,Education & Early Intervention,Zone 1 - North,Contract Hire/Leasing,33101,Home to School Trans,05/04/2011,3301247471,708.86,Prestige Cars
http://statistics.data.gov.uk/id/local-authority/38,Oxfordshire County Council,Education & Early Intervention,Oxford Sth SEN Trans,Contract Hire/Leasing,33101,Home to School Trans,05/04/2011,3301247473,2024,Prestige Cars
http://statistics.data.gov.uk/id/local-authority/38,Oxfordshire County Council,Education & Early Intervention,Wantage SEN Trans,Contract Hire/Leasing,33101,Home to School Trans,05/04/2011,3301247474,3220,Grove Cabs
http://statistics.data.gov.uk/id/local-authority/38,Oxfordshire County Council,Education & Early Intervention,Wantage SEN Trans,Contract Hire/Leasing,33300,Transport (General),05/04/2011,3301247475,920,Grove Cabs
http://statistics.data.gov.uk/id/local-authority/38,Oxfordshire County Council,SCS Pooled Budgets,LD CMPB - South Transport,Public Transport,34200,Client Journeys,05/04/2011,3301247476,1840,Grove Cabs
http://statistics.data.gov.uk/id/local-authority/38,Oxfordshire County Council,Education & Early Intervention,LDD After School Acc,Contract Hire/Leasing,33101,Home to School Trans,05/04/2011,3301247478,450,Grove Cabs
http://statistics.data.gov.uk/id/local-authority/38,Oxfordshire County Council,Education & Early Intervention,Wantage SEN Trans,Contract Hire/Leasing,33101,Home to School Trans,05/04/2011,3301247480,1897.5,Grove Taxis
http://statistics.data.gov.uk/id/local-authority/38,Oxfordshire County Council,Education & Early Intervention,Wantage SEN Trans,Contract Hire/Leasing,33300,Transport (General),05/04/2011,3301247481,460,Grove Taxis
http://statistics.data.gov.uk/id/local-authority/38,Oxfordshire County Council,Education & Early Intervention,Zone 2 - East,Contract Hire/Leasing,33101,Home to School Trans,05/04/2011,3301247482,1679,Eldridge Travel
http://statistics.data.gov.uk/id/local-authority/38,Oxfordshire County Council,Education & Early Intervention,Zone 5 - South,Contract Hire/Leasing,33101,Home to School Trans,05/04/2011,3301247483,920,Henley Taxis Ltd
http://statistics.data.gov.uk/id/local-authority/38,Oxfordshire County Council,Education & Early Intervention,Zone 5 - South,Contract Hire/Leasing,33101,Home to School Trans,05/04/2011,3301247484,943,Henley Taxis Ltd
http://statistics.data.gov.uk/id/local-authority/38,Oxfordshire County Council,Education & Early Intervention,Zone 5 - South,Contract Hire/Leasing,33101,Home to School Trans,05/04/2011,3301247487,1150,Henley Taxis Ltd
http://statistics.data.gov.uk/id/local-authority/38,Oxfordshire County Council,Education & Early Intervention,Zone 5 - South,Contract Hire/Leasing,33101,Home to School Trans,05/04/2011,3301247488,2610.5,Henley Taxis Ltd
http://statistics.data.gov.uk/id/local-authority/38,Oxfordshire County Council,Education & Early Intervention,Abingdon SEN Trans,Contract Hire/Leasing,33101,Home to School Trans,05/04/2011,3301247489,1035,Mark's Taxis
http://statistics.data.gov.uk/id/local-authority/38,Oxfordshire County Council,Education & Early Intervention,Abingdon SEN Trans,Contract Hire/Leasing,33300,Transport (General),05/04/2011,3301247490,575,Mark's Taxis
http://statistics.data.gov.uk/id/local-authority/38,Oxfordshire County Council,Education & Early Intervention,Abingdon SEN Trans,Contract Hire/Leasing,33101,Home to School Trans,05/04/2011,3301247491,512.67,Mark's Taxis
http://statistics.data.gov.uk/id/local-authority/38,Oxfordshire County Council,Education & Early Intervention,Oxford Sth SEN Trans,Contract Hire/Leasing,33101,Home to School Trans,05/04/2011,3301247492,2673.75,Lynkcabs
http://statistics.data.gov.uk/id/local-authority/38,Oxfordshire County Council,Education & Early Intervention,Oxford Sth SEN Trans,Contract Hire/Leasing,33300,Transport (General),05/04/2011,3301247493,581.21,Lynkcabs
http://statistics.data.gov.uk/id/local-authority/38,Oxfordshire County Council,Education & Early Intervention,Zone 3 - West,Contract Hire/Leasing,33101,Home to School Trans,05/04/2011,3301247494,1358,Lynkcabs
http://statistics.data.gov.uk/id/local-authority/38,Oxfordshire County Council,Education & Early Intervention,Zone 4 - Vale,Contract Hire/Leasing,33101,Home to School Trans,05/04/2011,3301247496,2257.68,Lynkcabs
http://statistics.data.gov.uk/id/local-authority/38,Oxfordshire County Council,Education & Early Intervention,Zone 5 - South,Contract Hire/Leasing,33101,Home to School Trans,05/04/2011,3301247498,1637.6,Lynkcabs
http://statistics.data.gov.uk/id/local-authority/38,Oxfordshire County Council,Education & Early Intervention,Zone 2 - East,Contract Hire/Leasing,33101,Home to School Trans,05/04/2011,3301247499,1648.64,Lynkcabs
http://statistics.data.gov.uk/id/local-authority/38,Oxfordshire County Council,Education & Early Intervention,Zone 2 - East,Contract Hire/Leasing,33101,Home to School Trans,05/04/2011,3301247500,2352.9,Lynkcabs
http://statistics.data.gov.uk/id/local-authority/38,Oxfordshire County Council,Education & Early Intervention,Zone 2 - East,Contract Hire/Leasing,33101,Home to School Trans,05/04/2011,3301247501,1533.64,Lynkcabs
http://statistics.data.gov.uk/id/local-authority/38,Oxfordshire County Council,Education & Early Intervention,Zone 5 - South,Contract Hire/Leasing,33101,Home to School Trans,05/04/2011,3301247502,2189.6,Lynkcabs
http://statistics.data.gov.uk/id/local-authority/38,Oxfordshire County Council,Education & Early Intervention,Zone 5 - South,Contract Hire/Leasing,33101,Home to School Trans,05/04/2011,3301247503,2575.08,Lynkcabs
http://statistics.data.gov.uk/id/local-authority/38,Oxfordshire County Council,Education & Early Intervention,Zone 5 - South,Contract Hire/Leasing,33101,Home to School Trans,05/04/2011,3301247504,2278,Lynkcabs
http://statistics.data.gov.uk/id/local-authority/38,Oxfordshire County Council,Education & Early Intervention,Oxford Sth SEN Trans,Contract Hire/Leasing,33101,Home to School Trans,05/04/2011,3301247505,1265,John Cleaton Airport Cars Oxford
http://statistics.data.gov.uk/id/local-authority/38,Oxfordshire County Council,Education & Early Intervention,Oxford Sth SEN Trans,Contract Hire/Leasing,33300,Transport (General),05/04/2011,3301247506,575,John Cleaton Airport Cars Oxford
http://statistics.data.gov.uk/id/local-authority/38,Oxfordshire County Council,Education & Early Intervention,Zone 1 - North,Contract Hire/Leasing,33101,Home to School Trans,05/04/2011,3301247507,1604.25,Get-a-Cab
http://statistics.data.gov.uk/id/local-authority/38,Oxfordshire County Council,STD Corporate & Democratic Core,MIS Payroll Workflow,Balance Sheet General,B7102,Local Government AVC,05/04/2011,3301247598,83784.51,Prudential Assurance Co. Ltd
http://statistics.data.gov.uk/id/local-authority/38,Oxfordshire County Council,STD Corporate & Democratic Core,MIS Payroll Workflow,Balance Sheet General,B7103,Teachers AVC,05/04/2011,3301247599,59697.34,Prudential Assurance
http://statistics.data.gov.uk/id/local-authority/38,Oxfordshire County Council,SCS Pooled Budgets,PD Comm Supp Purchasg Budget - Henley,Other Agency and Contracted Services,57401,Direct Payments,06/04/2011,3301248195,1280,REDACTED PERSONAL DATA
http://statistics.data.gov.uk/id/local-authority/38,Oxfordshire County Council,Social & Community Services,Community Support Budget - City East,Other Agency and Contracted Services,57401,Direct Payments,06/04/2011,3301248197,640,REDACTED PERSONAL DATA
http://statistics.data.gov.uk/id/local-authority/38,Oxfordshire County Council,SCS Pooled Budgets,Community Support Budget - Banbury,Other Agency and Contracted Services,57401,Direct Payments,06/04/2011,3301248200,1273.4,REDACTED PERSONAL DATA
http://statistics.data.gov.uk/id/local-authority/38,Oxfordshire County Council,SCS Pooled Budgets,Community Support Budget - City,Other Agency and Contracted Services,57401,Direct Payments,06/04/2011,3301248205,2535.4,REDACTED PERSONAL DATA
http://statistics.data.gov.uk/id/local-authority/38,Oxfordshire County Council,SCS Pooled Budgets,Direct Payments City Team,Other Agency and Contracted Services,57401,Direct Payments,06/04/2011,3301248206,720.16,REDACTED PERSONAL DATA
http://statistics.data.gov.uk/id/local-authority/38,Oxfordshire County Council,SCS Pooled Budgets,PD Comm Supp Purchasg Budget - Didcot,Other Agency and Contracted Services,57401,Direct Payments,06/04/2011,3301248207,1313.52,REDACTED PERSONAL DATA
http://statistics.data.gov.uk/id/local-authority/38,Oxfordshire County Council,SCS Pooled Budgets,PD CS Purch Budget - Health S28a JC,Other Agency and Contracted Services,57401,Direct Payments,06/04/2011,3301248207,1313.52,REDACTED PERSONAL DATA
http://statistics.data.gov.uk/id/local-authority/38,Oxfordshire County Council,SCS Pooled Budgets,Community Support Budget - Banbury,Other Agency and Contracted Services,57401,Direct Payments,06/04/2011,3301248208,1253.48,REDACTED PERSONAL DATA
http://statistics.data.gov.uk/id/local-authority/38,Oxfordshire County Council,SCS Pooled Budgets,Community Support Budget - City,Other Agency and Contracted Services,57401,Direct Payments,06/04/2011,3301248209,1079.36,REDACTED PERSONAL DATA
http://statistics.data.gov.uk/id/local-authority/38,Oxfordshire County Council,SCS Pooled Budgets,Community Support Budget - Thame,Other Agency and Contracted Services,57401,Direct Payments,06/04/2011,3301248210,1189.32,REDACTED PERSONAL DATA
http://statistics.data.gov.uk/id/local-authority/38,Oxfordshire County Council,SCS Pooled Budgets,Community Support Budget - Witney,Other Agency and Contracted Services,57401,Direct Payments,06/04/2011,3301248212,1520,REDACTED PERSONAL DATA
http://statistics.data.gov.uk/id/local-authority/38,Oxfordshire County Council,SCS Pooled Budgets,Community Support Budget - Banbury,Other Agency and Contracted Services,57401,Direct Payments,06/04/2011,3301248213,2680.28,REDACTED PERSONAL DATA
http://statistics.data.gov.uk/id/local-authority/38,Oxfordshire County Council,SCS Pooled Budgets,PD Comm Supp Purchasg Budget - Chip. N.,Other Agency and Contracted Services,57401,Direct Payments,06/04/2011,3301248214,640,REDACTED PERSONAL DATA
http://statistics.data.gov.uk/id/local-authority/38,Oxfordshire County Council,SCS Pooled Budgets,PD Comm Supp Purchasg Budget - City,Other Agency and Contracted Services,57401,Direct Payments,06/04/2011,3301248215,1302,REDACTED PERSONAL DATA
http://statistics.data.gov.uk/id/local-authority/38,Oxfordshire County Council,SCS Pooled Budgets,PD Comm Supp Purchasg Budget - Abingdon,Other Agency and Contracted Services,57401,Direct Payments,06/04/2011,3301248216,1457.04,REDACTED PERSONAL DATA
http://statistics.data.gov.uk/id/local-authority/38,Oxfordshire County Council,SCS Pooled Budgets,Direct Payments South Team,Other Agency and Contracted Services,57401,Direct Payments,06/04/2011,3301248217,954.68,REDACTED PERSONAL DATA
http://statistics.data.gov.uk/id/local-authority/38,Oxfordshire County Council,SCS Pooled Budgets,PD CS Purch Budget - Health S28a JC,Other Agency and Contracted Services,57401,Direct Payments,06/04/2011,3301248218,673.06,REDACTED PERSONAL DATA
http://statistics.data.gov.uk/id/local-authority/38,Oxfordshire County Council,SCS Pooled Budgets,PD Comm Supp Purchasg Budget - City,Other Agency and Contracted Services,57401,Direct Payments,06/04/2011,3301248218,1146.02,REDACTED PERSONAL DATA
http://statistics.data.gov.uk/id/local-authority/38,Oxfordshire County Council,SCS Pooled Budgets,PD Comm Supp Budgt - Bicester/Kidlington,Other Agency and Contracted Services,57401,Direct Payments,06/04/2011,3301248219,1082.85,REDACTED PERSONAL DATA
http://statistics.data.gov.uk/id/local-authority/38,Oxfordshire County Council,SCS Pooled Budgets,PD CS Purch Budget - Health S28a JC,Other Agency and Contracted Services,57401,Direct Payments,06/04/2011,3301248219,960.27,REDACTED PERSONAL DATA
http://statistics.data.gov.uk/id/local-authority/38,Oxfordshire County Council,SCS Pooled Budgets,PD Comm Supp Purchasg Budget - Witney,Other Agency and Contracted Services,57401,Direct Payments,06/04/2011,3301248220,700,REDACTED PERSONAL DATA
http://statistics.data.gov.uk/id/local-authority/38,Oxfordshire County Council,SCS Pooled Budgets,Community Support Budget - Bicester,Other Agency and Contracted Services,57401,Direct Payments,06/04/2011,3301248221,1548.4,REDACTED PERSONAL DATA
http://statistics.data.gov.uk/id/local-authority/38,Oxfordshire County Council,SCS Pooled Budgets,OP Pool Continuing Care Delegated Health,Other Agency and Contracted Services,57401,Direct Payments,06/04/2011,3301248221,661.48,REDACTED PERSONAL DATA
http://statistics.data.gov.uk/id/local-authority/38,Oxfordshire County Council,SCS Pooled Budgets,Direct Payments City Team,Other Agency and Contracted Services,57401,Direct Payments,06/04/2011,3301248222,1302,REDACTED PERSONAL DATA
http://statistics.data.gov.uk/id/local-authority/38,Oxfordshire County Council,SCS Pooled Budgets,PD Comm Supp Budgt - Bicester/Kidlington,Other Agency and Contracted Services,57401,Direct Payments,06/04/2011,3301248223,2245.95,REDACTED PERSONAL DATA
http://statistics.data.gov.uk/id/local-authority/38,Oxfordshire County Council,SCS Pooled Budgets,PD Comm Supp Budget - Banbury,Other Agency and Contracted Services,57401,Direct Payments,06/04/2011,3301248223,-2976,REDACTED PERSONAL DATA
http://statistics.data.gov.uk/id/local-authority/38,Oxfordshire County Council,SCS Pooled Budgets,PD Comm Supp Budgt - Bicester/Kidlington,Other Agency and Contracted Services,57401,Direct Payments,06/04/2011,3301248223,3422.4,REDACTED PERSONAL DATA
http://statistics.data.gov.uk/id/local-authority/38,Oxfordshire County Council,SCS Pooled Budgets,Direct Payments South Team,Other Agency and Contracted Services,57401,Direct Payments,06/04/2011,3301248225,3842.2,REDACTED PERSONAL DATA
http://statistics.data.gov.uk/id/local-authority/38,Oxfordshire County Council,SCS Pooled Budgets,PD Comm Supp Purchasg Budget - Abingdon,Other Agency and Contracted Services,57401,Direct Payments,06/04/2011,3301248226,2694,REDACTED PERSONAL DATA
http://statistics.data.gov.uk/id/local-authority/38,Oxfordshire County Council,Social & Community Services,"LD Day Services, Service Managers",Other Agency and Contracted Services,57401,Direct Payments,06/04/2011,3301248227,1227.75,REDACTED PERSONAL DATA
http://statistics.data.gov.uk/id/local-authority/38,Oxfordshire County Council,SCS Pooled Budgets,Direct Payments North Team,Other Agency and Contracted Services,57401,Direct Payments,06/04/2011,3301248227,5379.46,REDACTED PERSONAL DATA
http://statistics.data.gov.uk/id/local-authority/38,Oxfordshire County Council,SCS Pooled Budgets,Direct Payments South Team,Other Agency and Contracted Services,57401,Direct Payments,06/04/2011,3301248229,954.68,REDACTED PERSONAL DATA
http://statistics.data.gov.uk/id/local-authority/38,Oxfordshire County Council,SCS Pooled Budgets,PD Comm Supp Purchasg Budget - City,Other Agency and Contracted Services,57401,Direct Payments,06/04/2011,3301248230,993.56,REDACTED PERSONAL DATA
http://statistics.data.gov.uk/id/local-authority/38,Oxfordshire County Council,SCS Pooled Budgets,Community Support Budget - Kidlington,Other Agency and Contracted Services,57401,Direct Payments,06/04/2011,3301248231,1231.48,REDACTED PERSONAL DATA
http://statistics.data.gov.uk/id/local-authority/38,Oxfordshire County Council,SCS Pooled Budgets,Direct Payments North Team,Other Agency and Contracted Services,57401,Direct Payments,06/04/2011,3301248233,933.6,REDACTED PERSONAL DATA
http://statistics.data.gov.uk/id/local-authority/38,Oxfordshire County Council,SCS Pooled Budgets,Community Support Budget - Didcot,Other Agency and Contracted Services,57401,Direct Payments,06/04/2011,3301248235,633.84,REDACTED PERSONAL DATA
http://statistics.data.gov.uk/id/local-authority/38,Oxfordshire County Council,SCS Pooled Budgets,Community Support Budget - Banbury,Other Agency and Contracted Services,57401,Direct Payments,06/04/2011,3301248237,651.96,REDACTED PERSONAL DATA
http://statistics.data.gov.uk/id/local-authority/38,Oxfordshire County Council,SCS Pooled Budgets,Direct Payments North Team,Other Agency and Contracted Services,57401,Direct Payments,06/04/2011,3301248239,1980,REDACTED PERSONAL DATA
http://statistics.data.gov.uk/id/local-authority/38,Oxfordshire County Council,SCS Pooled Budgets,PD Comm Supp Budget - Banbury,Other Agency and Contracted Services,57401,Direct Payments,06/04/2011,3301248241,2291.84,REDACTED PERSONAL DATA
http://statistics.data.gov.uk/id/local-authority/38,Oxfordshire County Council,SCS Pooled Budgets,Community Support Budget - Didcot,Other Agency and Contracted Services,57401,Direct Payments,06/04/2011,3301248242,887.39,REDACTED PERSONAL DATA
http://statistics.data.gov.uk/id/local-authority/38,Oxfordshire County Council,SCS Pooled Budgets,Direct Payments South Team,Other Agency and Contracted Services,57401,Direct Payments,06/04/2011,3301248243,15370.2,REDACTED PERSONAL DATA
http://statistics.data.gov.uk/id/local-authority/38,Oxfordshire County Council,SCS Pooled Budgets,PD Comm Supp Purchasg Budget - City,Other Agency and Contracted Services,57401,Direct Payments,06/04/2011,3301248244,1520.52,REDACTED PERSONAL DATA
http://statistics.data.gov.uk/id/local-authority/38,Oxfordshire County Council,SCS Pooled Budgets,Community Support Budget - Witney,Other Agency and Contracted Services,57401,Direct Payments,06/04/2011,3301248245,501,REDACTED PERSONAL DATA
http://statistics.data.gov.uk/id/local-authority/38,Oxfordshire County Council,SCS Pooled Budgets,Community Support Budget - Witney,Other Agency and Contracted Services,57401,Direct Payments,06/04/2011,3301248245,1372,REDACTED PERSONAL DATA
http://statistics.data.gov.uk/id/local-authority/38,Oxfordshire County Council,SCS Pooled Budgets,Direct Payments North Team,Other Agency and Contracted Services,57401,Direct Payments,06/04/2011,3301248246,1822.8,REDACTED PERSONAL DATA
http://statistics.data.gov.uk/id/local-authority/38,Oxfordshire County Council,SCS Pooled Budgets,Direct Payments South Team,Other Agency and Contracted Services,57401,Direct Payments,06/04/2011,3301248247,5684.16,REDACTED PERSONAL DATA
http://statistics.data.gov.uk/id/local-authority/38,Oxfordshire County Council,SCS Pooled Budgets,Community Support Budget - Henley,Other Agency and Contracted Services,57401,Direct Payments,06/04/2011,3301248248,1442.86,REDACTED PERSONAL DATA
http://statistics.data.gov.uk/id/local-authority/38,Oxfordshire County Council,SCS Pooled Budgets,OP Pool Continuing Care Delegated Health,Other Agency and Contracted Services,57401,Direct Payments,06/04/2011,3301248248,1020,REDACTED PERSONAL DATA
http://statistics.data.gov.uk/id/local-authority/38,Oxfordshire County Council,SCS Pooled Budgets,Community Support Budget - Henley,Other Agency and Contracted Services,57401,Direct Payments,06/04/2011,3301248248,3292,REDACTED PERSONAL DATA
http://statistics.data.gov.uk/id/local-authority/38,Oxfordshire County Council,SCS Pooled Budgets,Community Support Budget - Didcot,Other Agency and Contracted Services,57401,Direct Payments,06/04/2011,3301248250,1600,REDACTED PERSONAL DATA
http://statistics.data.gov.uk/id/local-authority/38,Oxfordshire County Council,SCS Pooled Budgets,PD Comm Supp Purchasg Budget - Witney,Other Agency and Contracted Services,57401,Direct Payments,06/04/2011,3301248251,974.74,REDACTED PERSONAL DATA
http://statistics.data.gov.uk/id/local-authority/38,Oxfordshire County Council,SCS Pooled Budgets,PD CS Purch Budget - Health S28a JC,Other Agency and Contracted Services,57401,Direct Payments,06/04/2011,3301248251,1144.26,REDACTED PERSONAL DATA
http://statistics.data.gov.uk/id/local-authority/38,Oxfordshire County Council,SCS Pooled Budgets,Community Support Budget - Bicester,Other Agency and Contracted Services,57401,Direct Payments,06/04/2011,3301248252,1603,REDACTED PERSONAL DATA
http://statistics.data.gov.uk/id/local-authority/38,Oxfordshire County Council,SCS Pooled Budgets,Community Support Budget - Kidlington,Other Agency and Contracted Services,57401,Direct Payments,06/04/2011,3301248254,2028.32,REDACTED PERSONAL DATA
http://statistics.data.gov.uk/id/local-authority/38,Oxfordshire County Council,SCS Pooled Budgets,Community Support Budget - Thame,Other Agency and Contracted Services,57401,Direct Payments,06/04/2011,3301248255,1902.76,REDACTED PERSONAL DATA
http://statistics.data.gov.uk/id/local-authority/38,Oxfordshire County Council,SCS Pooled Budgets,Direct Payments South Team,Other Agency and Contracted Services,57401,Direct Payments,06/04/2011,3301248256,2307.68,REDACTED PERSONAL DATA
http://statistics.data.gov.uk/id/local-authority/38,Oxfordshire County Council,SCS Pooled Budgets,PD Comm Supp Purchasg Budget - Witney,Other Agency and Contracted Services,57401,Direct Payments,06/04/2011,3301248257,1846.44,REDACTED PERSONAL DATA
http://statistics.data.gov.uk/id/local-authority/38,Oxfordshire County Council,SCS Pooled Budgets,Community Support Budget - Abingdon,Other Agency and Contracted Services,57401,Direct Payments,06/04/2011,3301248258,730.68,REDACTED PERSONAL DATA
http://statistics.data.gov.uk/id/local-authority/38,Oxfordshire County Council,SCS Pooled Budgets,PD CS Purch Budget - Health S28a JC,Other Agency and Contracted Services,57401,Direct Payments,06/04/2011,3301248259,815.88,REDACTED PERSONAL DATA
http://statistics.data.gov.uk/id/local-authority/38,Oxfordshire County Council,SCS Pooled Budgets,PD Community Support Budget - Kidlington,Other Agency and Contracted Services,57401,Direct Payments,06/04/2011,3301248259,1903.72,REDACTED PERSONAL DATA
http://statistics.data.gov.uk/id/local-authority/38,Oxfordshire County Council,SCS Pooled Budgets,PD Comm Supp Purchasg Budget - Abingdon,Other Agency and Contracted Services,57401,Direct Payments,06/04/2011,3301248260,879.78,REDACTED PERSONAL DATA
http://statistics.data.gov.uk/id/local-authority/38,Oxfordshire County Council,SCS Pooled Budgets,Direct Payments City Team,Other Agency and Contracted Services,57401,Direct Payments,06/04/2011,3301248261,560,REDACTED PERSONAL DATA
http://statistics.data.gov.uk/id/local-authority/38,Oxfordshire County Council,SCS Pooled Budgets,PD Comm Supp Purchasg Budget - Thame,Other Agency and Contracted Services,57401,Direct Payments,06/04/2011,3301248262,844.76,REDACTED PERSONAL DATA
http://statistics.data.gov.uk/id/local-authority/38,Oxfordshire County Council,SCS Pooled Budgets,Direct Payments South Team,Other Agency and Contracted Services,57401,Direct Payments,06/04/2011,3301248263,3600,REDACTED PERSONAL DATA
http://statistics.data.gov.uk/id/local-authority/38,Oxfordshire County Council,SCS Pooled Budgets,PD Comm Supp Purchasg Budget - Witney,Other Agency and Contracted Services,57401,Direct Payments,06/04/2011,3301248264,2789.28,REDACTED PERSONAL DATA
http://statistics.data.gov.uk/id/local-authority/38,Oxfordshire County Council,SCS Pooled Budgets,Direct Payments City Team,Other Agency and Contracted Services,57401,Direct Payments,06/04/2011,3301248265,3379.28,REDACTED PERSONAL DATA
http://statistics.data.gov.uk/id/local-authority/38,Oxfordshire County Council,SCS Pooled Budgets,Community Support Budget - Banbury,Other Agency and Contracted Services,57401,Direct Payments,06/04/2011,3301248266,2200,REDACTED PERSONAL DATA
http://statistics.data.gov.uk/id/local-authority/38,Oxfordshire County Council,SCS Pooled Budgets,Community Support Budget - Chipping Nort,Other Agency and Contracted Services,57401,Direct Payments,06/04/2011,3301248267,2069.17,REDACTED PERSONAL DATA
http://statistics.data.gov.uk/id/local-authority/38,Oxfordshire County Council,SCS Pooled Budgets,PD Comm Supp Budget - Banbury,Other Agency and Contracted Services,57401,Direct Payments,06/04/2011,3301248268,1637.04,REDACTED PERSONAL DATA
http://statistics.data.gov.uk/id/local-authority/38,Oxfordshire County Council,SCS Pooled Budgets,Community Support Budget - Abingdon,Other Agency and Contracted Services,57401,Direct Payments,06/04/2011,3301248270,1536.71,REDACTED PERSONAL DATA
http://statistics.data.gov.uk/id/local-authority/38,Oxfordshire County Council,SCS Pooled Budgets,Community Support Budget - Chipping Nort,Other Agency and Contracted Services,57401,Direct Payments,06/04/2011,3301248273,1520,REDACTED PERSONAL DATA
http://statistics.data.gov.uk/id/local-authority/38,Oxfordshire County Council,SCS Pooled Budgets,Community Support Budget - Banbury,Other Agency and Contracted Services,57401,Direct Payments,06/04/2011,3301248274,912,REDACTED PERSONAL DATA
http://statistics.data.gov.uk/id/local-authority/38,Oxfordshire County Council,SCS Pooled Budgets,Community Support Budget - Didcot,Other Agency and Contracted Services,57401,Direct Payments,06/04/2011,3301248275,727.48,REDACTED PERSONAL DATA
http://statistics.data.gov.uk/id/local-authority/38,Oxfordshire County Council,SCS Pooled Budgets,PD CS Purch Budget - Health S28a JC,Other Agency and Contracted Services,57401,Direct Payments,06/04/2011,3301248278,2051.68,REDACTED PERSONAL DATA
http://statistics.data.gov.uk/id/local-authority/38,Oxfordshire County Council,SCS Pooled Budgets,PD Comm Supp Budget - Banbury,Other Agency and Contracted Services,57401,Direct Payments,06/04/2011,3301248278,1547.76,REDACTED PERSONAL DATA
http://statistics.data.gov.uk/id/local-authority/38,Oxfordshire County Council,SCS Pooled Budgets,Community Support Budget - Banbury,Other Agency and Contracted Services,57401,Direct Payments,06/04/2011,3301248281,1445.84,REDACTED PERSONAL DATA
http://statistics.data.gov.uk/id/local-authority/38,Oxfordshire County Council,SCS Pooled Budgets,Direct Payments North Team,Other Agency and Contracted Services,57401,Direct Payments,06/04/2011,3301248282,4860,REDACTED PERSONAL DATA
http://statistics.data.gov.uk/id/local-authority/38,Oxfordshire County Council,SCS Pooled Budgets,Community Support Budget - City,Other Agency and Contracted Services,57401,Direct Payments,06/04/2011,3301248283,2064.8,REDACTED PERSONAL DATA
http://statistics.data.gov.uk/id/local-authority/38,Oxfordshire County Council,SCS Pooled Budgets,Direct Payments South Team,Other Agency and Contracted Services,57401,Direct Payments,06/04/2011,3301248284,1230.44,REDACTED PERSONAL DATA
http://statistics.data.gov.uk/id/local-authority/38,Oxfordshire County Council,SCS Pooled Budgets,Community Support Budget - City,Other Agency and Contracted Services,57401,Direct Payments,06/04/2011,3301248285,2211.52,REDACTED PERSONAL DATA
http://statistics.data.gov.uk/id/local-authority/38,Oxfordshire County Council,SCS Pooled Budgets,PD Comm Supp Purchasg Budget - City,Other Agency and Contracted Services,57401,Direct Payments,06/04/2011,3301248288,737.8,A4e Management Ltd Week 3
http://statistics.data.gov.uk/id/local-authority/38,Oxfordshire County Council,SCS Pooled Budgets,Community Support Budget - Chipping Nort,Other Agency and Contracted Services,57401,Direct Payments,06/04/2011,3301248289,1200,A4e Management Ltd Week 3
http://statistics.data.gov.uk/id/local-authority/38,Oxfordshire County Council,SCS Pooled Budgets,PD Comm Supp Budget - Banbury,Other Agency and Contracted Services,57401,Direct Payments,06/04/2011,3301248290,687.36,A4e Management Ltd Week 3
http://statistics.data.gov.uk/id/local-authority/38,Oxfordshire County Council,SCS Pooled Budgets,Direct Payments South Team,Other Agency and Contracted Services,57401,Direct Payments,06/04/2011,3301248291,524,A4e Management Ltd Week 3
http://statistics.data.gov.uk/id/local-authority/38,Oxfordshire County Council,SCS Pooled Budgets,Direct Payments South Team,Other Agency and Contracted Services,57401,Direct Payments,06/04/2011,3301248292,689.84,A4e Management Ltd Week 3
http://statistics.data.gov.uk/id/local-authority/38,Oxfordshire County Council,SCS Pooled Budgets,Community Support Budget - Henley,Other Agency and Contracted Services,57401,Direct Payments,06/04/2011,3301248295,511.68,A4e Management Ltd Week 3
http://statistics.data.gov.uk/id/local-authority/38,Oxfordshire County Council,SCS Pooled Budgets,PD Comm Supp Purchasg Budget - Abingdon,Other Agency and Contracted Services,57401,Direct Payments,06/04/2011,3301248297,926.4,A4e Management Ltd Week 3
http://statistics.data.gov.uk/id/local-authority/38,Oxfordshire County Council,SCS Pooled Budgets,PD Comm Supp Purchasg Budget - Didcot,Other Agency and Contracted Services,57401,Direct Payments,06/04/2011,3301248298,1883.25,A4e Management Ltd Week 3
http://statistics.data.gov.uk/id/local-authority/38,Oxfordshire County Council,SCS Pooled Budgets,Community Support Budget - Banbury,Other Agency and Contracted Services,57401,Direct Payments,06/04/2011,3301248300,1294.04,A4e Management Ltd Week 3
http://statistics.data.gov.uk/id/local-authority/38,Oxfordshire County Council,SCS Pooled Budgets,Community Support Budget - City,Other Agency and Contracted Services,57401,Direct Payments,06/04/2011,3301248301,1975.72,A4e Management Ltd Week 3
http://statistics.data.gov.uk/id/local-authority/38,Oxfordshire County Council,SCS Pooled Budgets,Community Support Budget - City,Other Agency and Contracted Services,57401,Direct Payments,06/04/2011,3301248303,1014.16,A4e Management Ltd Week 3
http://statistics.data.gov.uk/id/local-authority/38,Oxfordshire County Council,SCS Pooled Budgets,Community Support Budget - Witney,Other Agency and Contracted Services,57401,Direct Payments,06/04/2011,3301248305,2021.71,A4e Management Ltd Week 3
http://statistics.data.gov.uk/id/local-authority/38,Oxfordshire County Council,SCS Pooled Budgets,Community Support Budget - Banbury,Other Agency and Contracted Services,57401,Direct Payments,06/04/2011,3301248307,727.2,A4e Management Ltd Week 3
http://statistics.data.gov.uk/id/local-authority/38,Oxfordshire County Council,SCS Pooled Budgets,Community Support Budget - Bicester,Other Agency and Contracted Services,57401,Direct Payments,06/04/2011,3301248309,959.84,A4e Management Ltd Week 3
http://statistics.data.gov.uk/id/local-authority/38,Oxfordshire County Council,SCS Pooled Budgets,PD Comm Supp Purchasg Budget - Abingdon,Other Agency and Contracted Services,57401,Direct Payments,06/04/2011,3301248310,985.5,A4e Management Ltd Week 3
http://statistics.data.gov.uk/id/local-authority/38,Oxfordshire County Council,SCS Pooled Budgets,Direct Payments South Team,Other Agency and Contracted Services,57401,Direct Payments,06/04/2011,3301248311,583.04,A4e Management Ltd Week 3
http://statistics.data.gov.uk/id/local-authority/38,Oxfordshire County Council,SCS Pooled Budgets,Community Support Budget - Banbury,Other Agency and Contracted Services,57401,Direct Payments,06/04/2011,3301248312,2000,A4e Management Ltd Week 3
http://statistics.data.gov.uk/id/local-authority/38,Oxfordshire County Council,SCS Pooled Budgets,Community Support Budget - City,Other Agency and Contracted Services,57401,Direct Payments,06/04/2011,3301248314,1085,A4e Management Ltd Week 3
http://statistics.data.gov.uk/id/local-authority/38,Oxfordshire County Council,SCS Pooled Budgets,Direct Payments City Team,Other Agency and Contracted Services,57401,Direct Payments,06/04/2011,3301248315,728.8,A4e Management Ltd Week 3
http://statistics.data.gov.uk/id/local-authority/38,Oxfordshire County Council,SCS Pooled Budgets,Community Support Budget - Bicester,Other Agency and Contracted Services,57401,Direct Payments,06/04/2011,3301248316,640,A4e Management Ltd Week 3
http://statistics.data.gov.uk/id/local-authority/38,Oxfordshire County Council,SCS Pooled Budgets,Community Support Budget - Bicester,Other Agency and Contracted Services,57401,Direct Payments,06/04/2011,3301248316,632,A4e Management Ltd Week 3
http://statistics.data.gov.uk/id/local-authority/38,Oxfordshire County Council,SCS Pooled Budgets,Community Support Budget - Witney,Other Agency and Contracted Services,57401,Direct Payments,06/04/2011,3301248317,1220,A4e Management Ltd Week 3
http://statistics.data.gov.uk/id/local-authority/38,Oxfordshire County Council,SCS Pooled Budgets,Community Support Budget - Witney,Other Agency and Contracted Services,57401,Direct Payments,06/04/2011,3301248318,928,A4e Management Ltd Week 3
http://statistics.data.gov.uk/id/local-authority/38,Oxfordshire County Council,SCS Pooled Budgets,Community Support Budget - Henley,Other Agency and Contracted Services,57401,Direct Payments,06/04/2011,3301248319,986.81,A4e Management Ltd Week 3
http://statistics.data.gov.uk/id/local-authority/38,Oxfordshire County Council,SCS Pooled Budgets,PD Comm Supp Purchasg Budget - Thame,Other Agency and Contracted Services,57401,Direct Payments,06/04/2011,3301248321,1228.24,A4e Management Ltd Week 3
http://statistics.data.gov.uk/id/local-authority/38,Oxfordshire County Council,SCS Pooled Budgets,Community Support Budget - Witney,Other Agency and Contracted Services,57401,Direct Payments,06/04/2011,3301248322,736.16,A4e Management Ltd Week 3
http://statistics.data.gov.uk/id/local-authority/38,Oxfordshire County Council,SCS Pooled Budgets,PD Comm Supp Purchasg Budget - Didcot,Other Agency and Contracted Services,57401,Direct Payments,06/04/2011,3301248323,1098.56,A4e Management Ltd Week 3
http://statistics.data.gov.uk/id/local-authority/38,Oxfordshire County Council,SCS Pooled Budgets,PD Comm Supp Purchasg Budget - Didcot,Other Agency and Contracted Services,57401,Direct Payments,06/04/2011,3301248324,1519,A4e Management Ltd Week 3
http://statistics.data.gov.uk/id/local-authority/38,Oxfordshire County Council,SCS Pooled Budgets,Direct Payments City Team,Other Agency and Contracted Services,57401,Direct Payments,06/04/2011,3301248325,588.88,A4e Management Ltd Week 3
http://statistics.data.gov.uk/id/local-authority/38,Oxfordshire County Council,SCS Pooled Budgets,PD Comm Supp Purchasg Budget - Witney,Other Agency and Contracted Services,57401,Direct Payments,06/04/2011,3301248326,1440,A4e Management Ltd Week 3
http://statistics.data.gov.uk/id/local-authority/38,Oxfordshire County Council,SCS Pooled Budgets,Direct Payments City Team,Other Agency and Contracted Services,57401,Direct Payments,06/04/2011,3301248332,1016.4,A4e Management Ltd Week 3
http://statistics.data.gov.uk/id/local-authority/38,Oxfordshire County Council,SCS Pooled Budgets,Direct Payments City Team,Other Agency and Contracted Services,57401,Direct Payments,06/04/2011,3301248333,511.6,A4e Management Ltd Week 3
http://statistics.data.gov.uk/id/local-authority/38,Oxfordshire County Council,SCS Pooled Budgets,Direct Payments North Team,Other Agency and Contracted Services,57401,Direct Payments,06/04/2011,3301248334,4260.32,A4e Management Ltd Week 3
http://statistics.data.gov.uk/id/local-authority/38,Oxfordshire County Council,SCS Pooled Budgets,Direct Payments City Team,Other Agency and Contracted Services,57401,Direct Payments,06/04/2011,3301248335,588.8,A4e Management Ltd Week 3
http://statistics.data.gov.uk/id/local-authority/38,Oxfordshire County Council,SCS Pooled Budgets,Direct Payments North Team,Other Agency and Contracted Services,57401,Direct Payments,06/04/2011,3301248336,1274.86,A4e Management Ltd Week 3
http://statistics.data.gov.uk/id/local-authority/38,Oxfordshire County Council,SCS Pooled Budgets,Community Support Budget - Bicester,Other Agency and Contracted Services,57401,Direct Payments,06/04/2011,3301248337,680,A4e Management Ltd Week 3
http://statistics.data.gov.uk/id/local-authority/38,Oxfordshire County Council,SCS Pooled Budgets,PD CS Purch Budget - Health S28a JC,Other Agency and Contracted Services,57401,Direct Payments,06/04/2011,3301248339,1556.17,A4e Management Ltd Week 3
http://statistics.data.gov.uk/id/local-authority/38,Oxfordshire County Council,SCS Pooled Budgets,PD Comm Supp Purchasg Budget - City,Other Agency and Contracted Services,57401,Direct Payments,06/04/2011,3301248339,699.15,A4e Management Ltd Week 3
http://statistics.data.gov.uk/id/local-authority/38,Oxfordshire County Council,SCS Pooled Budgets,Community Support Budget - Kidlington,Other Agency and Contracted Services,57401,Direct Payments,06/04/2011,3301248342,959.84,A4e Management Ltd Week 3
http://statistics.data.gov.uk/id/local-authority/38,Oxfordshire County Council,SCS Pooled Budgets,Community Support Budget - Banbury,Other Agency and Contracted Services,57401,Direct Payments,06/04/2011,3301248343,1268,A4e Management Ltd Week 3
http://statistics.data.gov.uk/id/local-authority/38,Oxfordshire County Council,SCS Pooled Budgets,Direct Payments City Team,Other Agency and Contracted Services,57401,Direct Payments,06/04/2011,3301248347,583.04,A4e Management Ltd Week 3
http://statistics.data.gov.uk/id/local-authority/38,Oxfordshire County Council,SCS Pooled Budgets,Direct Payments City Team,Other Agency and Contracted Services,57401,Direct Payments,06/04/2011,3301248348,1473.6,A4e Management Ltd Week 3
http://statistics.data.gov.uk/id/local-authority/38,Oxfordshire County Council,SCS Pooled Budgets,Direct Payments North Team,Other Agency and Contracted Services,57401,Direct Payments,06/04/2011,3301248350,600,A4e Management Ltd Week 3
http://statistics.data.gov.uk/id/local-authority/38,Oxfordshire County Council,SCS Pooled Budgets,Direct Payments North Team,Other Agency and Contracted Services,57401,Direct Payments,06/04/2011,3301248351,3194.09,A4e Management Ltd Week 3
http://statistics.data.gov.uk/id/local-authority/38,Oxfordshire County Council,SCS Pooled Budgets,PD Comm Supp Purchasg Budget - Thame,Other Agency and Contracted Services,57401,Direct Payments,06/04/2011,3301248354,1176.04,A4e Management Ltd Week 3
http://statistics.data.gov.uk/id/local-authority/38,Oxfordshire County Council,SCS Pooled Budgets,PD Comm Supp Purchasg Budget - Abingdon,Other Agency and Contracted Services,57401,Direct Payments,06/04/2011,3301248355,788.4,A4e Management Ltd Week 3
http://statistics.data.gov.uk/id/local-authority/38,Oxfordshire County Council,Social & Community Services,Community Support Budget - City East,Other Agency and Contracted Services,57401,Direct Payments,06/04/2011,3301248356,682,A4e Management Ltd Week 3
http://statistics.data.gov.uk/id/local-authority/38,Oxfordshire County Council,SCS Pooled Budgets,Community Support Budget - Banbury,Other Agency and Contracted Services,57401,Direct Payments,06/04/2011,3301248357,1120,A4e Management Ltd Week 3
http://statistics.data.gov.uk/id/local-authority/38,Oxfordshire County Council,SCS Pooled Budgets,Direct Payments South Team,Other Agency and Contracted Services,57401,Direct Payments,06/04/2011,3301248358,959.36,A4e Management Ltd Week 3
http://statistics.data.gov.uk/id/local-authority/38,Oxfordshire County Council,SCS Pooled Budgets,PD Community Support Budget - Kidlington,Other Agency and Contracted Services,57401,Direct Payments,06/04/2011,3301248359,2654.28,A4e Management Ltd Week 3
http://statistics.data.gov.uk/id/local-authority/38,Oxfordshire County Council,SCS Pooled Budgets,Community Support Budget - Kidlington,Other Agency and Contracted Services,57401,Direct Payments,06/04/2011,3301248361,1267.7,A4e Management Ltd Week 3
http://statistics.data.gov.uk/id/local-authority/38,Oxfordshire County Council,SCS Pooled Budgets,Community Support Budget - City,Other Agency and Contracted Services,57401,Direct Payments,06/04/2011,3301248362,2281.86,A4e Management Ltd Week 3
http://statistics.data.gov.uk/id/local-authority/38,Oxfordshire County Council,SCS Pooled Budgets,Direct Payments North Team,Other Agency and Contracted Services,57401,Direct Payments,06/04/2011,3301248364,1626.08,A4e Management Ltd Week 3
http://statistics.data.gov.uk/id/local-authority/38,Oxfordshire County Council,Social & Community Services,Community Support Budget - City East,Other Agency and Contracted Services,57401,Direct Payments,06/04/2011,3301248365,864.4,A4e Management Ltd Week 3
http://statistics.data.gov.uk/id/local-authority/38,Oxfordshire County Council,SCS Pooled Budgets,Direct Payments South Team,Other Agency and Contracted Services,57401,Direct Payments,06/04/2011,3301248370,1135.6,HOLD Ltd
http://statistics.data.gov.uk/id/local-authority/38,Oxfordshire County Council,SCS Pooled Budgets,Direct Payments South Team,Other Agency and Contracted Services,57401,Direct Payments,06/04/2011,3301248371,601.2,HOLD Ltd
http://statistics.data.gov.uk/id/local-authority/38,Oxfordshire County Council,SCS Pooled Budgets,Direct Payments South Team,Other Agency and Contracted Services,57401,Direct Payments,06/04/2011,3301248372,935.2,HOLD Ltd
http://statistics.data.gov.uk/id/local-authority/38,Oxfordshire County Council,SCS Pooled Budgets,Direct Payments South Team,Other Agency and Contracted Services,57401,Direct Payments,06/04/2011,3301248373,935.2,HOLD Ltd
http://statistics.data.gov.uk/id/local-authority/38,Oxfordshire County Council,SCS Pooled Budgets,Direct Payments South Team,Other Agency and Contracted Services,57401,Direct Payments,06/04/2011,3301248374,670.8,HOLD Ltd
http://statistics.data.gov.uk/id/local-authority/38,Oxfordshire County Council,SCS Pooled Budgets,Direct Payments South Team,Other Agency and Contracted Services,57401,Direct Payments,06/04/2011,3301248375,935.2,HOLD Ltd
http://statistics.data.gov.uk/id/local-authority/38,Oxfordshire County Council,SCS Pooled Budgets,Direct Payments South Team,Other Agency and Contracted Services,57401,Direct Payments,06/04/2011,3301248377,935.2,HOLD Ltd
http://statistics.data.gov.uk/id/local-authority/38,Oxfordshire County Council,SCS Pooled Budgets,Direct Payments South Team,Other Agency and Contracted Services,57401,Direct Payments,06/04/2011,3301248378,935.2,HOLD Ltd
http://statistics.data.gov.uk/id/local-authority/38,Oxfordshire County Council,SCS Pooled Budgets,Direct Payments South Team,Other Agency and Contracted Services,57401,Direct Payments,06/04/2011,3301248379,801.6,HOLD Ltd
http://statistics.data.gov.uk/id/local-authority/38,Oxfordshire County Council,SCS Pooled Budgets,Direct Payments South Team,Other Agency and Contracted Services,57401,Direct Payments,06/04/2011,3301248384,935.2,HOLD Ltd
http://statistics.data.gov.uk/id/local-authority/38,Oxfordshire County Council,SCS Pooled Budgets,PD Comm Supp Purchasg Budget - City,Other Agency and Contracted Services,57401,Direct Payments,06/04/2011,3301248386,1115.88,HOLD Ltd
http://statistics.data.gov.uk/id/local-authority/38,Oxfordshire County Council,SCS Pooled Budgets,Direct Payments South Team,Other Agency and Contracted Services,57401,Direct Payments,06/04/2011,3301248389,804.96,HOLD Ltd
http://statistics.data.gov.uk/id/local-authority/38,Oxfordshire County Council,SCS Pooled Budgets,Direct Payments South Team,Other Agency and Contracted Services,57401,Direct Payments,06/04/2011,3301248392,1006.2,HOLD Ltd
http://statistics.data.gov.uk/id/local-authority/38,Oxfordshire County Council,SCS Pooled Budgets,Direct Payments South Team,Other Agency and Contracted Services,57401,Direct Payments,06/04/2011,3301248394,935.2,HOLD Ltd
http://statistics.data.gov.uk/id/local-authority/38,Oxfordshire County Council,SCS Pooled Budgets,Direct Payments South Team,Other Agency and Contracted Services,57401,Direct Payments,06/04/2011,3301248396,804.96,HOLD Ltd
http://statistics.data.gov.uk/id/local-authority/38,Oxfordshire County Council,SCS Pooled Budgets,Direct Payments South Team,Other Agency and Contracted Services,57401,Direct Payments,06/04/2011,3301248397,935.2,HOLD Ltd
http://statistics.data.gov.uk/id/local-authority/38,Oxfordshire County Council,SCS Pooled Budgets,Direct Payments South Team,Other Agency and Contracted Services,57401,Direct Payments,06/04/2011,3301248398,935.2,HOLD Ltd
http://statistics.data.gov.uk/id/local-authority/38,Oxfordshire County Council,SCS Pooled Budgets,CSDP Sensory Impairment Team,Other Agency and Contracted Services,57401,Direct Payments,06/04/2011,3301248400,514.29,REDACTED PERSONAL DATA
http://statistics.data.gov.uk/id/local-authority/38,Oxfordshire County Council,Social & Community Services,Residential Purchasing Carers Grant,Other Agency and Contracted Services,57401,Direct Payments,06/04/2011,3301248402,750,REDACTED PERSONAL DATA
http://statistics.data.gov.uk/id/local-authority/38,Oxfordshire County Council,Social & Community Services,Residential Purchasing Carers Grant,Other Agency and Contracted Services,57401,Direct Payments,06/04/2011,3301248403,500,REDACTED PERSONAL DATA
http://statistics.data.gov.uk/id/local-authority/38,Oxfordshire County Council,SCS Pooled Budgets,Community Support Budget - County Carers,Other Agency and Contracted Services,57401,Direct Payments,06/04/2011,3301248404,500,REDACTED PERSONAL DATA
http://statistics.data.gov.uk/id/local-authority/38,Oxfordshire County Council,SCS Pooled Budgets,Community Support Budget - City,Other Agency and Contracted Services,57300,Home Support (Ext) OS&HCD,06/04/2011,3301248492,3845.42,Home Choice Care
http://statistics.data.gov.uk/id/local-authority/38,Oxfordshire County Council,SCS Pooled Budgets,Community Support Budget - Abingdon,Other Agency and Contracted Services,57300,Home Support (Ext) OS&HCD,06/04/2011,3301248494,2270.32,Home Choice Care
http://statistics.data.gov.uk/id/local-authority/38,Oxfordshire County Council,SCS Pooled Budgets,PD Comm Supp Purchasg Budget - Didcot,Other Agency and Contracted Services,57300,Home Support (Ext) OS&HCD,06/04/2011,3301248496,680.17,Day & Night Care Assistance
http://statistics.data.gov.uk/id/local-authority/38,Oxfordshire County Council,SCS Pooled Budgets,PD Comm Supp Purchasg Budget - Didcot,Other Agency and Contracted Services,57300,Home Support (Ext) OS&HCD,06/04/2011,3301248497,781.73,Day & Night Care Assistance
http://statistics.data.gov.uk/id/local-authority/38,Oxfordshire County Council,SCS Pooled Budgets,PD Comm Supp Purchasg Budget - Didcot,Other Agency and Contracted Services,57300,Home Support (Ext) OS&HCD,06/04/2011,3301248498,591.43,Day & Night Care Assistance
http://statistics.data.gov.uk/id/local-authority/38,Oxfordshire County Council,Social & Community Services,Dementia Advisers,Other Agency and Contracted Services,57300,Home Support (Ext) OS&HCD,06/04/2011,3301248500,1950.96,Oxfordshire Crossroads
http://statistics.data.gov.uk/id/local-authority/38,Oxfordshire County Council,Social & Community Services,Stroke Grant,Other Agency and Contracted Services,57300,Home Support (Ext) OS&HCD,06/04/2011,3301248501,1739.88,Oxfordshire Crossroads
http://statistics.data.gov.uk/id/local-authority/38,Oxfordshire County Council,SCS Pooled Budgets,Community Support Budget - Abingdon,Other Agency and Contracted Services,57300,Home Support (Ext) OS&HCD,06/04/2011,3301248503,1119.45,Sevacare (UK) Ltd
http://statistics.data.gov.uk/id/local-authority/38,Oxfordshire County Council,SCS Pooled Budgets,PD Comm Supp Budget - Banbury,Other Agency and Contracted Services,57300,Home Support (Ext) OS&HCD,06/04/2011,3301248505,3705.55,Sevacare (UK) Ltd
http://statistics.data.gov.uk/id/local-authority/38,Oxfordshire County Council,SCS Pooled Budgets,PD CS Purch Budget - Health S28a JC,Other Agency and Contracted Services,57300,Home Support (Ext) OS&HCD,06/04/2011,3301248506,1425.68,Heart to Heart Care Ltd
http://statistics.data.gov.uk/id/local-authority/38,Oxfordshire County Council,SCS Pooled Budgets,Community Support Budget - City,Other Agency and Contracted Services,57300,Home Support (Ext) OS&HCD,06/04/2011,3301248508,4202.73,1 to 1 Care
http://statistics.data.gov.uk/id/local-authority/38,Oxfordshire County Council,SCS Pooled Budgets,Community Support Budget - Wantage,Other Agency and Contracted Services,57300,Home Support (Ext) OS&HCD,06/04/2011,3301248509,1426.99,Primary Healthcare
http://statistics.data.gov.uk/id/local-authority/38,Oxfordshire County Council,SCS Pooled Budgets,Community Support Budget - Abingdon,Other Agency and Contracted Services,57300,Home Support (Ext) OS&HCD,06/04/2011,3301248511,555.08,Radis Community Care
http://statistics.data.gov.uk/id/local-authority/38,Oxfordshire County Council,SCS Pooled Budgets,OP Pool Continuing Care Delegated Health,Other Agency and Contracted Services,57300,Home Support (Ext) OS&HCD,06/04/2011,3301248512,658,Radis Community Care
http://statistics.data.gov.uk/id/local-authority/38,Oxfordshire County Council,SCS Pooled Budgets,Community Support Budget - Thame,Other Agency and Contracted Services,57300,Home Support (Ext) OS&HCD,06/04/2011,3301248513,745.79,Total Homecare Solutions Ltd
http://statistics.data.gov.uk/id/local-authority/38,Oxfordshire County Council,SCS Pooled Budgets,PD Community Support Budget - Faringdon,Other Agency and Contracted Services,57300,Home Support (Ext) OS&HCD,06/04/2011,3301248514,638.09,Total Homecare Solutions Ltd
http://statistics.data.gov.uk/id/local-authority/38,Oxfordshire County Council,SCS Pooled Budgets,Community Support Budget - City,Other Agency and Contracted Services,57300,Home Support (Ext) OS&HCD,06/04/2011,3301248517,3074.31,PLL CARE
http://statistics.data.gov.uk/id/local-authority/38,Oxfordshire County Council,SCS Pooled Budgets,Community Support Budget - City,Other Agency and Contracted Services,57300,Home Support (Ext) OS&HCD,06/04/2011,3301248520,4263.36,Oxford Private Care
http://statistics.data.gov.uk/id/local-authority/38,Oxfordshire County Council,SCS Pooled Budgets,Community Support Budget - Kidlington,Other Agency and Contracted Services,57300,Home Support (Ext) OS&HCD,06/04/2011,3301248557,2873.57,1 to 1 Care
http://statistics.data.gov.uk/id/local-authority/38,Oxfordshire County Council,SCS Pooled Budgets,Community Support Budget - City,Other Agency and Contracted Services,57300,Home Support (Ext) OS&HCD,06/04/2011,3301248558,4895.73,1 to 1 Care
http://statistics.data.gov.uk/id/local-authority/38,Oxfordshire County Council,SCS Pooled Budgets,Community Support Budget - Didcot,Other Agency and Contracted Services,57300,Home Support (Ext) OS&HCD,06/04/2011,3301248559,1343.1,1 to 1 Care
http://statistics.data.gov.uk/id/local-authority/38,Oxfordshire County Council,SCS Pooled Budgets,Community Support Budget - Abingdon,Other Agency and Contracted Services,57300,Home Support (Ext) OS&HCD,06/04/2011,3301248560,1259.13,1 to 1 Care
http://statistics.data.gov.uk/id/local-authority/38,Oxfordshire County Council,SCS Pooled Budgets,Community Support Budget - Thame,Other Agency and Contracted Services,57300,Home Support (Ext) OS&HCD,06/04/2011,3301248562,7964.83,Nestor Primecare Services Ltd.
http://statistics.data.gov.uk/id/local-authority/38,Oxfordshire County Council,SCS Pooled Budgets,OP Pool Continuing Care Medication Only,Other Agency and Contracted Services,57306,Home Support (Ext) Medication Only,06/04/2011,3301248564,560.49,Allied Healthcare Group Ltd
http://statistics.data.gov.uk/id/local-authority/38,Oxfordshire County Council,SCS Pooled Budgets,Community Support Budget - Kidlington,Other Agency and Contracted Services,57300,Home Support (Ext) OS&HCD,06/04/2011,3301248565,4310.33,Allied Healthcare Group Ltd
http://statistics.data.gov.uk/id/local-authority/38,Oxfordshire County Council,SCS Pooled Budgets,Community Support Budget - Banbury,Other Agency and Contracted Services,57300,Home Support (Ext) OS&HCD,06/04/2011,3301248566,2821.18,Allied Healthcare Group Ltd
http://statistics.data.gov.uk/id/local-authority/38,Oxfordshire County Council,SCS Pooled Budgets,Community Support Budget - Chipping Nort,Other Agency and Contracted Services,57300,Home Support (Ext) OS&HCD,06/04/2011,3301248567,5851.55,Allied Healthcare Group Ltd
http://statistics.data.gov.uk/id/local-authority/38,Oxfordshire County Council,SCS Pooled Budgets,PD Comm Supp Budget - Banbury,Other Agency and Contracted Services,57300,Home Support (Ext) OS&HCD,06/04/2011,3301248569,4240.98,Allied Healthcare Group Ltd
http://statistics.data.gov.uk/id/local-authority/38,Oxfordshire County Council,SCS Pooled Budgets,Community Support Budget - City,Other Agency and Contracted Services,57300,Home Support (Ext) OS&HCD,06/04/2011,3301248571,1261.16,Amber Healthcare Personnel Ltd
http://statistics.data.gov.uk/id/local-authority/38,Oxfordshire County Council,SCS Pooled Budgets,Community Support Budget - Abingdon,Other Agency and Contracted Services,57300,Home Support (Ext) OS&HCD,06/04/2011,3301248572,12278.87,Amber Healthcare Personnel Ltd
http://statistics.data.gov.uk/id/local-authority/38,Oxfordshire County Council,SCS Pooled Budgets,Community Support Budget - Witney,Other Agency and Contracted Services,57300,Home Support (Ext) OS&HCD,06/04/2011,3301248573,3732.49,Amber Healthcare Personnel Ltd
http://statistics.data.gov.uk/id/local-authority/38,Oxfordshire County Council,SCS Pooled Budgets,PD Comm Supp Purchasg Budget - Witney,Other Agency and Contracted Services,57300,Home Support (Ext) OS&HCD,06/04/2011,3301248575,1287.39,Amber Healthcare Personnel Ltd
http://statistics.data.gov.uk/id/local-authority/38,Oxfordshire County Council,SCS Pooled Budgets,OP Pool Continuing Care Medication Only,Other Agency and Contracted Services,57306,Home Support (Ext) Medication Only,06/04/2011,3301248576,1169.41,Home Choice Care
http://statistics.data.gov.uk/id/local-authority/38,Oxfordshire County Council,SCS Pooled Budgets,Community Support Budget - City,Other Agency and Contracted Services,57300,Home Support (Ext) OS&HCD,06/04/2011,3301248577,20389.72,Home Choice Care
http://statistics.data.gov.uk/id/local-authority/38,Oxfordshire County Council,SCS Pooled Budgets,Community Support Budget - Abingdon,Other Agency and Contracted Services,57300,Home Support (Ext) OS&HCD,06/04/2011,3301248579,4614.3,Home Choice Care
http://statistics.data.gov.uk/id/local-authority/38,Oxfordshire County Council,SCS Pooled Budgets,PD Comm Supp Purchasg Budget - City,Other Agency and Contracted Services,57300,Home Support (Ext) OS&HCD,06/04/2011,3301248581,1055.89,Home Choice Care
http://statistics.data.gov.uk/id/local-authority/38,Oxfordshire County Council,SCS Pooled Budgets,OP Pool Continuing Care Medication Only,Other Agency and Contracted Services,57306,Home Support (Ext) Medication Only,06/04/2011,3301248583,1729.13,Bright Yellow Group Plc
http://statistics.data.gov.uk/id/local-authority/38,Oxfordshire County Council,SCS Pooled Budgets,Community Support Budget - Banbury,Other Agency and Contracted Services,57300,Home Support (Ext) OS&HCD,06/04/2011,3301248584,15182.01,Bright Yellow Group Plc
http://statistics.data.gov.uk/id/local-authority/38,Oxfordshire County Council,SCS Pooled Budgets,Community Support Budget - Bicester,Other Agency and Contracted Services,57300,Home Support (Ext) OS&HCD,06/04/2011,3301248585,17037,Bright Yellow Group Plc
http://statistics.data.gov.uk/id/local-authority/38,Oxfordshire County Council,SCS Pooled Budgets,Community Support Budget - Witney,Other Agency and Contracted Services,57300,Home Support (Ext) OS&HCD,06/04/2011,3301248587,4597.46,Bright Yellow Group Plc
http://statistics.data.gov.uk/id/local-authority/38,Oxfordshire County Council,SCS Pooled Budgets,Community Support Budget - Chipping Nort,Other Agency and Contracted Services,57300,Home Support (Ext) OS&HCD,06/04/2011,3301248588,21497.99,Bright Yellow Group Plc
http://statistics.data.gov.uk/id/local-authority/38,Oxfordshire County Council,SCS Pooled Budgets,PD Comm Supp Budget - Banbury,Other Agency and Contracted Services,57300,Home Support (Ext) OS&HCD,06/04/2011,3301248589,5129.36,Bright Yellow Group Plc
http://statistics.data.gov.uk/id/local-authority/38,Oxfordshire County Council,SCS Pooled Budgets,PD Comm Supp Budgt - Bicester/Kidlington,Other Agency and Contracted Services,57300,Home Support (Ext) OS&HCD,06/04/2011,3301248590,2508.02,Bright Yellow Group Plc
http://statistics.data.gov.uk/id/local-authority/38,Oxfordshire County Council,SCS Pooled Budgets,PD Comm Supp Purchasg Budget - Chip. N.,Other Agency and Contracted Services,57300,Home Support (Ext) OS&HCD,06/04/2011,3301248592,1051.1,Bright Yellow Group Plc
http://statistics.data.gov.uk/id/local-authority/38,Oxfordshire County Council,SCS Pooled Budgets,OP Pool Continuing Care Medication Only,Other Agency and Contracted Services,57306,Home Support (Ext) Medication Only,06/04/2011,3301248593,877.74,Charterville Care At Home
http://statistics.data.gov.uk/id/local-authority/38,Oxfordshire County Council,SCS Pooled Budgets,Community Support Budget - Witney,Other Agency and Contracted Services,57300,Home Support (Ext) OS&HCD,06/04/2011,3301248594,8321.59,Charterville Care At Home
http://statistics.data.gov.uk/id/local-authority/38,Oxfordshire County Council,Social & Community Services,Acquired Brain Injury,Other Agency and Contracted Services,57300,Home Support (Ext) OS&HCD,06/04/2011,3301248595,2686.42,Charterville Care At Home
http://statistics.data.gov.uk/id/local-authority/38,Oxfordshire County Council,SCS Pooled Budgets,PD North Supporting People,Other Agency and Contracted Services,57300,Home Support (Ext) OS&HCD,06/04/2011,3301248596,1681.07,Charterville Care At Home
http://statistics.data.gov.uk/id/local-authority/38,Oxfordshire County Council,SCS Pooled Budgets,PD Comm Supp Purchasg Budget - Witney,Other Agency and Contracted Services,57300,Home Support (Ext) OS&HCD,06/04/2011,3301248597,3761.19,Charterville Care At Home
http://statistics.data.gov.uk/id/local-authority/38,Oxfordshire County Council,SCS Pooled Budgets,OP Pool Continuing Care Medication Only,Other Agency and Contracted Services,57306,Home Support (Ext) Medication Only,06/04/2011,3301248598,888.48,Cherwell Care Services
http://statistics.data.gov.uk/id/local-authority/38,Oxfordshire County Council,SCS Pooled Budgets,Community Support Budget - Kidlington,Other Agency and Contracted Services,57300,Home Support (Ext) OS&HCD,06/04/2011,3301248599,2418.77,Cherwell Care Services
http://statistics.data.gov.uk/id/local-authority/38,Oxfordshire County Council,SCS Pooled Budgets,Community Support Budget - Bicester,Other Agency and Contracted Services,57300,Home Support (Ext) OS&HCD,06/04/2011,3301248600,17284.21,Cherwell Care Services
http://statistics.data.gov.uk/id/local-authority/38,Oxfordshire County Council,SCS Pooled Budgets,PD Comm Supp Budgt - Bicester/Kidlington,Other Agency and Contracted Services,57300,Home Support (Ext) OS&HCD,06/04/2011,3301248602,1811.29,Cherwell Care Services
http://statistics.data.gov.uk/id/local-authority/38,Oxfordshire County Council,SCS Pooled Budgets,Community Support Budget - Kidlington,Other Agency and Contracted Services,57300,Home Support (Ext) OS&HCD,06/04/2011,3301248605,5979.05,Oxfordshire Crossroads
http://statistics.data.gov.uk/id/local-authority/38,Oxfordshire County Council,SCS Pooled Budgets,Community Support Budget - City,Other Agency and Contracted Services,57300,Home Support (Ext) OS&HCD,06/04/2011,3301248607,5707.35,Oxfordshire Crossroads
http://statistics.data.gov.uk/id/local-authority/38,Oxfordshire County Council,SCS Pooled Budgets,Community Support Budget - Witney,Other Agency and Contracted Services,57300,Home Support (Ext) OS&HCD,06/04/2011,3301248609,957.64,Oxfordshire Crossroads
http://statistics.data.gov.uk/id/local-authority/38,Oxfordshire County Council,Social & Community Services,Dementia Advisers,Other Agency and Contracted Services,57300,Home Support (Ext) OS&HCD,06/04/2011,3301248610,1625.44,Oxfordshire Crossroads
http://statistics.data.gov.uk/id/local-authority/38,Oxfordshire County Council,Social & Community Services,Stroke Grant,Other Agency and Contracted Services,57300,Home Support (Ext) OS&HCD,06/04/2011,3301248611,1081.25,Oxfordshire Crossroads
http://statistics.data.gov.uk/id/local-authority/38,Oxfordshire County Council,SCS Pooled Budgets,PD Community Support Budget - Kidlington,Other Agency and Contracted Services,57300,Home Support (Ext) OS&HCD,06/04/2011,3301248615,5748.74,Oxfordshire Crossroads
http://statistics.data.gov.uk/id/local-authority/38,Oxfordshire County Council,SCS Pooled Budgets,PD Comm Supp Budgt - Bicester/Kidlington,Other Agency and Contracted Services,57300,Home Support (Ext) OS&HCD,06/04/2011,3301248616,1359.98,Oxfordshire Crossroads
http://statistics.data.gov.uk/id/local-authority/38,Oxfordshire County Council,SCS Pooled Budgets,PD Comm Supp Purchasg Budget - City,Other Agency and Contracted Services,57300,Home Support (Ext) OS&HCD,06/04/2011,3301248617,1129.06,Oxfordshire Crossroads
http://statistics.data.gov.uk/id/local-authority/38,Oxfordshire County Council,SCS Pooled Budgets,OP Pool Continuing Care Medication Only,Other Agency and Contracted Services,57306,Home Support (Ext) Medication Only,06/04/2011,3301248618,2545.77,Day & Night Care Assistance
http://statistics.data.gov.uk/id/local-authority/38,Oxfordshire County Council,SCS Pooled Budgets,Community Support Budget - City,Other Agency and Contracted Services,57300,Home Support (Ext) OS&HCD,06/04/2011,3301248619,5926.8,Day & Night Care Assistance
http://statistics.data.gov.uk/id/local-authority/38,Oxfordshire County Council,SCS Pooled Budgets,Community Support Budget - Abingdon,Other Agency and Contracted Services,57300,Home Support (Ext) OS&HCD,06/04/2011,3301248621,502.7,Day & Night Care Assistance
http://statistics.data.gov.uk/id/local-authority/38,Oxfordshire County Council,SCS Pooled Budgets,Community Support Budget - Wantage,Other Agency and Contracted Services,57300,Home Support (Ext) OS&HCD,06/04/2011,3301248622,10661.93,Day & Night Care Assistance
http://statistics.data.gov.uk/id/local-authority/38,Oxfordshire County Council,SCS Pooled Budgets,Community Support Budget - Witney,Other Agency and Contracted Services,57300,Home Support (Ext) OS&HCD,06/04/2011,3301248623,7378.07,Day & Night Care Assistance
http://statistics.data.gov.uk/id/local-authority/38,Oxfordshire County Council,Social & Community Services,Dementia Advisers,Other Agency and Contracted Services,57300,Home Support (Ext) OS&HCD,06/04/2011,3301248624,1749.71,Day & Night Care Assistance
http://statistics.data.gov.uk/id/local-authority/38,Oxfordshire County Council,SCS Pooled Budgets,LD Team budget (CMPB) North,Other Agency and Contracted Services,57300,Home Support (Ext) OS&HCD,06/04/2011,3301248625,541.2,Day & Night Care Assistance
http://statistics.data.gov.uk/id/local-authority/38,Oxfordshire County Council,SCS Pooled Budgets,LD Team budget (CMPB) - City,Other Agency and Contracted Services,57300,Home Support (Ext) OS&HCD,06/04/2011,3301248626,910.43,Day & Night Care Assistance
http://statistics.data.gov.uk/id/local-authority/38,Oxfordshire County Council,SCS Pooled Budgets,PD Comm Supp Purchasg Budget - City,Other Agency and Contracted Services,57300,Home Support (Ext) OS&HCD,06/04/2011,3301248628,1472.17,Day & Night Care Assistance
http://statistics.data.gov.uk/id/local-authority/38,Oxfordshire County Council,SCS Pooled Budgets,PD Comm Supp Purchasg Budget - Didcot,Other Agency and Contracted Services,57300,Home Support (Ext) OS&HCD,06/04/2011,3301248629,859.1,Day & Night Care Assistance
http://statistics.data.gov.uk/id/local-authority/38,Oxfordshire County Council,SCS Pooled Budgets,PD North Supporting People,Other Agency and Contracted Services,57300,Home Support (Ext) OS&HCD,06/04/2011,3301248631,693.37,Day & Night Care Assistance
http://statistics.data.gov.uk/id/local-authority/38,Oxfordshire County Council,SCS Pooled Budgets,OP Pool Continuing Care Medication Only,Other Agency and Contracted Services,57306,Home Support (Ext) Medication Only,06/04/2011,3301248633,764.1,Elite Care Agency
http://statistics.data.gov.uk/id/local-authority/38,Oxfordshire County Council,SCS Pooled Budgets,Community Support Budget - Bicester,Other Agency and Contracted Services,57300,Home Support (Ext) OS&HCD,06/04/2011,3301248634,2491.06,Elite Care Agency
http://statistics.data.gov.uk/id/local-authority/38,Oxfordshire County Council,SCS Pooled Budgets,OP Pool Continuing Care Medication Only,Other Agency and Contracted Services,57306,Home Support (Ext) Medication Only,06/04/2011,3301248637,1271.78,Greigcare Home Service
http://statistics.data.gov.uk/id/local-authority/38,Oxfordshire County Council,SCS Pooled Budgets,Community Support Budget - Banbury,Other Agency and Contracted Services,57300,Home Support (Ext) OS&HCD,06/04/2011,3301248638,25454.46,Greigcare Home Service
http://statistics.data.gov.uk/id/local-authority/38,Oxfordshire County Council,SCS Pooled Budgets,LD Team budget (CMPB) North,Other Agency and Contracted Services,57300,Home Support (Ext) OS&HCD,06/04/2011,3301248640,1630.89,Greigcare Home Service
http://statistics.data.gov.uk/id/local-authority/38,Oxfordshire County Council,SCS Pooled Budgets,OP Pool Continuing Care Medication Only,Other Agency and Contracted Services,57306,Home Support (Ext) Medication Only,06/04/2011,3301248642,522.1,Heart to Heart Care Ltd
http://statistics.data.gov.uk/id/local-authority/38,Oxfordshire County Council,SCS Pooled Budgets,Community Support Budget - Faringdon,Other Agency and Contracted Services,57300,Home Support (Ext) OS&HCD,06/04/2011,3301248643,552.23,Heart to Heart Care Ltd
http://statistics.data.gov.uk/id/local-authority/38,Oxfordshire County Council,SCS Pooled Budgets,Community Support Budget - Witney,Other Agency and Contracted Services,57300,Home Support (Ext) OS&HCD,06/04/2011,3301248644,28461.95,Heart to Heart Care Ltd
http://statistics.data.gov.uk/id/local-authority/38,Oxfordshire County Council,SCS Pooled Budgets,Community Support Budget - Chipping Nort,Other Agency and Contracted Services,57300,Home Support (Ext) OS&HCD,06/04/2011,3301248645,734.23,Heart to Heart Care Ltd
http://statistics.data.gov.uk/id/local-authority/38,Oxfordshire County Council,SCS Pooled Budgets,PD Comm Supp Purchasg Budget - Witney,Other Agency and Contracted Services,57300,Home Support (Ext) OS&HCD,06/04/2011,3301248646,6139.73,Heart to Heart Care Ltd
http://statistics.data.gov.uk/id/local-authority/38,Oxfordshire County Council,SCS Pooled Budgets,OP Pool Continuing Care Medication Only,Other Agency and Contracted Services,57306,Home Support (Ext) Medication Only,06/04/2011,3301248648,1828.93,HOME HELPERS CARE LTD
http://statistics.data.gov.uk/id/local-authority/38,Oxfordshire County Council,SCS Pooled Budgets,Community Support Budget - Didcot,Other Agency and Contracted Services,57300,Home Support (Ext) OS&HCD,06/04/2011,3301248649,6444.53,HOME HELPERS CARE LTD
http://statistics.data.gov.uk/id/local-authority/38,Oxfordshire County Council,SCS Pooled Budgets,Community Support Budget - Abingdon,Other Agency and Contracted Services,57300,Home Support (Ext) OS&HCD,06/04/2011,3301248650,6242.13,HOME HELPERS CARE LTD
http://statistics.data.gov.uk/id/local-authority/38,Oxfordshire County Council,SCS Pooled Budgets,Community Support Budget - Wantage,Other Agency and Contracted Services,57300,Home Support (Ext) OS&HCD,06/04/2011,3301248651,5070.63,HOME HELPERS CARE LTD
http://statistics.data.gov.uk/id/local-authority/38,Oxfordshire County Council,SCS Pooled Budgets,Community Support Budget - Banbury,Other Agency and Contracted Services,57300,Home Support (Ext) OS&HCD,06/04/2011,3301248655,13147.55,Leonard Cheshire FOR PAYMENTS ONLY
http://statistics.data.gov.uk/id/local-authority/38,Oxfordshire County Council,SCS Pooled Budgets,Community Support Budget - Bicester,Other Agency and Contracted Services,57300,Home Support (Ext) OS&HCD,06/04/2011,3301248656,5901.51,Leonard Cheshire FOR PAYMENTS ONLY
http://statistics.data.gov.uk/id/local-authority/38,Oxfordshire County Council,SCS Pooled Budgets,LD Team budget (CMPB) North,Other Agency and Contracted Services,57300,Home Support (Ext) OS&HCD,06/04/2011,3301248657,1335.92,Leonard Cheshire FOR PAYMENTS ONLY
http://statistics.data.gov.uk/id/local-authority/38,Oxfordshire County Council,SCS Pooled Budgets,OP Pool Continuing Care Medication Only,Other Agency and Contracted Services,57306,Home Support (Ext) Medication Only,06/04/2011,3301248660,826.53,Mears
http://statistics.data.gov.uk/id/local-authority/38,Oxfordshire County Council,SCS Pooled Budgets,Community Support Budget - Kidlington,Other Agency and Contracted Services,57300,Home Support (Ext) OS&HCD,06/04/2011,3301248661,1418.14,Mears
http://statistics.data.gov.uk/id/local-authority/38,Oxfordshire County Council,SCS Pooled Budgets,Community Support Budget - Bicester,Other Agency and Contracted Services,57300,Home Support (Ext) OS&HCD,06/04/2011,3301248662,9229.91,Mears
http://statistics.data.gov.uk/id/local-authority/38,Oxfordshire County Council,SCS Pooled Budgets,Community Support Budget - Witney,Other Agency and Contracted Services,57300,Home Support (Ext) OS&HCD,06/04/2011,3301248664,10761.79,Mears
http://statistics.data.gov.uk/id/local-authority/38,Oxfordshire County Council,SCS Pooled Budgets,PD Community Support Budget - Kidlington,Other Agency and Contracted Services,57300,Home Support (Ext) OS&HCD,06/04/2011,3301248666,1076.57,Mears
http://statistics.data.gov.uk/id/local-authority/38,Oxfordshire County Council,SCS Pooled Budgets,PD Comm Supp Purchasg Budget - Witney,Other Agency and Contracted Services,57300,Home Support (Ext) OS&HCD,06/04/2011,3301248669,4848.03,Mears
http://statistics.data.gov.uk/id/local-authority/38,Oxfordshire County Council,SCS Pooled Budgets,OP Pool Continuing Care Medication Only,Other Agency and Contracted Services,57306,Home Support (Ext) Medication Only,06/04/2011,3301248670,8331.25,Oxford Private Care
http://statistics.data.gov.uk/id/local-authority/38,Oxfordshire County Council,SCS Pooled Budgets,Community Support Budget - City,Other Agency and Contracted Services,57300,Home Support (Ext) OS&HCD,06/04/2011,3301248671,32592.54,Oxford Private Care
http://statistics.data.gov.uk/id/local-authority/38,Oxfordshire County Council,SCS Pooled Budgets,Community Support Budget - Didcot,Other Agency and Contracted Services,57300,Home Support (Ext) OS&HCD,06/04/2011,3301248672,17599.68,Oxford Private Care
http://statistics.data.gov.uk/id/local-authority/38,Oxfordshire County Council,SCS Pooled Budgets,Community Support Budget - Faringdon,Other Agency and Contracted Services,57300,Home Support (Ext) OS&HCD,06/04/2011,3301248673,3482.5,Oxford Private Care
http://statistics.data.gov.uk/id/local-authority/38,Oxfordshire County Council,SCS Pooled Budgets,Community Support Budget - Abingdon,Other Agency and Contracted Services,57300,Home Support (Ext) OS&HCD,06/04/2011,3301248674,22930.92,Oxford Private Care
http://statistics.data.gov.uk/id/local-authority/38,Oxfordshire County Council,SCS Pooled Budgets,Community Support Budget - Wantage,Other Agency and Contracted Services,57300,Home Support (Ext) OS&HCD,06/04/2011,3301248675,9144.78,Oxford Private Care
http://statistics.data.gov.uk/id/local-authority/38,Oxfordshire County Council,SCS Pooled Budgets,PD Comm Supp Purchasg Budget - City,Other Agency and Contracted Services,57300,Home Support (Ext) OS&HCD,06/04/2011,3301248676,3480.42,Oxford Private Care
http://statistics.data.gov.uk/id/local-authority/38,Oxfordshire County Council,SCS Pooled Budgets,PD Comm Supp Purchasg Budget - Abingdon,Other Agency and Contracted Services,57300,Home Support (Ext) OS&HCD,06/04/2011,3301248678,1669.64,Oxford Private Care
http://statistics.data.gov.uk/id/local-authority/38,Oxfordshire County Council,SCS Pooled Budgets,Community Support Budget - Kidlington,Other Agency and Contracted Services,57300,Home Support (Ext) OS&HCD,06/04/2011,3301248681,8794.25,PLL CARE
http://statistics.data.gov.uk/id/local-authority/38,Oxfordshire County Council,SCS Pooled Budgets,Community Support Budget - City,Other Agency and Contracted Services,57300,Home Support (Ext) OS&HCD,06/04/2011,3301248682,9390.01,PLL CARE
http://statistics.data.gov.uk/id/local-authority/38,Oxfordshire County Council,SCS Pooled Budgets,Community Support Budget - Didcot,Other Agency and Contracted Services,57300,Home Support (Ext) OS&HCD,06/04/2011,3301248683,1315.32,PLL CARE
http://statistics.data.gov.uk/id/local-authority/38,Oxfordshire County Council,SCS Pooled Budgets,Community Support Budget - Faringdon,Other Agency and Contracted Services,57300,Home Support (Ext) OS&HCD,06/04/2011,3301248685,1268.31,PLL CARE
http://statistics.data.gov.uk/id/local-authority/38,Oxfordshire County Council,SCS Pooled Budgets,Community Support Budget - Abingdon,Other Agency and Contracted Services,57300,Home Support (Ext) OS&HCD,06/04/2011,3301248686,2855.8,PLL CARE
http://statistics.data.gov.uk/id/local-authority/38,Oxfordshire County Council,SCS Pooled Budgets,Community Support Budget - Wantage,Other Agency and Contracted Services,57300,Home Support (Ext) OS&HCD,06/04/2011,3301248687,2185.14,PLL CARE
http://statistics.data.gov.uk/id/local-authority/38,Oxfordshire County Council,SCS Pooled Budgets,Community Support Budget - Witney,Other Agency and Contracted Services,57300,Home Support (Ext) OS&HCD,06/04/2011,3301248688,2116.52,PLL CARE
http://statistics.data.gov.uk/id/local-authority/38,Oxfordshire County Council,SCS Pooled Budgets,PD Comm Supp Purchasg Budget - City,Other Agency and Contracted Services,57300,Home Support (Ext) OS&HCD,06/04/2011,3301248690,1327.08,PLL CARE
http://statistics.data.gov.uk/id/local-authority/38,Oxfordshire County Council,SCS Pooled Budgets,OP Pool Continuing Care Medication Only,Other Agency and Contracted Services,57306,Home Support (Ext) Medication Only,06/04/2011,3301248693,1240.92,Premier Personal Care
http://statistics.data.gov.uk/id/local-authority/38,Oxfordshire County Council,SCS Pooled Budgets,Community Support Budget - Henley,Other Agency and Contracted Services,57300,Home Support (Ext) OS&HCD,06/04/2011,3301248694,13053.88,Premier Personal Care
http://statistics.data.gov.uk/id/local-authority/38,Oxfordshire County Council,SCS Pooled Budgets,LD Team budget (CMPB) South,Other Agency and Contracted Services,57300,Home Support (Ext) OS&HCD,06/04/2011,3301248695,1412.86,Premier Personal Care
http://statistics.data.gov.uk/id/local-authority/38,Oxfordshire County Council,SCS Pooled Budgets,OP Pool Continuing Care Medication Only,Other Agency and Contracted Services,57306,Home Support (Ext) Medication Only,06/04/2011,3301248696,1187.47,Primary Healthcare
http://statistics.data.gov.uk/id/local-authority/38,Oxfordshire County Council,SCS Pooled Budgets,Community Support Budget - Didcot,Other Agency and Contracted Services,57300,Home Support (Ext) OS&HCD,06/04/2011,3301248697,937.45,Primary Healthcare
http://statistics.data.gov.uk/id/local-authority/38,Oxfordshire County Council,SCS Pooled Budgets,Community Support Budget - Henley,Other Agency and Contracted Services,57300,Home Support (Ext) OS&HCD,06/04/2011,3301248698,24594.15,Primary Healthcare
http://statistics.data.gov.uk/id/local-authority/38,Oxfordshire County Council,SCS Pooled Budgets,Community Support Budget - Faringdon,Other Agency and Contracted Services,57300,Home Support (Ext) OS&HCD,06/04/2011,3301248699,1210.27,Primary Healthcare
http://statistics.data.gov.uk/id/local-authority/38,Oxfordshire County Council,SCS Pooled Budgets,Community Support Budget - Wantage,Other Agency and Contracted Services,57300,Home Support (Ext) OS&HCD,06/04/2011,3301248700,4382.4,Primary Healthcare
http://statistics.data.gov.uk/id/local-authority/38,Oxfordshire County Council,SCS Pooled Budgets,LD Team budget (CMPB) South,Other Agency and Contracted Services,57300,Home Support (Ext) OS&HCD,06/04/2011,3301248701,610.39,Primary Healthcare
http://statistics.data.gov.uk/id/local-authority/38,Oxfordshire County Council,SCS Pooled Budgets,Community Support Budget - City,Other Agency and Contracted Services,57300,Home Support (Ext) OS&HCD,06/04/2011,3301248706,5204.2,Radis Community Care
http://statistics.data.gov.uk/id/local-authority/38,Oxfordshire County Council,SCS Pooled Budgets,Community Support Budget - Abingdon,Other Agency and Contracted Services,57300,Home Support (Ext) OS&HCD,06/04/2011,3301248707,3927.17,Radis Community Care
http://statistics.data.gov.uk/id/local-authority/38,Oxfordshire County Council,SCS Pooled Budgets,PD Community Support Budget - Kidlington,Other Agency and Contracted Services,57300,Home Support (Ext) OS&HCD,06/04/2011,3301248708,1100.86,Radis Community Care
http://statistics.data.gov.uk/id/local-authority/38,Oxfordshire County Council,SCS Pooled Budgets,PD Comm Supp Purchasg Budget - City,Other Agency and Contracted Services,57300,Home Support (Ext) OS&HCD,06/04/2011,3301248709,1564.73,Radis Community Care
http://statistics.data.gov.uk/id/local-authority/38,Oxfordshire County Council,SCS Pooled Budgets,Community Support Budget - Thame,Other Agency and Contracted Services,57300,Home Support (Ext) OS&HCD,06/04/2011,3301248711,19111.12,Risborough Carers Ltd
http://statistics.data.gov.uk/id/local-authority/38,Oxfordshire County Council,SCS Pooled Budgets,OP Pool Continuing Care Medication Only,Other Agency and Contracted Services,57306,Home Support (Ext) Medication Only,06/04/2011,3301248715,1142.67,Secure Care (Oxford) Ltd
http://statistics.data.gov.uk/id/local-authority/38,Oxfordshire County Council,SCS Pooled Budgets,Community Support Budget - City,Other Agency and Contracted Services,57300,Home Support (Ext) OS&HCD,06/04/2011,3301248716,10231.7,Secure Care (Oxford) Ltd
http://statistics.data.gov.uk/id/local-authority/38,Oxfordshire County Council,SCS Pooled Budgets,Community Support Budget - Didcot,Other Agency and Contracted Services,57300,Home Support (Ext) OS&HCD,06/04/2011,3301248717,1011.9,Secure Care (Oxford) Ltd
http://statistics.data.gov.uk/id/local-authority/38,Oxfordshire County Council,SCS Pooled Budgets,Community Support Budget - Thame,Other Agency and Contracted Services,57300,Home Support (Ext) OS&HCD,06/04/2011,3301248718,8201.77,Secure Care (Oxford) Ltd
http://statistics.data.gov.uk/id/local-authority/38,Oxfordshire County Council,SCS Pooled Budgets,Community Support Budget - Henley,Other Agency and Contracted Services,57300,Home Support (Ext) OS&HCD,06/04/2011,3301248719,904.1,Secure Care (Oxford) Ltd
http://statistics.data.gov.uk/id/local-authority/38,Oxfordshire County Council,SCS Pooled Budgets,PD Comm Supp Purchasg Budget - Henley,Other Agency and Contracted Services,57300,Home Support (Ext) OS&HCD,06/04/2011,3301248722,784.1,Secure Care (Oxford) Ltd
http://statistics.data.gov.uk/id/local-authority/38,Oxfordshire County Council,SCS Pooled Budgets,Community Support Budget - Banbury,Other Agency and Contracted Services,57300,Home Support (Ext) OS&HCD,06/04/2011,3301248723,29945.66,Sevacare (UK) Ltd
http://statistics.data.gov.uk/id/local-authority/38,Oxfordshire County Council,SCS Pooled Budgets,PD Comm Supp Budget - Banbury,Other Agency and Contracted Services,57300,Home Support (Ext) OS&HCD,06/04/2011,3301248724,10697.53,Sevacare (UK) Ltd
http://statistics.data.gov.uk/id/local-authority/38,Oxfordshire County Council,SCS Pooled Budgets,Community Support Budget - City,Other Agency and Contracted Services,57300,Home Support (Ext) OS&HCD,06/04/2011,3301248727,14194.81,Sevacare (UK) Ltd
http://statistics.data.gov.uk/id/local-authority/38,Oxfordshire County Council,SCS Pooled Budgets,Community Support Budget - Didcot,Other Agency and Contracted Services,57300,Home Support (Ext) OS&HCD,06/04/2011,3301248728,846.13,Sevacare (UK) Ltd
http://statistics.data.gov.uk/id/local-authority/38,Oxfordshire County Council,SCS Pooled Budgets,Community Support Budget - Thame,Other Agency and Contracted Services,57300,Home Support (Ext) OS&HCD,06/04/2011,3301248729,644.96,Sevacare (UK) Ltd
http://statistics.data.gov.uk/id/local-authority/38,Oxfordshire County Council,SCS Pooled Budgets,Community Support Budget - Abingdon,Other Agency and Contracted Services,57300,Home Support (Ext) OS&HCD,06/04/2011,3301248730,4622.16,Sevacare (UK) Ltd
http://statistics.data.gov.uk/id/local-authority/38,Oxfordshire County Council,SCS Pooled Budgets,Community Support Budget - Wantage,Other Agency and Contracted Services,57300,Home Support (Ext) OS&HCD,06/04/2011,3301248731,758.79,Sevacare (UK) Ltd
http://statistics.data.gov.uk/id/local-authority/38,Oxfordshire County Council,SCS Pooled Budgets,PD Comm Supp Purchasg Budget - Abingdon,Other Agency and Contracted Services,57300,Home Support (Ext) OS&HCD,06/04/2011,3301248734,582.48,Sevacare (UK) Ltd
http://statistics.data.gov.uk/id/local-authority/38,Oxfordshire County Council,SCS Pooled Budgets,Community Support Budget - Kidlington,Other Agency and Contracted Services,57300,Home Support (Ext) OS&HCD,06/04/2011,3301248735,1176.3,Total Homecare Solutions Ltd
http://statistics.data.gov.uk/id/local-authority/38,Oxfordshire County Council,SCS Pooled Budgets,Community Support Budget - City,Other Agency and Contracted Services,57300,Home Support (Ext) OS&HCD,06/04/2011,3301248737,2168.2,Total Homecare Solutions Ltd
http://statistics.data.gov.uk/id/local-authority/38,Oxfordshire County Council,SCS Pooled Budgets,Community Support Budget - Didcot,Other Agency and Contracted Services,57300,Home Support (Ext) OS&HCD,06/04/2011,3301248738,771.09,Total Homecare Solutions Ltd
http://statistics.data.gov.uk/id/local-authority/38,Oxfordshire County Council,SCS Pooled Budgets,Community Support Budget - Thame,Other Agency and Contracted Services,57300,Home Support (Ext) OS&HCD,06/04/2011,3301248739,1813.36,Total Homecare Solutions Ltd
http://statistics.data.gov.uk/id/local-authority/38,Oxfordshire County Council,SCS Pooled Budgets,Community Support Budget - Faringdon,Other Agency and Contracted Services,57300,Home Support (Ext) OS&HCD,06/04/2011,3301248740,750.39,Total Homecare Solutions Ltd
http://statistics.data.gov.uk/id/local-authority/38,Oxfordshire County Council,SCS Pooled Budgets,Community Support Budget - Abingdon,Other Agency and Contracted Services,57300,Home Support (Ext) OS&HCD,06/04/2011,3301248741,1171,Total Homecare Solutions Ltd
http://statistics.data.gov.uk/id/local-authority/38,Oxfordshire County Council,SCS Pooled Budgets,Community Support Budget - Witney,Other Agency and Contracted Services,57300,Home Support (Ext) OS&HCD,06/04/2011,3301248742,958.71,Total Homecare Solutions Ltd
http://statistics.data.gov.uk/id/local-authority/38,Oxfordshire County Council,SCS Pooled Budgets,PD Community Support Budget - Faringdon,Other Agency and Contracted Services,57300,Home Support (Ext) OS&HCD,06/04/2011,3301248745,1113.41,Total Homecare Solutions Ltd
http://statistics.data.gov.uk/id/local-authority/38,Oxfordshire County Council,Education & Early Intervention,Oxford Nth SEN Trans,Contract Hire/Leasing,33101,Home to School Trans,06/04/2011,3301248764,1794,Findlay Chauffeur Service
http://statistics.data.gov.uk/id/local-authority/38,Oxfordshire County Council,Education & Early Intervention,Oxford Nth SEN Trans,Contract Hire/Leasing,33300,Transport (General),06/04/2011,3301248765,735,Findlay Chauffeur Service
http://statistics.data.gov.uk/id/local-authority/38,Oxfordshire County Council,Education & Early Intervention,Oxford Sth SEN Trans,Contract Hire/Leasing,33101,Home to School Trans,06/04/2011,3301248766,2244.8,Findlay Chauffeur Service
http://statistics.data.gov.uk/id/local-authority/38,Oxfordshire County Council,Education & Early Intervention,Oxford Sth SEN Trans,Contract Hire/Leasing,33300,Transport (General),06/04/2011,3301248767,572.93,Findlay Chauffeur Service
http://statistics.data.gov.uk/id/local-authority/38,Oxfordshire County Council,Education & Early Intervention,Abingdon SEN Trans,Contract Hire/Leasing,33101,Home to School Trans,06/04/2011,3301248768,1564,Findlay Chauffeur Service
http://statistics.data.gov.uk/id/local-authority/38,Oxfordshire County Council,Education & Early Intervention,Abingdon SEN Trans,Contract Hire/Leasing,33300,Transport (General),06/04/2011,3301248769,690,Findlay Chauffeur Service
http://statistics.data.gov.uk/id/local-authority/38,Oxfordshire County Council,Education & Early Intervention,LDD After School Acc,Contract Hire/Leasing,33101,Home to School Trans,06/04/2011,3301248770,782,Findlay Chauffeur Service
http://statistics.data.gov.uk/id/local-authority/38,Oxfordshire County Council,Education & Early Intervention,Oxford Nth SEN Trans,Contract Hire/Leasing,33101,Home to School Trans,06/04/2011,3301248772,2144.06,Ash Taxis
http://statistics.data.gov.uk/id/local-authority/38,Oxfordshire County Council,Education & Early Intervention,Oxford Nth SEN Trans,Contract Hire/Leasing,33300,Transport (General),06/04/2011,3301248773,697.59,Ash Taxis
http://statistics.data.gov.uk/id/local-authority/38,Oxfordshire County Council,Education & Early Intervention,Banbury SEN Trans,Contract Hire/Leasing,33101,Home to School Trans,06/04/2011,3301248774,1650,Ash Taxis
http://statistics.data.gov.uk/id/local-authority/38,Oxfordshire County Council,Education & Early Intervention,Banbury SEN Trans,Contract Hire/Leasing,33300,Transport (General),06/04/2011,3301248775,440,Ash Taxis
http://statistics.data.gov.uk/id/local-authority/38,Oxfordshire County Council,Education & Early Intervention,Oxford Nth SEN Trans,Contract Hire/Leasing,33101,Home to School Trans,06/04/2011,3301248776,2325.07,Ash Taxis
http://statistics.data.gov.uk/id/local-authority/38,Oxfordshire County Council,Education & Early Intervention,Oxford Nth SEN Trans,Contract Hire/Leasing,33300,Transport (General),06/04/2011,3301248777,697.59,Ash Taxis
http://statistics.data.gov.uk/id/local-authority/38,Oxfordshire County Council,Education & Early Intervention,FE Special Trans,Contract Hire/Leasing,33101,Home to School Trans,06/04/2011,3301248778,1840,Ash Taxis
http://statistics.data.gov.uk/id/local-authority/38,Oxfordshire County Council,Education & Early Intervention,Oxford Sth SEN Trans,Contract Hire/Leasing,33101,Home to School Trans,06/04/2011,3301248779,2760,Ash Taxis
http://statistics.data.gov.uk/id/local-authority/38,Oxfordshire County Council,Education & Early Intervention,Oxford Nth SEN Trans,Contract Hire/Leasing,33101,Home to School Trans,06/04/2011,3301248780,2185,Ash Taxis
http://statistics.data.gov.uk/id/local-authority/38,Oxfordshire County Council,Education & Early Intervention,Oxford Nth SEN Trans,Contract Hire/Leasing,33101,Home to School Trans,06/04/2011,3301248781,2185,Ash Taxis
http://statistics.data.gov.uk/id/local-authority/38,Oxfordshire County Council,Education & Early Intervention,Oxford Nth SEN Trans,Contract Hire/Leasing,33300,Transport (General),06/04/2011,3301248782,690,Ash Taxis
http://statistics.data.gov.uk/id/local-authority/38,Oxfordshire County Council,Education & Early Intervention,Oxford Nth SEN Trans,Contract Hire/Leasing,33101,Home to School Trans,06/04/2011,3301248783,2300,Ash Taxis
http://statistics.data.gov.uk/id/local-authority/38,Oxfordshire County Council,Education & Early Intervention,Oxford Nth SEN Trans,Contract Hire/Leasing,33300,Transport (General),06/04/2011,3301248784,690,Ash Taxis
http://statistics.data.gov.uk/id/local-authority/38,Oxfordshire County Council,Education & Early Intervention,Banbury SEN Trans,Contract Hire/Leasing,33101,Home to School Trans,06/04/2011,3301248785,1406,Ash Taxis
http://statistics.data.gov.uk/id/local-authority/38,Oxfordshire County Council,Education & Early Intervention,Banbury SEN Trans,Contract Hire/Leasing,33300,Transport (General),06/04/2011,3301248786,555,Ash Taxis
http://statistics.data.gov.uk/id/local-authority/38,Oxfordshire County Council,Education & Early Intervention,Zone 2 - East,Contract Hire/Leasing,33101,Home to School Trans,06/04/2011,3301248788,828,Continental Chauffeurs
http://statistics.data.gov.uk/id/local-authority/38,Oxfordshire County Council,Education & Early Intervention,Oxford Sth SEN Trans,Contract Hire/Leasing,33101,Home to School Trans,06/04/2011,3301248790,2583.82,Mills Transport Ltd
http://statistics.data.gov.uk/id/local-authority/38,Oxfordshire County Council,Education & Early Intervention,Oxford Sth SEN Trans,Contract Hire/Leasing,33101,Home to School Trans,06/04/2011,3301248792,1725,Mills Transport Ltd
http://statistics.data.gov.uk/id/local-authority/38,Oxfordshire County Council,Education & Early Intervention,Oxford Sth SEN Trans,Contract Hire/Leasing,33101,Home to School Trans,06/04/2011,3301248794,2530,Mills Transport Ltd
http://statistics.data.gov.uk/id/local-authority/38,Oxfordshire County Council,Education & Early Intervention,Oxford Sth SEN Trans,Contract Hire/Leasing,33101,Home to School Trans,06/04/2011,3301248796,2070,Mills Transport Ltd
http://statistics.data.gov.uk/id/local-authority/38,Oxfordshire County Council,Education & Early Intervention,Oxford Sth SEN Trans,Contract Hire/Leasing,33101,Home to School Trans,06/04/2011,3301248798,1840,Mills Transport Ltd
http://statistics.data.gov.uk/id/local-authority/38,Oxfordshire County Council,Education & Early Intervention,Oxford Nth SEN Trans,Contract Hire/Leasing,33101,Home to School Trans,06/04/2011,3301248800,2154.18,Angela's Travel
http://statistics.data.gov.uk/id/local-authority/38,Oxfordshire County Council,Education & Early Intervention,Oxford Nth SEN Trans,Contract Hire/Leasing,33300,Transport (General),06/04/2011,3301248801,575,Angela's Travel
http://statistics.data.gov.uk/id/local-authority/38,Oxfordshire County Council,Education & Early Intervention,Zone 3 - West,Contract Hire/Leasing,33101,Home to School Trans,06/04/2011,3301248804,450.54,Angela's Travel
http://statistics.data.gov.uk/id/local-authority/38,Oxfordshire County Council,Education & Early Intervention,Oxford Nth SEN Trans,Contract Hire/Leasing,33101,Home to School Trans,06/04/2011,3301248805,1725,Angela's Travel
http://statistics.data.gov.uk/id/local-authority/38,Oxfordshire County Council,Education & Early Intervention,Oxford Nth SEN Trans,Contract Hire/Leasing,33300,Transport (General),06/04/2011,3301248806,506,Angela's Travel
http://statistics.data.gov.uk/id/local-authority/38,Oxfordshire County Council,Education & Early Intervention,Oxford Nth SEN Trans,Contract Hire/Leasing,33101,Home to School Trans,06/04/2011,3301248808,1196,Angela's Travel
http://statistics.data.gov.uk/id/local-authority/38,Oxfordshire County Council,Education & Early Intervention,Oxford Nth SEN Trans,Contract Hire/Leasing,33300,Transport (General),06/04/2011,3301248809,460,Angela's Travel
http://statistics.data.gov.uk/id/local-authority/38,Oxfordshire County Council,Education & Early Intervention,Zone 3 - West,Contract Hire/Leasing,33101,Home to School Trans,06/04/2011,3301248810,976.5,Angela's Travel
http://statistics.data.gov.uk/id/local-authority/38,Oxfordshire County Council,Education & Early Intervention,Zone 3 - West,Contract Hire/Leasing,33101,Home to School Trans,06/04/2011,3301248811,545.5,Angela's Travel
http://statistics.data.gov.uk/id/local-authority/38,Oxfordshire County Council,Education & Early Intervention,Oxford Nth SEN Trans,Contract Hire/Leasing,33101,Home to School Trans,06/04/2011,3301248812,1671.87,Angela's Travel
http://statistics.data.gov.uk/id/local-authority/38,Oxfordshire County Council,Education & Early Intervention,Oxford Nth SEN Trans,Contract Hire/Leasing,33300,Transport (General),06/04/2011,3301248813,720.13,Angela's Travel
http://statistics.data.gov.uk/id/local-authority/38,Oxfordshire County Council,Education & Early Intervention,Oxford Nth SEN Trans,Contract Hire/Leasing,33101,Home to School Trans,06/04/2011,3301248815,1058,Angela's Travel
http://statistics.data.gov.uk/id/local-authority/38,Oxfordshire County Council,Education & Early Intervention,Zone 3 - West,Contract Hire/Leasing,33101,Home to School Trans,06/04/2011,3301248817,840,Angela's Travel
http://statistics.data.gov.uk/id/local-authority/38,Oxfordshire County Council,Education & Early Intervention,Zone 3 - West,Contract Hire/Leasing,33101,Home to School Trans,06/04/2011,3301248821,3668.5,Rebound Coaches Ltd
http://statistics.data.gov.uk/id/local-authority/38,Oxfordshire County Council,Education & Early Intervention,Zone 5 - South,Contract Hire/Leasing,33101,Home to School Trans,06/04/2011,3301248822,2357.5,Reading Wheelchair Travel Ltd
http://statistics.data.gov.uk/id/local-authority/38,Oxfordshire County Council,Education & Early Intervention,Zone 5 - South,Contract Hire/Leasing,33101,Home to School Trans,06/04/2011,3301248823,2300,Reading Wheelchair Travel Ltd
http://statistics.data.gov.uk/id/local-authority/38,Oxfordshire County Council,Education & Early Intervention,Zone 5 - South,Contract Hire/Leasing,33101,Home to School Trans,06/04/2011,3301248824,2461,Reading Wheelchair Travel Ltd
http://statistics.data.gov.uk/id/local-authority/38,Oxfordshire County Council,Education & Early Intervention,Abingdon SEN Trans,Contract Hire/Leasing,33101,Home to School Trans,06/04/2011,3301248825,1267.5,Reading Wheelchair Travel Ltd
http://statistics.data.gov.uk/id/local-authority/38,Oxfordshire County Council,Education & Early Intervention,Abingdon SEN Trans,Contract Hire/Leasing,33300,Transport (General),06/04/2011,3301248826,487.5,Reading Wheelchair Travel Ltd
http://statistics.data.gov.uk/id/local-authority/38,Oxfordshire County Council,Education & Early Intervention,Abingdon SEN Trans,Contract Hire/Leasing,33101,Home to School Trans,06/04/2011,3301248827,1530,Reading Wheelchair Travel Ltd
http://statistics.data.gov.uk/id/local-authority/38,Oxfordshire County Council,Education & Early Intervention,Abingdon SEN Trans,Contract Hire/Leasing,33300,Transport (General),06/04/2011,3301248828,450,Reading Wheelchair Travel Ltd
http://statistics.data.gov.uk/id/local-authority/38,Oxfordshire County Council,Education & Early Intervention,FE Special Trans,Contract Hire/Leasing,33101,Home to School Trans,06/04/2011,3301248829,657,Reading Wheelchair Travel Ltd
http://statistics.data.gov.uk/id/local-authority/38,Oxfordshire County Council,Education & Early Intervention,Zone 3 - West,Contract Hire/Leasing,33101,Home to School Trans,06/04/2011,3301248834,1729,Ridgeways Coaches Ltd
http://statistics.data.gov.uk/id/local-authority/38,Oxfordshire County Council,Education & Early Intervention,Zone 4 - Vale,Contract Hire/Leasing,33101,Home to School Trans,06/04/2011,3301248835,4102.51,Ridgeways Coaches Ltd
http://statistics.data.gov.uk/id/local-authority/38,Oxfordshire County Council,Education & Early Intervention,Zone 3 - West,Contract Hire/Leasing,33101,Home to School Trans,06/04/2011,3301248836,2121,Ridgeways Coaches Ltd
http://statistics.data.gov.uk/id/local-authority/38,Oxfordshire County Council,Education & Early Intervention,Zone 3 - West,Contract Hire/Leasing,33101,Home to School Trans,06/04/2011,3301248837,1389.42,Ridgeways Coaches Ltd
http://statistics.data.gov.uk/id/local-authority/38,Oxfordshire County Council,Education & Early Intervention,Zone 4 - Vale,Contract Hire/Leasing,33101,Home to School Trans,06/04/2011,3301248838,3634,Ridgeways Coaches Ltd
http://statistics.data.gov.uk/id/local-authority/38,Oxfordshire County Council,Education & Early Intervention,Zone 4 - Vale,Contract Hire/Leasing,33101,Home to School Trans,06/04/2011,3301248839,3550.74,Ridgeways Coaches Ltd
http://statistics.data.gov.uk/id/local-authority/38,Oxfordshire County Council,Education & Early Intervention,FE Special Trans,Contract Hire/Leasing,33101,Home to School Trans,08/04/2011,3301250162,1380,5 Star Chauffeurs (UK) Ltd
http://statistics.data.gov.uk/id/local-authority/38,Oxfordshire County Council,Education & Early Intervention,Out of County,Contract Hire/Leasing,33101,Home to School Trans,08/04/2011,3301250163,1439.34,School Travel
http://statistics.data.gov.uk/id/local-authority/38,Oxfordshire County Council,Education & Early Intervention,Out of County,Contract Hire/Leasing,33300,Transport (General),08/04/2011,3301250164,430.33,School Travel
http://statistics.data.gov.uk/id/local-authority/38,Oxfordshire County Council,Education & Early Intervention,S'Common SEN Trans,Contract Hire/Leasing,33101,Home to School Trans,08/04/2011,3301250165,1771.69,School Travel
http://statistics.data.gov.uk/id/local-authority/38,Oxfordshire County Council,Education & Early Intervention,S'Common SEN Trans,Contract Hire/Leasing,33300,Transport (General),08/04/2011,3301250166,455.4,School Travel
http://statistics.data.gov.uk/id/local-authority/38,Oxfordshire County Council,Education & Early Intervention,FE Special Trans,Contract Hire/Leasing,33101,Home to School Trans,08/04/2011,3301250167,860,School Travel
http://statistics.data.gov.uk/id/local-authority/38,Oxfordshire County Council,Education & Early Intervention,Oxford Nth SEN Trans,Contract Hire/Leasing,33101,Home to School Trans,08/04/2011,3301250170,2070,School Travel
http://statistics.data.gov.uk/id/local-authority/38,Oxfordshire County Council,Education & Early Intervention,Oxford Nth SEN Trans,Contract Hire/Leasing,33300,Transport (General),08/04/2011,3301250171,690,School Travel
http://statistics.data.gov.uk/id/local-authority/38,Oxfordshire County Council,Education & Early Intervention,Oxford Nth SEN Trans,Contract Hire/Leasing,33101,Home to School Trans,08/04/2011,3301250173,1980,Webb's of Wantage Ltd
http://statistics.data.gov.uk/id/local-authority/38,Oxfordshire County Council,Education & Early Intervention,Oxford Nth SEN Trans,Contract Hire/Leasing,33300,Transport (General),08/04/2011,3301250174,440,Webb's of Wantage Ltd
http://statistics.data.gov.uk/id/local-authority/38,Oxfordshire County Council,Education & Early Intervention,Zone 4 - Vale,Contract Hire/Leasing,33101,Home to School Trans,08/04/2011,3301250175,690,Webb's of Wantage Ltd
http://statistics.data.gov.uk/id/local-authority/38,Oxfordshire County Council,Education & Early Intervention,Oxford Nth SEN Trans,Contract Hire/Leasing,33101,Home to School Trans,08/04/2011,3301250176,2530,Webb's of Wantage Ltd
http://statistics.data.gov.uk/id/local-authority/38,Oxfordshire County Council,Education & Early Intervention,Oxford Nth SEN Trans,Contract Hire/Leasing,33300,Transport (General),08/04/2011,3301250177,690,Webb's of Wantage Ltd
http://statistics.data.gov.uk/id/local-authority/38,Oxfordshire County Council,Education & Early Intervention,Wantage SEN Trans,Contract Hire/Leasing,33101,Home to School Trans,08/04/2011,3301250178,2024,Webb's of Wantage Ltd
http://statistics.data.gov.uk/id/local-authority/38,Oxfordshire County Council,Education & Early Intervention,Wantage SEN Trans,Contract Hire/Leasing,33300,Transport (General),08/04/2011,3301250179,697.59,Webb's of Wantage Ltd
http://statistics.data.gov.uk/id/local-authority/38,Oxfordshire County Council,Education & Early Intervention,Wantage SEN Trans,Contract Hire/Leasing,33101,Home to School Trans,08/04/2011,3301250181,2346,Webb's of Wantage Ltd
http://statistics.data.gov.uk/id/local-authority/38,Oxfordshire County Council,Education & Early Intervention,Wantage SEN Trans,Contract Hire/Leasing,33300,Transport (General),08/04/2011,3301250182,581.21,Webb's of Wantage Ltd
http://statistics.data.gov.uk/id/local-authority/38,Oxfordshire County Council,Education & Early Intervention,Zone 3 - West,Contract Hire/Leasing,33101,Home to School Trans,08/04/2011,3301250183,1305,Chauffeurdriven.net
http://statistics.data.gov.uk/id/local-authority/38,Oxfordshire County Council,Education & Early Intervention,Zone 3 - West,Contract Hire/Leasing,33101,Home to School Trans,08/04/2011,3301250185,720,Chauffeurdriven.net
http://statistics.data.gov.uk/id/local-authority/38,Oxfordshire County Council,Education & Early Intervention,Out of County,Contract Hire/Leasing,33101,Home to School Trans,08/04/2011,3301250187,520,Chauffeurdriven.net
http://statistics.data.gov.uk/id/local-authority/38,Oxfordshire County Council,Education & Early Intervention,Out of County,Contract Hire/Leasing,33101,Home to School Trans,08/04/2011,3301250188,600,Chauffeurdriven.net
http://statistics.data.gov.uk/id/local-authority/38,Oxfordshire County Council,Education & Early Intervention,Witney SEN Trans,Contract Hire/Leasing,33101,Home to School Trans,08/04/2011,3301250190,552,Chauffeurdriven.net
http://statistics.data.gov.uk/id/local-authority/38,Oxfordshire County Council,Education & Early Intervention,FE Special Trans,Contract Hire/Leasing,33101,Home to School Trans,08/04/2011,3301250191,2070,Chauffeurdriven.net
http://statistics.data.gov.uk/id/local-authority/38,Oxfordshire County Council,Education & Early Intervention,Witney SEN Trans,Contract Hire/Leasing,33101,Home to School Trans,08/04/2011,3301250192,920,Chauffeurdriven.net
http://statistics.data.gov.uk/id/local-authority/38,Oxfordshire County Council,Education & Early Intervention,Meadowbrook Transprt,Contract Hire/Leasing,33101,Home to School Trans,08/04/2011,3301250193,938,Chauffeurdriven.net
